Workbook

Sheet FLUXO ANUAL
C1: Centrais Elétricas Brasileiras S/A. - ELETROBRÁS
C2: Diretoria Financeira - DF
C3: Superintendência Financeira - DFF
C4: Departamento de Operações Financeiras - DFFO
C5: Demonstrativo de Saldo da Conta de Comercialização da Energia Elétrica de Itaipu
C6: FLUXO DA CONTA DE COMERCIALIZAÇÃO DE ENERGIA ELÉTRICA DE ITAIPU - EXERCÍCIO DE 2018
C8: Data da Emissão: | E8: 2019-04-25
I9: Em R$ | J9: 2018-01-31 | K9: 3.1624 | L9: 2018-02-28 | M9: 3.2449 | N9: 2018-03-29 | O9: 3.3238 | P9: 2018-04-30 | Q9: 3.4811 | R9: 2018-05-30 | S9: 3.737 | T9: 2018-06-29 | U9: 3.8558 | V9: 2018-07-31 | W9: 3.7549 | X9: 2018-08-31 | Y9: 4.1353 | Z9: 2018-09-28 | AA9: 4.0039 | AB9: 2018-10-31 | AC9: 3.7177 | AD9: 2018-11-30 | AE9: 3.8633 | AF9: 2018-11-30 | AG9: 3.8748
C10: SALDO ANTES DA INADIMPLÊNCIA EM 31/12/2017. ( A ) | D10: 27265221.04 | E10: 1566565590 | F10: ---- | G10: ---- | H10: =D10 -> 27265221.04 | I10: =E10 -> 1566565590 | J10: SALDO FINAL MÊS ANTERIOR | K10: SALDO FINAL MÊS ANTERIOR | L10: SALDO FINAL MÊS ANTERIOR | M10: SALDO FINAL MÊS ANTERIOR | N10: SALDO FINAL MÊS ANTERIOR | O10: SALDO FINAL MÊS ANTERIOR | P10: SALDO FINAL MÊS ANTERIOR | Q10: SALDO FINAL MÊS ANTERIOR | R10: SALDO FINAL MÊS ANTERIOR | S10: SALDO FINAL MÊS ANTERIOR | T10: SALDO FINAL MÊS ANTERIOR | U10: SALDO FINAL MÊS ANTERIOR | V10: SALDO FINAL MÊS ANTERIOR | W10: SALDO FINAL MÊS ANTERIOR | X10: SALDO FINAL MÊS ANTERIOR | Y10: SALDO FINAL MÊS ANTERIOR | Z10: SALDO FINAL MÊS ANTERIOR | AA10: SALDO FINAL MÊS ANTERIOR | AB10: SALDO FINAL MÊS ANTERIOR | AC10: SALDO FINAL MÊS ANTERIOR | AD10: SALDO FINAL MÊS ANTERIOR | AE10: SALDO FINAL MÊS ANTERIOR | AF10: SALDO FINAL MÊS ANTERIOR | AG10: SALDO FINAL MÊS ANTERIOR
C11: AJUSTE DO SALDO ANTES DA INADIMPLÊNCIA EM 31/12/2017 REFERENTE A INADIMPLÊNCIA DA LIQUIDAÇÃO CCEE NÃO LANÇADA EM DEZEMBRO/2017 | D11: =+E11/3.308 -> -6515529.643 | E11: -21553372.06 | G11: ---- | H11: =D11 -> -6515529.643 | I11: =E11 -> -21553372.06
C12: SALDO ANTES DA INADIMPLÊNCIA EM 01/01/2018. ( A ) | D12: =SUM(D10:D11) -> 20749691.4 | E12: =SUM(E10:E11) -> 1545012218 | G12: ---- | H12: =SUM(H10:H11) -> 20749691.4 | I12: 1545012218
C13: SALDO ANTES DA INADIMPLÊNCIA EM: 31/08/2018 ( A ) | D13: ---- | E13: ---- | F13: =D60 -> 65010871.53 | G13: =E60 -> 1490704047 | H13: ---- | I13: ---- | J13: =D12 -> 20749691.4 | K13: =E12 -> 1545012218 | L13: =J60 -> 20918645.73 | M13: 1511622550 | N13: 21809287.61 | O13: 1532458918 | P13: 22115749.56 | Q13: 1550044305 | R13: -2574353.243 | S13: 1427848076 | T13: 15270064.84 | U13: 1349394342 | V13: 26856728.8 | W13: 1308334161 | X13: 52387354.15 | Y13: 1418669840 | Z13: 65010871.53 | AA13: 1490704047 | AB13: 126768277.9 | AC13: 1736786385 | AD13: 136204307.9 | AE13: 1736096243 | AF13: 108238187.2 | AG13: 1737538901
C14: NATUREZA DAS CONTAS | D14: VALORES REALIZADOS DE JANEIRO A AGOSTO/2018 EM US$ | E14: VALORES REALIZADOS DE JANEIRO A AGOSTO/2018 EM R$ | F14: VALORES PREVISTOS DE SETEMBRO A DEZEMBRO/2018 EM US$ | G14: VALORES REALIZADOS DE SETEMBRO A DEZEMBRO/2018 EM R$ | H14: TOTAIS DE JANEIRO A DEZEMBRO/2018 EM US$ | I14: TOTAIS DE JANEIRO A DEZEMBRO/2018 EM R$ | J14: JANEIRO/2018 EM US$ | K14: JANEIRO/2018 EM R$ | L14: FEVEREIRO/2018 EM US$ | M14: FEVEREIRO/2018 EM R$ | N14: MARÇO/2018 EM US$ | O14: MARÇO/2018 EM R$ | P14: ABRIL/2018 EM US$ | Q14: ABRIL/2018 EM R$ | R14: MAIO/2018 EM US$ | S14: MAIO/2018 EM R$ | T14: JUNHO/2018 EM US$ | U14: JUNHO/2018 EM R$ | V14: JULHO/2018 EM US$ | W14: JULHO/2018 EM R$ | X14: AGOSTO/2018 EM US$ | Y14: AGOSTO/2018 EM R$ | Z14: SETEMBRO/2018 EM US$ | AA14: SETEMBRO/2018 EM R$ | AB14: OUTUBRO/2018 EM US$ | AC14: OUTUBRO/2018 EM R$ | AD14: NOVEMBRO/2018 EM US$ | AE14: NOVEMBRO/2018 EM R$ | AF14: DEZEMBRO/2018 EM US$ | AG14: DEZEMBRO/2018 EM R$
C18: 01 (+) Faturamento do Repasse da Energia | D18: =+J18+L18+N18+P18+R18+T18+V18+X18 -> 2429149116 | E18: 8741370399 | F18: =+Z18+AB18+AD18+AF18 -> 1204541484 | G18: 4642288809 | H18: =+J18+L18+N18+P18+R18+T18+V18+X18+Z18+AB18+AD18+AF18 -> 3633690600 | I18: 1.338365921e+10 | J18: 290823422.1 | K18: 920776036.8 | L18: 290266105.7 | M18: 939968730.2 | N18: 298069650 | O18: 994956491.8 | P18: 301413994.3 | Q18: 1054255728 | R18: 310332450 | S18: 1157198673 | T18: 313676850 | U18: 1208314594 | V18: 313119422.1 | W18: 1163677020 | X18: 311447222.1 | Y18: 1302223125 | Z18: 309775022.1 | AA18: 1241950019 | AB18: 301971477.9 | AC18: 1117717228 | AD18: 299184561.5 | AE18: 1153895017 | AF18: 293610422.1 | AG18: 1128726546 | AI18: =+K18+M18+O18 -> 2855701259
C19: 02 (+) Juros referentes ao Repasse da Energia | D19: =+J19+L19+N19+P19+R19+T19+V19+X19 -> 2227551.97 | E19: =+K19+M19+O19+Q19+S19+U19+W19+Y19 -> 8625940.98 | F19: =+Z19+AB19+AD19+AF19 -> 1891828.02 | G19: =+AA19+AC19+AE19+AG19 -> 7137037.82 | H19: =+J19+L19+N19+P19+R19+T19+V19+X19+Z19+AB19+AD19+AF19 -> 4119379.99 | I19: =+K19+M19+O19+Q19+S19+U19+W19+Y19+AA19+AC19+AE19+AG19 -> 15762978.8 | J19: 1142016.04 | K19: 3680493.81 | L19: 410591.1 | M19: 1334790.06 | N19: 131295.58 | O19: 428754.55 | P19: 90965.07 | Q19: 978060.52 | R19: 341650.34 | S19: 1775306.4 | T19: 11734.96 | U19: 43791.5 | V19: 61984.99 | W19: 237950.29 | X19: 37313.89 | Y19: 146793.85 | Z19: 155448.76 | AA19: 639668.8 | AB19: 1556454.91 | AC19: 5809103.48 | AD19: 74311.7 | AE19: 279744.88 | AF19: 105612.65 | AG19: 408520.66
C20: 03 (+) Juros contratuais do Repasse de ITAIPU sobre créditos renegociados | D20: 27779399.59 | E20: 99468258.72 | F20: 13238630.65 | G20: 51158712.48 | H20: 41018030.24 | I20: 150626971.2 | J20: =1905329.52+6237608.65/K9 -> 3877758.261 | K20: 12540438.7 | L20: =1771654.09+5627150.22/M9 -> 3505806.212 | M20: 11364297.66 | N20: =1821623.95+6305132.36/O9 -> 3718588.978 | O20: 12359846.04 | P20: =1907965.13+5703722.79/Q9 -> 3546448.02 | Q20: 12345540.21 | R20: =1762942.64+5554657.92/S9 -> 3249337.588 | S20: 12142774.57 | T20: =1883630.8+5911560.4/U9 -> 3416791.337 | U20: 13174464.04 | V20: =1742048.87+5394133.64/W9 -> 3178607.404 | W20: 11868284.06 | X20: =1824882.82+6042413.4/Y9 -> 3286061.791 | Y20: 13672613.44 | Z20: =1813390.44+5374139.23/AA9 -> 3155616.577 | AA20: 12634773.21 | AB20: =1743772.31+4437980.88/AC9 -> 2937515.99 | AC20: 10893251.6 | AD20: =2291234.45+5188947/AE9 -> 3634372.959 | AE20: 14025780.03 | AF20: =2068399.3+5590274.03/AG9 -> 3511125.126 | AG20: 13604907.64
C21: 04 (+) Rendimento de aplicação financeira B.B. S/A | D21: 465594.9738 | E21: 1642955.8 | F21: 1235948.994 | G21: 4769077.26 | H21: 1701543.967 | I21: 6412033.06 | J21: =K21/K9 -> 70799.12725 | K21: 223895.16 | L21: =M21/M9 -> 39866.44581 | M21: 129362.63 | N21: =O21/O9 -> 97377.95295 | O21: 323664.84 | P21: =Q21/Q9 -> 58357.24627 | Q21: 203147.41 | R21: =S21/S9 -> 25039.90902 | S21: 93574.14 | T21: =U21/U9 -> 5299.084496 | U21: 20432.21 | V21: =W21/W9 -> 129830.5254 | W21: 487500.64 | X21: =Y21/Y9 -> 39024.68261 | Y21: 161378.77 | Z21: =AA21/AA9 -> 65994.12073 | AA21: 264233.86 | AB21: =AC21/AC9 -> 167444.4953 | AC21: 622508.4 | AD21: =AE21/AE9 -> 190627.0753 | AE21: 736449.58 | AF21: =AG21/AG9 -> 811883.3024 | AG21: 3145885.42
C22: 05 (+) Devolução do bônus de ITAIPU | D22: 0 | E22: 0 | F22: 0 | G22: 0 | H22: 0 | I22: 0 | J22: 0 | K22: 0 | L22: 0 | M22: 0 | N22: 0 | O22: 0 | P22: 0 | Q22: 0 | R22: 0 | S22: 0 | T22: 0 | U22: 0 | V22: 0 | W22: 0 | X22: 0 | Y22: 0 | Z22: 0 | AA22: 0 | AB22: 0 | AC22: 0 | AD22: 0 | AE22: 0 | AF22: 0 | AG22: 0
C23: 06 (+) Liquidação CCEE - Venda de Energia | D23: 143122977.9 | E23: 485629541.7 | F23: 36079010.01 | G23: 216615714.1 | H23: 179201987.9 | I23: 702245255.8 | J23: =K23/K$9 -> 34498871.98 | K23: 109099232.7 | L23: =M23/M$9 -> 27078977.88 | M23: 87868575.32 | N23: =O23/O$9 -> 31476411.11 | O23: =104621295.25 -> 104621295.2 | P23: =Q23/Q$9 -> 23529889.76 | Q23: 81909899.23 | R23: =S23/S$9 -> 11678707.91 | S23: 43643331.45 | T23: =U23/U$9 -> 7107161.575 | U23: 27403793.6 | V23: =W23/W$9 -> 2569379.193 | W23: 9647761.93 | X23: =Y23/Y$9 -> 5183578.507 | Y23: 21435652.2 | Z23: =AA23/AA$9 -> 3401010.16 | AA23: 13617304.58 | AB23: =AC23/AC$9 -> 16845223.27 | AC23: =62164985.97+460500.59 -> 62625486.56 | AD23: 0 | AE23: 79024080.24 | AF23: =AG23/AG$9 -> 15832776.58 | AG23: 61348842.7
C24: 07 (+) Rendimento Aplic. Financ.do Aporte de Garantias Liq.CCEE | D24: 0 | E24: 0 | F24: 0 | G24: 0 | H24: 0 | I24: 0 | J24: =K24/K$9 -> 0 | K24: 0 | L24: 0 | M24: 0 | N24: =O24/O$9 -> 0 | O24: 0 | P24: =Q24/Q$9 -> 0 | Q24: 0 | R24: =S24/S$9 -> 0 | S24: 0 | T24: =U24/U$9 -> 0 | U24: 0 | V24: =W24/W$9 -> 0 | W24: 0 | X24: =Y24/Y$9 -> 0 | Y24: 0 | Z24: 0 | AA24: 0 | AB24: =AC24/AC$9 -> 0 | AC24: 0 | AD24: =AE24/AE$9 -> 0 | AE24: 0 | AF24: =AG24/AG$9 -> 0 | AG24: 0
C25: 08 (+) Liq. CCEE - Recuperação Inadimplência do Mês Anterior | D25: 556200121.9 | E25: 1984734726 | F25: 113621953 | G25: 450703267.8 | H25: 669822074.8 | I25: 2435437994 | J25: 6815511.023 | K25: 21553372.06 | L25: 37548332.73 | M25: =100287212.83+21553372.05 -> 121840584.9 | N25: =O25/O$9 -> 60084268.32 | O25: =100287212.83+21553372.05+77867506.16 -> 199708091 | P25: =N26*-1 -> 82050330.63 | Q25: =100287212.83-3441.63+21553372.05+77867506.16+73014239.55 -> 272718889 | R25: 96891164.81 | S25: 337287833.8 | T25: 95081938.61 | U25: =337287833.82+18033370.77 -> 355321204.6 | V25: 88718744.2 | W25: 342081733.9 | X25: 89009831.55 | Y25: 334223016.5 | Z25: 81494523.56 | AA25: 326295922.9 | AB25: 0 | AC25: 0 | AD25: 6958131.209 | AE25: 26881348.3 | AF25: =AG25/AG$9 -> 25169298.18 | AG25: 97525996.59
C26: 09 (-) Liq. CCEE - Inadimplência do Mês | D26: -630730135.8 | E26: -2289477277 | F26: -70079752.91 | G26: -270118784.6 | H26: -700809888.7 | I26: -2559596061 | J26: -38527885.43 | K26: -121840584.9 | L26: -61545222.05 | M26: -199708091 | N26: =O26/O$9 -> -82050330.63 | O26: -272718889 | P26: =Q26/Q$9 -> -96891164.81 | Q26: -337287833.8 | R26: =S26/S$9 -> -95081938.61 | S26: -355321204.6 | T26: =U26/U$9 -> -88718744.2 | U26: -342081733.9 | V26: =W26/W$9 -> -89009831.55 | W26: -334223016.5 | X26: =Y26/Y$9 -> -78905018.47 | Y26: -326295922.9 | Z26: =AA26/AA$9 -> 0 | AA26: 0 | AB26: =AC26/AC$9 -> -7230639.455 | AC26: -26881348.3 | AD26: =AE26/AE$9 -> -25244220.38 | AE26: -97525996.59 | AF26: =AG26/AG$9 -> -37604893.08 | AG26: -145711439.7 | AI26: potencia contratada
C27: 10 (-) Liquidação CCEE - Compra de Energia | D27: 0 | E27: 0 | F27: 0 | G27: 0 | H27: 0 | I27: 0 | J27: 0 | K27: 0 | L27: 0 | M27: 0 | N27: =O27/O$9 -> 0 | O27: 0 | P27: =Q27/Q$9 -> 0 | Q27: 0 | R27: =S27/S$9 -> 0 | S27: 0 | T27: =U27/U$9 -> 0 | U27: 0 | V27: =W27/W$9 -> 0 | W27: 0 | X27: =Y27/Y$9 -> 0 | Y27: 0 | Z27: =AA27/AA$9 -> 0 | AA27: 0 | AB27: =AC27/AC$9 -> 0 | AC27: 0 | AD27: =AE27/AE$9 -> 0 | AE27: 0 | AF27: =AG27/AG$9 -> 0 | AG27: 0 | AI27: -850552744.4
C28: 11 (-) Multa de 2% Pelo Não Aporte das Garantias | D28: 0 | E28: 0 | F28: 0 | G28: 0 | H28: 0 | I28: 0 | J28: 0 | K28: 0 | L28: 0 | M28: 0 | N28: 0 | O28: 0 | P28: 0 | Q28: 0 | R28: 0 | S28: 0 | T28: 0 | U28: 0 | V28: 0 | W28: 0 | X28: 0 | Y28: 0 | Z28: 0 | AA28: 0 | AB28: 0 | AC28: 0 | AD28: 0 | AE28: 0 | AF28: 0 | AG28: 0 | AI28: =Q29 -> -931801287.8
C29: 12 (-) Potência Contratada | D29: -1967741094 | E29: -7159207301 | F29: -973337997.8 | G29: -3681642571 | H29: -2941079092 | I29: -1.084084987e+10 | J29: -235188165.6 | K29: -743759054.9 | L29: -235373530.8 | M29: -763763570.1 | N29: -241497859.6 | O29: -802690585.7 | P29: -244334476 | Q29: -931801287.8 | R29: -251158817.2 | S29: -938580499.9 | T29: -254238926 | U29: -983701252.5 | V29: -253889326.6 | W29: -952567364.5 | X29: -252059992.2 | Y29: -1042343686 | Z29: -250687042.2 | AA29: =Z29*AA9 -> -1003725848 | AB29: -243005889.8 | AC29: -903422996.5 | AD29: -242298374.2 | AE29: -936071309 | AF29: -237346691.6 | AG29: =-919670960.61+81248543.42 -> -838422417.2 | AI29: =+AI27-AI28 -> 81248543.42
C30: 13 (-) Energia Cedida Fator 15,3 (Pagamento à ITAIPU) | D30: -100874150.9 | E30: -357622629.4 | F30: -50125402.62 | G30: -192935348.6 | H30: -150999553.5 | I30: -550557978.1 | J30: =-10541807.1-4817894.5 -> -15359701.6 | K30: =-33337410.77-15236109.57 -> -48573520.34 | L30: =-9478028.7-3964421.28 -> -13442449.98 | M30: =-30755255.33-12864150.61 -> -43619405.94 | N30: -16199284 | O30: -53843180.16 | P30: -13310010.83 | Q30: -46333478.7 | R30: -11154998.22 | S30: -41686228.35 | T30: -10138497.7 | U30: -39227875.3 | V30: -9504777.76 | W30: -35689490.01 | X30: -11764430.79 | Y30: -48649450.65 | Z30: -9298247.47 | AA30: -34847971.87 | AB30: -14199657.7 | AC30: -55080472.22 | AD30: -14723704.44 | AE30: -56882087.36 | AF30: -11903793.01 | AG30: -46124817.16 | AI30: Ressarcimento
C31: 14 (-) Royalties Sobre Energia Cedida | D31: -24255027.14 | E31: -79885601.95 | F31: -10981655.03 | G31: -42156188.85 | H31: -35236682.17 | I31: -122041790.8 | J31: -6728160.92 | K31: -21277136.09 | L31: -5767898.96 | M31: -18716255.34 | N31: -7297940.54 | O31: -24256894.77 | P31: -4062160.18 | Q31: -14140785.8 | R31: -388910.01 | S31: -1453356.71 | T31: 0 | U31: 0 | V31: 0 | W31: 0 | X31: -9956.53 | Y31: -41173.24 | Z31: 0 | AA31: 0 | AB31: -2071540.15 | AC31: -7701364.82 | AD31: -6094705.22 | AE31: -23545674.68 | AF31: -2815409.66 | AG31: -10909149.35 | AI31: -2045444.31
C32: 15 (-) Ressarcimento Encargos Supervisão | D32: -1865771.32 | E32: -6145046.3 | F32: -844742.69 | G32: -3448016.1 | H32: -2710514.01 | I32: -9593062.4 | J32: -517550.84 | K32: -1636702.78 | L32: -443684.54 | M32: -1439711.96 | N32: -561380.04 | O32: =-1865914.98 -> -1865914.98 | P32: -312473.86 | Q32: -1087752.75 | R32: -29916.15 | S32: -111796.65 | T32: 0 | U32: 0 | V32: 0 | W32: 0 | X32: -765.89 | Y32: -3167.18 | Z32: 0 | AA32: 0 | AB32: -159349.24 | AC32: -618115.7 | AD32: -468823.48 | AE32: -1811205.75 | AF32: -216569.97 | AG32: =-839165.32-179529.33 -> -1018694.65 | AI32: =O32 -> -1865914.98
C33: 16 (-) Ajuste do dólar Energia Cedida Fator 15,3 (Pagamento à Itaipu) | D33: -114400492 | E33: -372234890.8 | F33: -57200246.08 | G33: -185855039.6 | H33: -171600738.1 | I33: -558089930.4 | J33: -14300061.5 | K33: -46988572.08 | L33: -14300061.5 | M33: -46463759.82 | N33: -14300061.5 | O33: -46463759.82 | P33: -14300061.5 | Q33: -46463759.82 | R33: -14300061.5 | S33: -46463759.82 | T33: -14300061.5 | U33: -46463759.82 | V33: -14300061.5 | W33: -46463759.83 | X33: -14300061.5 | Y33: -46463759.82 | Z33: -14300061.5 | AA33: -46463759.82 | AB33: -14300061.5 | AC33: -46463759.83 | AD33: -14300061.5 | AE33: -46463759.83 | AF33: -14300061.58 | AG33: -46463760.09 | AI33: =+AI31-AI32 -> -179529.33
C34: 17 (-) Ajuste do dólar - Royalties Sobre Cessão de Energia | D34: -28161243.76 | E34: -91630702.91 | F34: -14080621.94 | G34: -45750756.8 | H34: -42241865.7 | I34: -137381459.7 | J34: -3520155.47 | K34: -11566878.86 | L34: -3520155.47 | M34: -11437689.15 | N34: -3520155.47 | O34: -11437689.15 | P34: -3520155.47 | Q34: -11437689.15 | R34: -3520155.47 | S34: -11437689.15 | T34: -3520155.47 | U34: -11437689.15 | V34: -3520155.47 | W34: -11437689.15 | X34: -3520155.47 | Y34: -11437689.15 | Z34: -3520155.47 | AA34: -11437689.15 | AB34: -3520155.47 | AC34: -11437689.15 | AD34: -3520155.47 | AE34: -11437689.15 | AF34: -3520155.53 | AG34: -11437689.35
C35: 18 (-) Ajuste do dólar - Ressarcimento de Encargos | D35: -2166249.52 | E35: -7048515.59 | F35: -1083124.76 | G35: -3519288.96 | H35: -3249374.28 | I35: -10567804.55 | J35: -270781.19 | K35: -889759.91 | L35: -270781.19 | M35: -879822.24 | N35: -270781.19 | O35: -879822.24 | P35: -270781.19 | Q35: -879822.24 | R35: -270781.19 | S35: -879822.24 | T35: -270781.19 | U35: -879822.24 | V35: -270781.19 | W35: -879822.24 | X35: -270781.19 | Y35: -879822.24 | Z35: -270781.19 | AA35: -879822.24 | AB35: -270781.19 | AC35: -879822.24 | AD35: -270781.19 | AE35: -879822.24 | AF35: -270781.19 | AG35: -879822.24
C36: 19 (-) Juros da Potência , Cessão, Royalties, Ressarcimento e de todos os Ajustes do Dólar | D36: -3926121.349 | E36: -12580831.92 | F36: 0 | G36: 0 | H36: -3926121.349 | I36: -12580831.92 | J36: =+K36/K9 -> -1929692.91 | K36: -6102460.86 | L36: =+M36/M9 -> -1995884.52 | M36: =-6468794.38-7651.3 -> -6476445.68 | N36: =+O36/O9 -> -271.3460497 | O36: -901.9 | P36: =+Q36/Q9 -> 0 | Q36: 0 | R36: =+S36/S9 -> 0 | S36: 0 | T36: =+U36/U9 -> 0 | U36: 0 | V36: =+W36/W9 -> -272.5718395 | W36: -1023.48 | X36: =+Y36/Y9 -> 0 | Y36: 0 | Z36: =+AA36/AA9 -> 0 | AA36: 0 | AB36: =+AC36/AC9 -> 0 | AC36: 0 | AD36: =+AE36/AE9 -> 0 | AE36: 0 | AF36: =+AG36/AG9 -> 0 | AG36: 0
C37: 20 (-) Cessão FM 10.2 + Ajuste do Dólar Cessão FM 10.2 (Pagamento ao Tesouro) | D37: 0 | E37: 0 | F37: 0 | G37: 0 | H37: 0 | I37: 0 | J37: 0 | K37: 0 | L37: 0 | M37: 0 | N37: 0 | O37: 0 | P37: 0 | Q37: 0 | R37: 0 | S37: 0 | T37: 0 | U37: 0 | V37: 0 | W37: 0 | X37: 0 | Y37: 0 | Z37: 0 | AA37: 0 | AB37: 0 | AC37: 0 | AD37: 0 | AE37: 0 | AF37: 0 | AG37: 0
C38: 21 (-) Despesas SELIC da Cessão + Aj. Do Dólar FM 10.2 (Pagamento ao Tesouro) | D38: 0 | E38: 0 | F38: 0 | G38: 0 | H38: 0 | I38: 0 | J38: =+L38+N38+P38+R38+T38+V38+X38+Z38+AB38+AD38+AF38+AH38 -> 0 | K38: 0 | L38: 0 | M38: 0 | N38: 0 | O38: 0 | P38: 0 | Q38: 0 | R38: 0 | S38: 0 | T38: 0 | U38: 0 | V38: 0 | W38: 0 | X38: 0 | Y38: 0 | Z38: 0 | AA38: 0 | AB38: 0 | AC38: 0 | AD38: 0 | AE38: 0 | AF38: 0 | AG38: 0
C39: 22 (+/-) Juros Pagos dos Empréstimos Obtidos por ITAIPU Junto à ELETROBRAS e juros por atraso de transferência da CCEE | D39: -1455174.838 | E39: -5131584.95 | F39: -286503.3766 | G39: -1139586.43 | H39: -1741678.215 | I39: -6271171.38 | J39: =+K39/K9 -> -13305.59701 | K39: -42077.62 | L39: =+M39/M9 -> -632825.6711 | M39: -2053456.02 | N39: =+O39/O9 -> -8968.836873 | O39: -29810.62 | P39: =+Q39/Q9 -> 0 | Q39: 0 | R39: =+S39/S9 -> -403188.9323 | S39: -1506717.04 | T39: =+U39/U9 -> -51441.4674 | U39: -198348.01 | V39: =+W39/W9 -> -334753.7112 | W39: -1256966.71 | X39: =+Y39/Y9 -> -10690.6222 | Y39: -44208.93 | Z39: =+AA39/AA9 -> -260142.6509 | AA39: -1041585.16 | AB39: =+AC39/AC9 -> -26360.72572 | AC39: -98001.27 | AD39: =+AE39/AE9 -> 0 | AE39: 0 | AF39: =+AG39/AG9 -> 0 | AG39: 0
C40: 23 (-) Ativo Regulatório - Tesouro | D40: -134136064.1 | E40: -480298193.1 | F40: -72403948.92 | G40: -279840659.2 | H40: -206540013 | I40: -760138852.3 | J40: -12765070.35 | K40: -40907369.95 | L40: -12765070.4 | M40: -41453289.62 | N40: -12067324.82 | O40: -39464375.73 | P40: -18100987.23 | Q40: -61011187.56 | R40: -24134649.64 | S40: -87817542.91 | T40: -18100987.23 | U40: -68773494.25 | V40: -18100987.23 | W40: -69207917.94 | X40: -18100987.23 | Y40: -71663015.18 | Z40: -18100987.23 | AA40: -74123542.71 | AB40: -18100987.23 | AC40: -66875907.42 | AD40: -18100987.23 | AE40: -68558695.87 | AF40: =-18100987.23 -> -18100987.23 | AG40: =-70363967.66+81454.44 -> -70282513.22
C41: 24 (-) Ativo Regulatório - Eletrobrás | D41: -80081261.7 | E41: -286654048.1 | F41: -43220836.56 | G41: -167110483.2 | H41: -123302098.3 | I41: -453764531.2 | J41: -7625003.43 | K41: -24435340.16 | L41: -7625003.43 | M41: -24673748.6 | N41: -7203472.76 | O41: -23557877.14 | P41: -10805209.14 | Q41: -36420037.93 | R41: -14406945.52 | S41: -52421832.32 | T41: -10805209.14 | U41: -41053671.78 | V41: -10805209.14 | W41: -41312996.8 | X41: -10805209.14 | Y41: -42778543.33 | Z41: -10805209.14 | AA41: -44247331.42 | AB41: -10805209.14 | AC41: -39920925.69 | AD41: -10805209.14 | AE41: -40939136.57 | AF41: -10805209.14 | AG41: -42003089.49
C42: NATUREZA DAS CONTAS | D42: =D14 -> VALORES REALIZADOS DE JANEIRO A AGOSTO/2018 EM US$ | E42: VALORES REALIZADOS DE JANEIRO A AGOSTO/2018 EM R$ | F42: VALORES PREVISTOS DE SETEMBRO A DEZEMBRO/2018 EM US$ | G42: VALORES REALIZADOS DE SETEMBRO A DEZEMBRO/2018 EM R$ | H42: TOTAIS DE JANEIRO A DEZEMBRO/2018 EM US$ | I42: TOTAIS DE JANEIRO A DEZEMBRO/2018 EM R$ | J42: JANEIRO/2018 EM US$ | K42: JANEIRO/2018 EM R$ | L42: FEVEREIRO/2018 EM US$ | M42: FEVEREIRO/2018 EM R$ | N42: MARÇO/2018 EM US$ | O42: MARÇO/2018 EM R$ | P42: ABRIL/2018 EM US$ | Q42: =Q14 -> ABRIL/2018 EM R$ | R42: MAIO/2018 EM US$ | S42: MAIO/2018 EM R$ | T42: JUNHO/2018 EM US$ | U42: JUNHO/2018 EM R$ | V42: JULHO/2018 EM US$ | W42: JULHO/2018 EM R$ | X42: AGOSTO/2018 EM US$ | Y42: AGOSTO/2018 EM R$ | Z42: SETEMBRO/2018 EM US$ | AA42: SETEMBRO/2018 EM R$ | AB42: OUTUBRO/2018 EM US$ | AC42: OUTUBRO/2018 EM R$ | AD42: NOVEMBRO/2018 EM US$ | AE42: NOVEMBRO/2018 EM R$ | AF42: DEZEMBRO/2018 EM US$ | AG42: DEZEMBRO/2018 EM R$
J43: =+K43/K$9 -> 0 | L43: =+M43/M$9 -> 0 | N43: =+O43/O$9 -> 0 | P43: =+Q43/Q$9 -> 0 | Q43: =+R43/R$9 -> 0 | R43: =+S43/S$9 -> 0 | S43: =+T43/T$9 -> 0 | T43: =+U43/U$9 -> 0 | V43: =+W43/W$9 -> 0 | X43: =+Y43/Y$9 -> 0 | Z43: =+AA43/AA$9 -> 0 | AB43: =+AC43/AC$9 -> 0 | AD43: =+AE43/AE$9 -> 0 | AF43: =+AG43/AG$9 -> 0
J44: 0 | L44: 0 | N44: 0 | P44: 0 | Q44: 0 | R44: 0 | S44: 0 | T44: 0 | V44: 0 | X44: 0 | Z44: 0 | AB44: 0 | AD44: 0 | AF44: 0
J45: 0 | L45: 0 | N45: 0 | P45: 0 | Q45: 0 | R45: 0 | S45: 0 | T45: 0 | V45: 0 | X45: 0 | Z45: 0 | AB45: 0 | AD45: 0 | AF45: 0
C46: 25 (-) Custos Administrativos | D46: =+J46+L46+N46+P46+R46+T46+V46+X46 -> -545058.1108 | E46: =+K46+M46+O46+Q46+S46+U46+W46+Y46 -> -1940053.44 | F46: =+Z46+AB46+AD46+AF46 -> -251155.4138 | G46: =+AA46+AC46+AE46+AG46 -> -970026.72 | H46: =+J46+L46+N46+P46+R46+T46+V46+X46+Z46+AB46+AD46+AF46 -> -796213.5246 | I46: =+K46+M46+O46+Q46+S46+U46+W46+Y46+AA46+AC46+AE46+AG46 -> -2910080.16 | J46: =K46/K$9 -> -76684.37895 | K46: -242506.68 | L46: =M46/M$9 -> -74734.71602 | M46: -242506.68 | N46: =O46/O$9 -> -72960.67152 | O46: -242506.68 | P46: =Q46/Q$9 -> -69663.80742 | Q46: -242506.68 | R46: =S46/S$9 -> -64893.41183 | S46: -242506.68 | T46: =U46/U$9 -> -62893.99865 | U46: -242506.68 | V46: =W46/W$9 -> -64584.05816 | W46: -242506.68 | X46: =Y46/Y$9 -> -58643.06822 | Y46: -242506.68 | Z46: =AA46/AA$9 -> -60567.61657 | AA46: -242506.68 | AB46: =AC46/AC$9 -> -65230.2983 | AC46: -242506.68 | AD46: =AE46/AE$9 -> -62771.89967 | AE46: -242506.68 | AF46: =AG46/AG$9 -> -62585.59926 | AG46: -242506.68
C47: 26 (-) Contribuição Anual a CCEE | D47: -1082557.119 | E47: -3836923.09 | F47: -285847.723 | G47: -1110951.81 | H47: -1368404.842 | I47: -4947874.9 | J47: =K47/K$9 -> -160794.4978 | K47: -508496.52 | L47: =M47/M$9 -> -154975.4045 | M47: -502879.69 | N47: =O47/O$9 -> -150666.078 | O47: -500783.91 | P47: =Q47/Q$9 -> -141099.4054 | Q47: -491181.14 | R47: =S47/S$9 -> -129851.5387 | S47: -485255.2 | T47: -124366.8396 | U47: -479533.66 | V47: =W47/W$9 -> -116443.599 | W47: -437234.07 | X47: =Y47/Y$9 -> -104359.7562 | Y47: -431558.9 | Z47: =AA47/AA$9 -> -106759.2997 | AA47: -427453.56 | AB47: =AC47/AC$9 -> -62090.12831 | AC47: -230832.47 | AD47: =AE47/AE$9 -> -59062.06093 | AE47: -228174.46 | AF47: =AG47/AG$9 -> -57936.23413 | AG47: -224491.32
C48: 27 (-) Contribuição ao O N S | D48: -104484.2431 | E48: -374836.94 | F48: -61741.39334 | G48: -238461.12 | H48: -166225.6364 | I48: -613298.06 | J48: -13879.33215 | K48: -43892 | L48: =M48/M$9 -> -13526.4569 | M48: -43892 | N48: =O48/O$9 -> -12631.2233 | O48: -41983.66 | P48: =Q48/Q$9 -> -12060.4579 | Q48: -41983.66 | R48: =S48/S$9 -> -11234.58924 | S48: -41983.66 | T48: -10859.3288 | U48: -41871.4 | V48: =W48/W$9 -> -15876.66249 | W48: -59615.28 | X48: =Y48/Y$9 -> -14416.1923 | Y48: -59615.28 | Z48: =AA48/AA$9 -> -14889.30293 | AA48: -59615.28 | AB48: =AC48/AC$9 -> -16035.52734 | AC48: -59615.28 | AD48: =AE48/AE$9 -> -15431.1806 | AE48: -59615.28 | AF48: =AG48/AG$9 -> -15385.38247 | AG48: -59615.28
C49: 28 (-) Despesas Bancárias | D49: -1569.137425 | E49: -4966.52 | F49: -70.76494271 | G49: -274.2 | H49: -1639.902368 | I49: -5240.72 | J49: -1532.421579 | K49: -4846.13 | L49: =M49/M$9 -> -20.86350889 | M49: -67.7 | N49: =O49/O$9 -> -15.85233769 | O49: -52.69 | P49: =Q49/Q$9 -> 0 | Q49: 0 | R49: =S49/S$9 -> 0 | S49: 0 | T49: 0 | U49: 0 | V49: =W49/W$9 -> 0 | W49: 0 | X49: =Y49/Y$9 -> 0 | Y49: 0 | Z49: =AA49/AA$9 -> 0 | AA49: 0 | AB49: =AC49/AC$9 -> 0 | AC49: 0 | AD49: =AE49/AE$9 -> 0 | AE49: 0 | AF49: =AG49/AG$9 -> -70.76494271 | AG49: -274.2
C50: 29 (-) Custeio com Imposto de Renda BB | D50: -30197.95051 | E50: -106765.79 | F50: -80962.17436 | G50: -310921.24 | H50: -111160.1249 | I50: -417687.03 | J50: -3182.725145 | K50: -10065.05 | L50: =M50/M$9 -> -1544.602299 | M50: -5012.08 | N50: =O50/O$9 -> -8136.208556 | O50: -27043.13 | P50: =Q50/Q$9 -> -4723.170837 | Q50: -16441.83 | R50: =S50/S$9 -> -2172.047097 | S50: -8116.94 | T50: 0 | U50: 0 | V50: =W50/W$9 -> -8103.179845 | W50: -30426.63 | X50: =Y50/Y$9 -> -2336.016734 | Y50: -9660.13 | Z50: =AA50/AA$9 -> -4366.13302 | AA50: -17481.56 | AB50: =AC50/AC$9 -> -19796.70495 | AC50: -73598.21 | AD50: =AE50/AE$9 -> -21269.44581 | AE50: -82170.25 | AF50: =AG50/AG$9 -> -35529.89057 | AG50: -137671.22
C51: 30] (-) Custeio com Imposto de Renda Bradesco | D51: -92.52782697 | E51: -292.61 | F51: 92.53 | G51: 292.61 | H51: 0.002173033139 | I51: 0 | J51: -92.52782697 | K51: -292.61 | L51: =M51/M$9 -> 0 | M51: 0 | N51: =O51/O$9 -> 0 | O51: 0 | P51: =Q51/Q$9 -> 0 | Q51: 0 | R51: =S51/S$9 -> 0 | S51: 0 | T51: 0 | U51: 0 | V51: =W51/W$9 -> 0 | W51: 0 | X51: =Y51/Y$9 -> 0 | Y51: 0 | Z51: 92.53 | AA51: 292.61 | AB51: =AC51/AC$9 -> 0 | AC51: 0 | AD51: =AE51/AE$9 -> 0 | AE51: 0 | AF51: =AG51/AG$9 -> 0 | AG51: 0
C52: 31 (-) Custeio com IOF BB | D52: -327592.4379 | E52: -1154251.67 | F52: -226793.2137 | G52: -867307.46 | H52: -554385.6516 | I52: -2021559.13 | J52: -57723.5043 | K52: -182544.81 | L52: =M52/M$9 -> -31667.67543 | M52: -102758.44 | N52: =O52/O$9 -> -58839.72261 | O52: -195571.47 | P52: =Q52/Q$9 -> -39342.02695 | Q52: -136953.53 | R52: =S52/S$9 -> -17446.71394 | S52: -65198.37 | T52: -9907.738991 | U52: -38202.26 | V52: =W52/W$9 -> -86437.99835 | W52: -324566.04 | X52: =Y52/Y$9 -> -26227.05729 | Y52: -108456.75 | Z52: =AA52/AA$9 -> -25521.58895 | AA52: -102185.89 | AB52: =AC52/AC$9 -> -89005.33125 | AC52: -330895.12 | AD52: =AE52/AE$9 -> -68085.5771 | AE52: -263035.01 | AF52: =AG52/AG$9 -> -44180.71642 | AG52: -171191.44
C53: 32 (-) Custeio com IOF Bradesco | D53: 0 | E53: 0 | F53: 0 | G53: 0 | H53: 0 | I53: 0 | J53: 0 | K53: 0 | L53: =M53/M$9 -> 0 | M53: 0 | N53: =O53/O$9 -> 0 | O53: 0 | P53: =Q53/Q$9 -> 0 | Q53: 0 | R53: =S53/S$9 -> 0 | S53: 0 | T53: 0 | U53: 0 | V53: =W53/W$9 -> 0 | W53: 0 | X53: =Y53/Y$9 -> 0 | Y53: 0 | Z53: =AA53/AA$9 -> 0 | AA53: 0 | AB53: =AC53/AC$9 -> 0 | AC53: 0 | AD53: =AE53/AE$9 -> 0 | AE53: 0 | AF53: =AG53/AG$9 -> 0 | AG53: 0
C54: 33 (-) Pagamento de bônus de ITAIPU | D54: 0 | E54: 0 | F54: 0 | G54: 0 | H54: 0 | I54: 0 | J54: 0 | K54: 0 | L54: =M54/M$9 -> 0 | M54: 0 | N54: =O54/O$9 -> 0 | O54: 0 | P54: =Q54/Q$9 -> 0 | R54: =S54/S$9 -> 0 | T54: 0 | U54: 0 | V54: =W54/W$9 -> 0 | W54: 0 | X54: =Y54/Y$9 -> 0 | Y54: 0 | Z54: =AA54/AA$9 -> 0 | AA54: 0 | AB54: =AC54/AC$9 -> 0 | AC54: 0 | AD54: =AE54/AE$9 -> 0 | AE54: 0 | AF54: =AG54/AG$9 -> 0 | AG54: 0
C55: 34 (+) Variação Cambial (Ativa) | D55: 0 | E55: 827053713.1 | F55: 0 | G55: 293613354.9 | H55: 0 | I55: 1120667068 | J55: 0 | K55: 82156309.94 | L55: 0 | M55: 29359231.06 | N55: 0 | O55: 510444.78 | P55: 0 | Q55: 114531130.2 | R55: 0 | S55: 248152963.4 | T55: 0 | U55: 86995242.71 | V55: 0 | W55: 85741585.68 | X55: 0 | Y55: 179606805.4 | Z55: 0 | AA55: -872544.73 | AB55: 0 | AC55: 112859898.8 | AD55: 0 | AE55: 123074165.1 | AF55: 0 | AG55: 58551835.75
C56: 35 (-) Variação Cambial (Passiva) | D56: 0 | E56: -969958042.3 | F56: 0 | G56: -313967330.6 | H56: 0 | I56: -1283925373 | J56: 0 | K56: -114407344.6 | L56: 0 | M56: -9446842.26 | N56: 0 | O56: 9451768.5 | P56: 0 | Q56: -69677893.99 | R56: 0 | S56: -379097059.3 | T56: 0 | U56: -169334175.3 | V56: 0 | W56: -76034857.05 | X56: 0 | Y56: -161411638.3 | Z56: 0 | AA56: -15375796.8 | AB56: 0 | AC56: -150530612.1 | AD56: 0 | AE56: -103932295.1 | AF56: 0 | AG56: -44128626.52
C57: 36 (+ / -) Receitas / Despesas com COFINS | D57: -19222600.25 | E57: -65478581.01 | F57: -35732277.88 | G57: -141485896.3 | H57: -54954878.12 | I57: -206964477.3 | J57: 0 | L57: =M57/M$9 -> 0 | N57: =O57/O$9 -> -6757561.746 | O57: -22460783.73 | P57: =Q57/Q$9 -> -24054659.51 | Q57: -83736675.22 | R57: =S57/S$9 -> 8486638.59 | S57: 31714568.41 | T57: -6107263.634 | U57: -23548387.12 | V57: =W57/W$9 -> 14548984.91 | W57: 54629983.43 | X57: =Y57/Y$9 -> -5338738.853 | Y57: -22077286.78 | Z57: =AA57/AA$9 -> -23794429.04 | AA57: -95270514.45 | AB57: =+AC57/AC9 -> -141679.1672 | AC57: -526720.64 | AD57: =+AE57/AE9 -> -1664086.853 | AE57: -6428866.74 | AF57: =+AG57/AG9 -> -10132082.81 | AG57: =-25948478.93-13311315.55 -> -39259794.48
C58: 37 (+ / -) Receitas / Despesas com PASEP | D58: -3576644.408 | E58: -12062369.29 | F58: -7209626.778 | G58: -28589991.92 | H58: -10786271.19 | I58: -40652361.21 | J58: 0 | L58: =M58/M$9 -> 0 | N58: =O58/O$9 -> -1232487.749 | O58: -4096542.78 | P58: =Q58/Q$9 -> -5151059.194 | Q58: -17931352.16 | R58: =S58/S$9 -> 1915389.676 | S58: 7157811.22 | T58: -1253016.173 | U58: -4831379.76 | V58: =W58/W$9 -> 3231274.228 | W58: 12133111.6 | X58: =Y58/Y$9 -> -1086745.196 | Y58: -4494017.41 | Z58: =AA58/AA$9 -> -5041141.622 | AA58: -20184226.94 | AB58: 42382.2444 | AC58: 157564.47 | AD58: -290395.8662 | AE58: -1121886.35 | AF58: -1920471.534 | AG58: =-5278354.32-2163088.78 -> -7441443.1
C59: SALDO DO PERÍODO ( B ) REALIZADO / PREVISTO / TOTAL | D59: =SUM(D18:D41,D46:D58) -> 44261180.13 | E59: =SUM(E18:E41,E46:E58) -> -54308170.7 | F59: 33115638.74 | G59: 305228381.7 | H59: 77376818.88 | I59: 250920211 | J59: =ROUND(SUM(J18:J41,J46:J58),2) -> 168954.33 | K59: =ROUND(SUM(K18:K41,K46:K58),2) -> -33389667.54 | L59: 890641.88 | M59: 20836367.44 | N59: 306461.95 | O59: 17585387.5 | P59: -24690102.8 | Q59: -122196229.5 | R59: 17844418.08 | S59: -78453733.61 | T59: 11586663.96 | U59: -41060180.56 | V59: 25530625.35 | W59: 110335678.9 | X59: 12623517.38 | Y59: 72034206.67 | Z59: 61757406.38 | AA59: 246082338.1 | AB59: 9436030.02 | AC59: -690142.24 | AD59: -27966120.71 | AE59: 1442657.91 | AF59: -10111676.95 | AG59: 58393527.89
C60: SALDO FINAL ( C ) = ( A + B ) (ANTES DA INADIMPLÊNCIA) | D60: =+D12+D59 -> 65010871.53 | E60: =+E12+E59 -> 1490704047 | F60: =+F13+F59 -> 98126510.27 | G60: =+G13+G59 -> 1795932429 | H60: =+H12+H59 -> 98126510.27 | I60: =+I12+I59 -> 1795932429 | J60: =+J13+J59 -> 20918645.73 | K60: =+K13+K59 -> 1511622550 | L60: 21809287.61 | M60: 1532458918 | N60: 22115749.56 | O60: 1550044305 | P60: -2574353.243 | Q60: 1427848076 | R60: 15270064.84 | S60: 1349394342 | T60: 26856728.8 | U60: 1308334161 | V60: 52387354.15 | W60: 1418669840 | X60: 65010871.53 | Y60: =+Y13+Y59+0.01 -> 1490704047 | Z60: 126768277.9 | AA60: 1736786385 | AB60: 136204307.9 | AC60: 1736096243 | AD60: 108238187.2 | AE60: 1737538901 | AF60: 98126510.27 | AG60: 1795932429
C61: NATUREZA DAS CONTAS | D61: =D42 -> VALORES REALIZADOS DE JANEIRO A AGOSTO/2018 EM US$ | E61: VALORES REALIZADOS DE JANEIRO A AGOSTO/2018 EM R$ | F61: VALORES PREVISTOS DE SETEMBRO A DEZEMBRO/2018 EM US$ | G61: VALORES REALIZADOS DE SETEMBRO A DEZEMBRO/2018 EM R$ | H61: TOTAIS DE JANEIRO A DEZEMBRO/2018 EM US$ | I61: TOTAIS DE JANEIRO A DEZEMBRO/2018 EM R$ | J61: =J14 -> JANEIRO/2018 EM US$ | K61: =K42 -> JANEIRO/2018 EM R$ | L61: =L14 -> FEVEREIRO/2018 EM US$ | M61: =M42 -> FEVEREIRO/2018 EM R$ | N61: =N14 -> MARÇO/2018 EM US$ | O61: =O42 -> MARÇO/2018 EM R$ | P61: =P14 -> ABRIL/2018 EM US$ | Q61: =Q42 -> ABRIL/2018 EM R$ | R61: =R14 -> MAIO/2018 EM US$ | S61: =S42 -> MAIO/2018 EM R$ | T61: =T14 -> JUNHO/2018 EM US$ | U61: =U42 -> JUNHO/2018 EM R$ | V61: =V14 -> JULHO/2018 EM US$ | W61: =W42 -> JULHO/2018 EM R$ | X61: =X14 -> AGOSTO/2018 EM US$ | Y61: =Y42 -> AGOSTO/2018 EM R$ | Z61: =Z14 -> SETEMBRO/2018 EM US$ | AA61: =AA42 -> SETEMBRO/2018 EM R$ | AB61: =AB14 -> OUTUBRO/2018 EM US$ | AC61: =AC42 -> OUTUBRO/2018 EM R$ | AD61: =AD14 -> NOVEMBRO/2018 EM US$ | AE61: =AE42 -> NOVEMBRO/2018 EM R$ | AF61: =AF14 -> DEZEMBRO/2018 EM US$ | AG61: =AG42 -> DEZEMBRO/2018 EM R$
C65: AMPLA | D65: =X65 -> 0 | E65: =Y65 -> 0 | F65: =AF65 -> 0 | G65: 0 | H65: =F65 -> 0 | I65: 0 | J65: 0 | K65: 0 | L65: 0 | M65: 0 | N65: 0 | O65: 0 | P65: 0 | Q65: 0 | R65: 0 | S65: 0 | T65: 0 | U65: 0 | V65: 0 | W65: 0 | X65: 0 | Y65: 0 | Z65: 0 | AA65: 0 | AB65: 0 | AC65: 0 | AD65: 0 | AE65: 0 | AF65: 0 | AG65: 0
C66: CELG-D | D66: =X66 -> 0 | E66: 0 | F66: 0 | G66: 0 | H66: 0 | I66: 0 | J66: 0 | K66: 0 | L66: 0 | M66: 0 | N66: 0 | O66: 0 | P66: 0 | Q66: 0 | R66: 0 | S66: 0 | T66: 0 | U66: 0 | V66: 0 | W66: 0 | X66: 0 | Y66: 0 | Z66: 0 | AA66: 0 | AB66: 0 | AC66: 0 | AD66: 0 | AE66: 0 | AF66: 0 | AG66: 0
C67: CEEE-D | D67: 0 | E67: 0 | F67: 0 | G67: 0 | H67: 0 | I67: 0 | J67: 0 | K67: 0 | L67: 0 | M67: 0 | N67: 0 | O67: 0 | P67: 0 | Q67: 0 | R67: 0 | S67: 0 | T67: 0 | U67: 0 | V67: 0 | W67: 0 | X67: 0 | Y67: 0 | Z67: 0 | AA67: 0 | AB67: 0 | AC67: 0 | AD67: 0 | AE67: 0 | AF67: 0 | AG67: 0
C68: ELETROPAULO | D68: 0 | E68: 0 | F68: 0 | G68: 0 | H68: 0 | I68: 0 | J68: 0 | K68: 0 | L68: 0 | M68: 0 | N68: 0 | O68: 0 | P68: 0 | Q68: 0 | R68: 0 | S68: 0 | T68: 0 | U68: 0 | V68: 0 | W68: 0 | X68: 0 | Y68: 0 | Z68: 0 | AA68: 0 | AB68: 0 | AC68: 0 | AD68: 0 | AE68: 0 | AF68: 0 | AG68: 0
C69: NOVA PALMA | D69: 0 | E69: 0 | F69: =AF69 -> -26718.04 | G69: =AG69 -> -102712.16 | H69: =F69 -> -26718.04 | I69: =G69 -> -102712.16 | J69: 0 | K69: 0 | L69: 0 | M69: 0 | N69: 0 | O69: 0 | P69: 0 | Q69: 0 | R69: 0 | S69: 0 | T69: 0 | U69: 0 | V69: 0 | W69: 0 | X69: 0 | Y69: 0 | Z69: 0 | AA69: 0 | AB69: 0 | AC69: 0 | AD69: 0 | AE69: 0 | AF69: -26718.04 | AG69: -102712.16
C70: 38 (-) RECEITAS NÃO REALIZADAS | D70: 0 | E70: 0 | F70: =AF70 -> -26718.04 | G70: =AG70 -> -102712.16 | H70: =F70 -> -26718.04 | I70: =G70 -> -102712.16 | J70: 0 | K70: 0 | L70: 0 | M70: 0 | N70: 0 | O70: 0 | P70: 0 | Q70: 0 | R70: 0 | S70: 0 | T70: 0 | U70: 0 | V70: 0 | W70: 0 | X70: =SUM(X65:X69) -> 0 | Y70: =SUM(Y65:Y69) -> 0 | Z70: 0 | AA70: 0 | AB70: 0 | AC70: 0 | AD70: 0 | AE70: 0 | AF70: =SUM(AF65:AF69) -> -26718.04 | AG70: =SUM(AG65:AG69) -> -102712.16
C71: 39 (-) VARIAÇÃO CAMBIAL DAS RECEITAS NÃO REALIZADAS | D71: 0 | E71: 0 | F71: =AF71 -> 0 | G71: -814.901392 | H71: =F71 -> 0 | I71: -814.901392 | J71: 0 | K71: 0 | L71: 0 | M71: 0 | N71: 0 | O71: 0 | P71: 0 | Q71: 0 | R71: 0 | S71: 0 | T71: 0 | U71: 0 | V71: 0 | W71: 0 | X71: 0 | Y71: =+X70*Y$9-Y70 -> 0 | Z71: 0 | AA71: 0 | AB71: 0 | AC71: 0 | AD71: 0 | AE71: 0 | AG71: =+AF70*AG$9-AG70 -> -814.901392
C72: 40 (-) REPACTUAÇÃO CELG - DISTRIBUIÇÃO | D72: 0 | E72: 0 | F72: -224575082.7 | G72: -870183530.3 | H72: -224575082.7 | I72: -870183530.3 | J72: 0 | K72: 0 | L72: 0 | M72: 0 | N72: 0 | O72: 0 | P72: 0 | Q72: 0 | R72: 0 | S72: 0 | T72: 0 | U72: 0 | V72: 0 | W72: 0 | X72: 0 | Y72: 0 | Z72: 0 | AA72: 0 | AB72: 0 | AC72: 0 | AD72: 0 | AE72: 0 | AF72: =AG72/AG9 -> -224575082.7 | AG72: -870183530.3
C73: 41 (-) REPACTUAÇÃO CEMAT | D73: 0 | E73: 0 | F73: -20138105 | G73: -78031129.25 | H73: -20138105 | I73: -78031129.25 | J73: 0 | K73: 0 | L73: 0 | M73: 0 | N73: 0 | O73: 0 | P73: 0 | Q73: 0 | R73: 0 | S73: 0 | T73: 0 | U73: 0 | V73: 0 | W73: 0 | X73: 0 | Y73: 0 | Z73: 0 | AA73: 0 | AB73: 0 | AC73: 0 | AD73: 0 | AE73: 0 | AF73: =AG73/AG9 -> -20138105 | AG73: -78031129.25
C74: 42 (-) REPACTUAÇÃO CEEE-D | D74: 0 | E74: 0 | F74: -168545293.2 | G74: -595454989.3 | H74: -168545293.2 | I74: -595454989.3 | J74: 0 | K74: 0 | L74: 0 | M74: 0 | N74: 0 | O74: 0 | P74: 0 | Q74: 0 | R74: 0 | S74: 0 | T74: 0 | U74: 0 | V74: 0 | W74: 0 | X74: 0 | Y74: 0 | Z74: 0 | AA74: 0 | AB74: 0 | AC74: 0 | AD74: 0 | AE74: 0 | AF74: -168545293.2 | AG74: -595454989.3
C75: 43 (-) VARIAÇÃO CAMBIAL DA REPACTUAÇÃO CEEE-D | D75: 0 | E75: 0 | F75: 0 | G75: -57624312.91 | H75: 0 | I75: -57624312.91 | J75: 0 | K75: 0 | L75: 0 | M75: 0 | N75: 0 | O75: 0 | P75: 0 | Q75: 0 | R75: 0 | S75: 0 | T75: 0 | U75: 0 | V75: 0 | W75: 0 | X75: 0 | Y75: 0 | Z75: 0 | AA75: 0 | AB75: 0 | AC75: 0 | AD75: 0 | AE75: 0 | AG75: =+AF74*AG$9-AG74 -> -57624312.91
C76: 44 (-) REPACTUAÇÃO CEB-D | D76: 0 | E76: 0 | F76: =AF76 -> -29678742.8 | G76: =AG76 -> -111059339.6 | H76: =F76 -> -29678742.8 | I76: =G76 -> -111059339.6 | J76: 0 | K76: 0 | L76: 0 | M76: 0 | N76: 0 | O76: 0 | P76: 0 | Q76: 0 | R76: 0 | S76: 0 | T76: 0 | U76: 0 | V76: 0 | W76: 0 | X76: 0 | Y76: 0 | Z76: 0 | AA76: 0 | AB76: 0 | AC76: 0 | AD76: 0 | AE76: 0 | AF76: -29678742.8 | AG76: -111059339.6
C77: 45 (-) VARIAÇÃO CAMBIAL DA REPACTUAÇÃO CEB-D | D77: 0 | E77: 0 | F77: 0 | G77: -3939853.041 | H77: 0 | I77: -3939853.041 | J77: 0 | K77: 0 | L77: 0 | M77: 0 | N77: 0 | O77: 0 | P77: 0 | Q77: 0 | R77: 0 | S77: 0 | T77: 0 | U77: 0 | V77: 0 | W77: 0 | X77: 0 | Y77: 0 | Z77: 0 | AA77: 0 | AB77: 0 | AC77: 0 | AD77: 0 | AE77: 0 | AG77: =+AF76*AG$9-AG76 -> -3939853.041
C78: SALDO DA INADIMPLÊNCIA NO PERÍODO ( D ) REALIZADO / PREVISTO | D78: =SUM(D70:D77) -> 0 | E78: =SUM(E70:E77) -> 0 | F78: =SUM(F70:F77) -> -442963941.7 | G78: -1716396681 | H78: -442963941.7 | I78: -1716396681 | J78: 0 | K78: 0 | L78: 0 | M78: 0 | N78: 0 | O78: 0 | P78: 0 | Q78: 0 | R78: 0 | S78: 0 | T78: 0 | U78: 0 | V78: 0 | W78: 0 | X78: =SUM(X70:X77) -> 0 | Y78: =SUM(Y70:Y77) -> 0 | Z78: 0 | AA78: 0 | AB78: 0 | AC78: 0 | AD78: 0 | AE78: 0 | AF78: =SUM(AF70:AF77) -> -442963941.7 | AG78: =SUM(AG70:AG77) -> -1716396681
C79: SALDO APÓS A INADIMPLÊNCIA ( E ) = ( C + D ) | D79: =+D60+D78 -> 65010871.53 | E79: 1490704047 | F79: -344837431.4 | G79: 79535747.39 | H79: -344837431.4 | I79: 79535747.39 | J79: 20918645.73 | K79: 1511622550 | L79: 21809287.61 | M79: 1532458918 | N79: 22115749.56 | O79: 1550044305 | P79: -2574353.243 | Q79: 1427848076 | R79: 15270064.84 | S79: 1349394342 | T79: 26856728.8 | U79: 1308334161 | V79: 52387354.15 | W79: 1418669840 | X79: 65010871.53 | Y79: 1490704047 | Z79: 126768277.9 | AA79: 1736786385 | AB79: 136204307.9 | AC79: 1736096243 | AD79: 108238187.2 | AE79: 1737538901 | AF79: -344837431.4 | AG79: 79535747.39

Sheet FLUXO MENSAL
B1: Centrais Elétricas Brasileiras S/A. - ELETROBRÁS
B2: Diretoria Financeira - DF
B3: Superintendência Financeira - DFF
B4: Departamento de Operações Financeiras - DFFO
B5: Demonstrativo de Saldo da Conta de Comercialização da Energia Elétrica de Itaipu
B6: FLUXO DA CONTA DE COMERCIALIZAÇÃO DE ENERGIA ELÉTRICA DE ITAIPU - EXERCÍCIO DE 2018
B8: Data da Emissão: | D8: ='FLUXO ANUAL'!$E$8 -> 2019-04-25 | J8: =D8 -> 2019-04-25
H9: Em R$ | I9: ='FLUXO ANUAL'!J9 -> 2018-01-31 | J9: ='FLUXO ANUAL'!K9 -> 3.1624 | K9: ='FLUXO ANUAL'!L9 -> 2018-02-28 | L9: ='FLUXO ANUAL'!M9 -> 3.2449 | M9: ='FLUXO ANUAL'!N9 -> 2018-03-29 | N9: ='FLUXO ANUAL'!O9 -> 3.3238 | O9: ='FLUXO ANUAL'!P9 -> 2018-04-30 | P9: ='FLUXO ANUAL'!Q9 -> 3.4811 | Q9: ='FLUXO ANUAL'!R9 -> 2018-05-30 | R9: ='FLUXO ANUAL'!S9 -> 3.737 | S9: ='FLUXO ANUAL'!T9 -> 2018-06-29 | T9: ='FLUXO ANUAL'!U9 -> 3.8558 | U9: ='FLUXO ANUAL'!V9 -> 2018-07-31 | V9: ='FLUXO ANUAL'!W9 -> 3.7549 | W9: ='FLUXO ANUAL'!X9 -> 2018-08-31 | X9: ='FLUXO ANUAL'!Y9 -> 4.1353 | Y9: ='FLUXO ANUAL'!Z9 -> 2018-09-28 | Z9: ='FLUXO ANUAL'!AA9 -> 4.0039 | AA9: ='FLUXO ANUAL'!AB9 -> 2018-10-31 | AB9: ='FLUXO ANUAL'!AC9 -> 3.7177 | AC9: ='FLUXO ANUAL'!AD9 -> 2018-11-30 | AD9: ='FLUXO ANUAL'!AE9 -> 3.8633 | AE9: ='FLUXO ANUAL'!AF9 -> 2018-11-30 | AF9: ='FLUXO ANUAL'!AG9 -> 3.8748
B10: HISTÓRICO | C10: ='FLUXO ANUAL'!D10 -> 27265221.04 | D10: ='FLUXO ANUAL'!E10 -> 1566565590 | E10: ='FLUXO ANUAL'!F10 -> ---- | F10: ='FLUXO ANUAL'!G10 -> ---- | G10: ='FLUXO ANUAL'!H10 -> 27265221.04 | H10: ='FLUXO ANUAL'!I10 -> 1566565590 | I10: SALDO FINAL MÊS ANTERIOR | J10: SALDO FINAL MÊS ANTERIOR | K10: SALDO FINAL MÊS ANTERIOR | L10: SALDO FINAL MÊS ANTERIOR | M10: SALDO FINAL MÊS ANTERIOR | N10: SALDO FINAL MÊS ANTERIOR | O10: SALDO FINAL MÊS ANTERIOR | P10: SALDO FINAL MÊS ANTERIOR | Q10: SALDO FINAL MÊS ANTERIOR | R10: SALDO FINAL MÊS ANTERIOR | S10: SALDO FINAL MÊS ANTERIOR | T10: SALDO FINAL MÊS ANTERIOR | U10: SALDO FINAL MÊS ANTERIOR | V10: SALDO FINAL MÊS ANTERIOR | W10: SALDO FINAL MÊS ANTERIOR | X10: SALDO FINAL MÊS ANTERIOR | Y10: SALDO FINAL MÊS ANTERIOR | Z10: SALDO FINAL MÊS ANTERIOR | AA10: SALDO FINAL MÊS ANTERIOR | AB10: SALDO FINAL MÊS ANTERIOR | AC10: SALDO FINAL MÊS ANTERIOR | AD10: SALDO FINAL MÊS ANTERIOR | AE10: SALDO FINAL MÊS ANTERIOR | AF10: SALDO FINAL MÊS ANTERIOR
B11: AJUSTE DO SALDO ANTES DA INADIMPLÊNCIA EM 31/12/2017 REFERENTE A INADIMPLÊNCIA DA LIQUIDAÇÃO CCEE NÃO LANÇADA EM DEZEMBRO/2017 | C11: ='FLUXO ANUAL'!D11 -> -6515529.643 | D11: ='FLUXO ANUAL'!E11 -> -21553372.06 | E11: ='FLUXO ANUAL'!F11 -> 0 | F11: ='FLUXO ANUAL'!G11 -> ---- | G11: ='FLUXO ANUAL'!H11 -> -6515529.643 | H11: ='FLUXO ANUAL'!I11 -> -21553372.06
B12: SALDO ANTES DA INADIMPLÊNCIA ( A ) | C12: ='FLUXO ANUAL'!D12 -> 20749691.4 | D12: ='FLUXO ANUAL'!E12 -> 1545012218 | E12: ='FLUXO ANUAL'!F12 -> 0 | F12: ='FLUXO ANUAL'!G12 -> ---- | G12: ='FLUXO ANUAL'!H12 -> 20749691.4 | H12: ='FLUXO ANUAL'!I12 -> 1545012218 | J12: ='FLUXO ANUAL'!E12 -> 1545012218 | L12: =J60 -> 1511622550 | N12: =L60 -> 1532458918 | P12: =N60 -> 1550044305 | R12: =P60 -> 1427848076 | T12: =R60 -> 1349394342 | V12: =T60 -> 1308334161 | X12: =V60 -> 1418669840 | Z12: =X60 -> 1490704047 | AB12: =Z60 -> 1736786385 | AD12: =AB60 -> 1736096243 | AF12: =AD60 -> 1737538901
B13: SALDO ANTES DA INADIMPLÊNCIA EM: 31/08/2018 ( A ) | C13: ='FLUXO ANUAL'!D13 -> ---- | D13: ='FLUXO ANUAL'!E13 -> ---- | E13: ='FLUXO ANUAL'!F13 -> 65010871.53 | F13: ='FLUXO ANUAL'!G13 -> 1490704047 | G13: ='FLUXO ANUAL'!H13 -> ---- | H13: ='FLUXO ANUAL'!I13 -> ---- | I13: ='FLUXO ANUAL'!J13 -> 20749691.4 | J13: ='FLUXO ANUAL'!K13 -> 1545012218 | K13: ='FLUXO ANUAL'!L13 -> 20918645.73 | L13: ='FLUXO ANUAL'!M13 -> 1511622550 | M13: ='FLUXO ANUAL'!N13 -> 21809287.61 | N13: ='FLUXO ANUAL'!O13 -> 1532458918 | O13: ='FLUXO ANUAL'!P13 -> 22115749.56 | P13: ='FLUXO ANUAL'!Q13 -> 1550044305 | Q13: ='FLUXO ANUAL'!R13 -> -2574353.243 | R13: ='FLUXO ANUAL'!S13 -> 1427848076 | S13: ='FLUXO ANUAL'!T13 -> 15270064.84 | T13: ='FLUXO ANUAL'!U13 -> 1349394342 | U13: ='FLUXO ANUAL'!V13 -> 26856728.8 | V13: ='FLUXO ANUAL'!W13 -> 1308334161 | W13: ='FLUXO ANUAL'!X13 -> 52387354.15 | X13: ='FLUXO ANUAL'!Y13 -> 1418669840 | Y13: ='FLUXO ANUAL'!Z13 -> 65010871.53 | Z13: ='FLUXO ANUAL'!AA13 -> 1490704047 | AA13: ='FLUXO ANUAL'!AB13 -> 126768277.9 | AB13: ='FLUXO ANUAL'!AC13 -> 1736786385 | AC13: ='FLUXO ANUAL'!AD13 -> 136204307.9 | AD13: ='FLUXO ANUAL'!AE13 -> 1736096243 | AE13: ='FLUXO ANUAL'!AF13 -> 108238187.2 | AF13: ='FLUXO ANUAL'!AG13 -> 1737538901
B14: NATUREZA DAS CONTAS | C14: VALORES REALIZADOS DE JANEIRO A AGOSTO/2018 EM US$ | D14: VALORES REALIZADOS DE JANEIRO A AGOSTO/2018 EM R$ | E14: VALORES PREVISTOS DE SETEMBRO A DEZEMBRO/2018 EM US$ | F14: VALORES REALIZADOS DE SETEMBRO A DEZEMBRO/2018 EM R$ | G14: TOTAIS DE JANEIRO A DEZEMBRO/2018 EM US$ | H14: TOTAIS DE JANEIRO A DEZEMBRO/2018 EM R$ | I14: JANEIRO/2018 EM US$ | J14: JANEIRO/2018 EM R$ | K14: FEVEREIRO/2018 EM US$ | L14: FEVEREIRO/2018 EM R$ | M14: MARÇO/2018 EM US$ | N14: MARÇO/2018 EM R$ | O14: ABRIL/2018 EM US$ | P14: ABRIL/2018 EM R$ | Q14: MAIO/2018 EM US$ | R14: MAIO/2018 EM R$ | S14: JUNHO/2018 EM US$ | T14: JUNHO/2018 EM R$ | U14: JULHO/2018 EM US$ | V14: JULHO/2018 EM R$ | W14: AGOSTO/2018 EM US$ | X14: AGOSTO/2018 EM R$ | Y14: SETEMBRO/2018 EM US$ | Z14: SETEMBRO/2018 EM R$ | AA14: OUTUBRO/2018 EM US$ | AB14: OUTUBRO/2018 EM R$ | AC14: NOVEMBRO/2018 EM US$ | AD14: NOVEMBRO/2018 EM R$ | AE14: DEZEMBRO/2018 EM US$ | AF14: DEZEMBRO/2018 EM R$
B18: 01 (+) Faturamento do Repasse da Energia | C18: ='FLUXO ANUAL'!D18 -> 2429149116 | D18: ='FLUXO ANUAL'!E18 -> 8741370399 | E18: ='FLUXO ANUAL'!F18 -> 1204541484 | F18: ='FLUXO ANUAL'!G18 -> 4642288809 | G18: ='FLUXO ANUAL'!H18 -> 3633690600 | H18: ='FLUXO ANUAL'!I18 -> 1.338365921e+10 | I18: ='FLUXO ANUAL'!J18 -> 290823422.1 | J18: ='FLUXO ANUAL'!K18 -> 920776036.8 | K18: ='FLUXO ANUAL'!L18 -> 290266105.7 | L18: ='FLUXO ANUAL'!M18 -> 939968730.2 | M18: ='FLUXO ANUAL'!N18 -> 298069650 | N18: ='FLUXO ANUAL'!O18 -> 994956491.8 | O18: ='FLUXO ANUAL'!P18 -> 301413994.3 | P18: ='FLUXO ANUAL'!Q18 -> 1054255728 | Q18: ='FLUXO ANUAL'!R18 -> 310332450 | R18: ='FLUXO ANUAL'!S18 -> 1157198673 | S18: ='FLUXO ANUAL'!T18 -> 313676850 | T18: ='FLUXO ANUAL'!U18 -> 1208314594 | U18: ='FLUXO ANUAL'!V18 -> 313119422.1 | V18: ='FLUXO ANUAL'!W18 -> 1163677020 | W18: ='FLUXO ANUAL'!X18 -> 311447222.1 | X18: ='FLUXO ANUAL'!Y18 -> 1302223125 | Y18: ='FLUXO ANUAL'!Z18 -> 309775022.1 | Z18: ='FLUXO ANUAL'!AA18 -> 1241950019 | AA18: ='FLUXO ANUAL'!AB18 -> 301971477.9 | AB18: ='FLUXO ANUAL'!AC18 -> 1117717228 | AC18: ='FLUXO ANUAL'!AD18 -> 299184561.5 | AD18: ='FLUXO ANUAL'!AE18 -> 1153895017 | AE18: ='FLUXO ANUAL'!AF18 -> 293610422.1 | AF18: ='FLUXO ANUAL'!AG18 -> 1128726546
B19: 02 (+) Juros referentes ao Repasse da Energia | C19: ='FLUXO ANUAL'!D19 -> 2227551.97 | D19: ='FLUXO ANUAL'!E19 -> 8625940.98 | E19: ='FLUXO ANUAL'!F19 -> 1891828.02 | F19: ='FLUXO ANUAL'!G19 -> 7137037.82 | G19: ='FLUXO ANUAL'!H19 -> 4119379.99 | H19: ='FLUXO ANUAL'!I19 -> 15762978.8 | I19: ='FLUXO ANUAL'!J19 -> 1142016.04 | J19: ='FLUXO ANUAL'!K19 -> 3680493.81 | K19: ='FLUXO ANUAL'!L19 -> 410591.1 | L19: ='FLUXO ANUAL'!M19 -> 1334790.06 | M19: ='FLUXO ANUAL'!N19 -> 131295.58 | N19: ='FLUXO ANUAL'!O19 -> 428754.55 | O19: ='FLUXO ANUAL'!P19 -> 90965.07 | P19: ='FLUXO ANUAL'!Q19 -> 978060.52 | Q19: ='FLUXO ANUAL'!R19 -> 341650.34 | R19: ='FLUXO ANUAL'!S19 -> 1775306.4 | S19: ='FLUXO ANUAL'!T19 -> 11734.96 | T19: ='FLUXO ANUAL'!U19 -> 43791.5 | U19: ='FLUXO ANUAL'!V19 -> 61984.99 | V19: ='FLUXO ANUAL'!W19 -> 237950.29 | W19: ='FLUXO ANUAL'!X19 -> 37313.89 | X19: ='FLUXO ANUAL'!Y19 -> 146793.85 | Y19: ='FLUXO ANUAL'!Z19 -> 155448.76 | Z19: ='FLUXO ANUAL'!AA19 -> 639668.8 | AA19: ='FLUXO ANUAL'!AB19 -> 1556454.91 | AB19: ='FLUXO ANUAL'!AC19 -> 5809103.48 | AC19: ='FLUXO ANUAL'!AD19 -> 74311.7 | AD19: ='FLUXO ANUAL'!AE19 -> 279744.88 | AE19: ='FLUXO ANUAL'!AF19 -> 105612.65 | AF19: ='FLUXO ANUAL'!AG19 -> 408520.66
B20: 03 (+) Juros contratuais do Repasse de ITAIPU sobre créditos renegociados | C20: ='FLUXO ANUAL'!D20 -> 27779399.59 | D20: ='FLUXO ANUAL'!E20 -> 99468258.72 | E20: ='FLUXO ANUAL'!F20 -> 13238630.65 | F20: ='FLUXO ANUAL'!G20 -> 51158712.48 | G20: ='FLUXO ANUAL'!H20 -> 41018030.24 | H20: ='FLUXO ANUAL'!I20 -> 150626971.2 | I20: ='FLUXO ANUAL'!J20 -> 3877758.261 | J20: ='FLUXO ANUAL'!K20 -> 12540438.7 | K20: ='FLUXO ANUAL'!L20 -> 3505806.212 | L20: ='FLUXO ANUAL'!M20 -> 11364297.66 | M20: ='FLUXO ANUAL'!N20 -> 3718588.978 | N20: ='FLUXO ANUAL'!O20 -> 12359846.04 | O20: ='FLUXO ANUAL'!P20 -> 3546448.02 | P20: ='FLUXO ANUAL'!Q20 -> 12345540.21 | Q20: ='FLUXO ANUAL'!R20 -> 3249337.588 | R20: ='FLUXO ANUAL'!S20 -> 12142774.57 | S20: ='FLUXO ANUAL'!T20 -> 3416791.337 | T20: ='FLUXO ANUAL'!U20 -> 13174464.04 | U20: ='FLUXO ANUAL'!V20 -> 3178607.404 | V20: ='FLUXO ANUAL'!W20 -> 11868284.06 | W20: ='FLUXO ANUAL'!X20 -> 3286061.791 | X20: ='FLUXO ANUAL'!Y20 -> 13672613.44 | Y20: ='FLUXO ANUAL'!Z20 -> 3155616.577 | Z20: ='FLUXO ANUAL'!AA20 -> 12634773.21 | AA20: ='FLUXO ANUAL'!AB20 -> 2937515.99 | AB20: ='FLUXO ANUAL'!AC20 -> 10893251.6 | AC20: ='FLUXO ANUAL'!AD20 -> 3634372.959 | AD20: ='FLUXO ANUAL'!AE20 -> 14025780.03 | AE20: ='FLUXO ANUAL'!AF20 -> 3511125.126 | AF20: ='FLUXO ANUAL'!AG20 -> 13604907.64
B21: 04 (+) Rendimento de aplicação financeira B.B. S/A | C21: ='FLUXO ANUAL'!D21 -> 465594.9738 | D21: ='FLUXO ANUAL'!E21 -> 1642955.8 | E21: ='FLUXO ANUAL'!F21 -> 1235948.994 | F21: ='FLUXO ANUAL'!G21 -> 4769077.26 | G21: ='FLUXO ANUAL'!H21 -> 1701543.967 | H21: ='FLUXO ANUAL'!I21 -> 6412033.06 | I21: ='FLUXO ANUAL'!J21 -> 70799.12725 | J21: ='FLUXO ANUAL'!K21 -> 223895.16 | K21: ='FLUXO ANUAL'!L21 -> 39866.44581 | L21: ='FLUXO ANUAL'!M21 -> 129362.63 | M21: ='FLUXO ANUAL'!N21 -> 97377.95295 | N21: ='FLUXO ANUAL'!O21 -> 323664.84 | O21: ='FLUXO ANUAL'!P21 -> 58357.24627 | P21: ='FLUXO ANUAL'!Q21 -> 203147.41 | Q21: ='FLUXO ANUAL'!R21 -> 25039.90902 | R21: ='FLUXO ANUAL'!S21 -> 93574.14 | S21: ='FLUXO ANUAL'!T21 -> 5299.084496 | T21: ='FLUXO ANUAL'!U21 -> 20432.21 | U21: ='FLUXO ANUAL'!V21 -> 129830.5254 | V21: ='FLUXO ANUAL'!W21 -> 487500.64 | W21: ='FLUXO ANUAL'!X21 -> 39024.68261 | X21: ='FLUXO ANUAL'!Y21 -> 161378.77 | Y21: ='FLUXO ANUAL'!Z21 -> 65994.12073 | Z21: ='FLUXO ANUAL'!AA21 -> 264233.86 | AA21: ='FLUXO ANUAL'!AB21 -> 167444.4953 | AB21: ='FLUXO ANUAL'!AC21 -> 622508.4 | AC21: ='FLUXO ANUAL'!AD21 -> 190627.0753 | AD21: ='FLUXO ANUAL'!AE21 -> 736449.58 | AE21: ='FLUXO ANUAL'!AF21 -> 811883.3024 | AF21: ='FLUXO ANUAL'!AG21 -> 3145885.42
B22: 05 (+) Devolução do bônus de ITAIPU | C22: ='FLUXO ANUAL'!D22 -> 0 | D22: ='FLUXO ANUAL'!E22 -> 0 | E22: ='FLUXO ANUAL'!F22 -> 0 | F22: ='FLUXO ANUAL'!G22 -> 0 | G22: ='FLUXO ANUAL'!H22 -> 0 | H22: ='FLUXO ANUAL'!I22 -> 0 | I22: ='FLUXO ANUAL'!J22 -> 0 | J22: ='FLUXO ANUAL'!K22 -> 0 | K22: ='FLUXO ANUAL'!L22 -> 0 | L22: ='FLUXO ANUAL'!M22 -> 0 | M22: ='FLUXO ANUAL'!N22 -> 0 | N22: ='FLUXO ANUAL'!O22 -> 0 | O22: ='FLUXO ANUAL'!P22 -> 0 | P22: ='FLUXO ANUAL'!Q22 -> 0 | Q22: ='FLUXO ANUAL'!R22 -> 0 | R22: ='FLUXO ANUAL'!S22 -> 0 | S22: ='FLUXO ANUAL'!T22 -> 0 | T22: ='FLUXO ANUAL'!U22 -> 0 | U22: ='FLUXO ANUAL'!V22 -> 0 | V22: ='FLUXO ANUAL'!W22 -> 0 | W22: ='FLUXO ANUAL'!X22 -> 0 | X22: ='FLUXO ANUAL'!Y22 -> 0 | Y22: ='FLUXO ANUAL'!Z22 -> 0 | Z22: ='FLUXO ANUAL'!AA22 -> 0 | AA22: ='FLUXO ANUAL'!AB22 -> 0 | AB22: ='FLUXO ANUAL'!AC22 -> 0 | AC22: ='FLUXO ANUAL'!AD22 -> 0 | AD22: ='FLUXO ANUAL'!AE22 -> 0 | AE22: ='FLUXO ANUAL'!AF22 -> 0 | AF22: ='FLUXO ANUAL'!AG22 -> 0
B23: 06 (+) Liquidação CCEE - Venda de Energia | C23: ='FLUXO ANUAL'!D23 -> 143122977.9 | D23: ='FLUXO ANUAL'!E23 -> 485629541.7 | E23: ='FLUXO ANUAL'!F23 -> 36079010.01 | F23: ='FLUXO ANUAL'!G23 -> 216615714.1 | G23: ='FLUXO ANUAL'!H23 -> 179201987.9 | H23: ='FLUXO ANUAL'!I23 -> 702245255.8 | I23: ='FLUXO ANUAL'!J23 -> 34498871.98 | J23: ='FLUXO ANUAL'!K23 -> 109099232.7 | K23: ='FLUXO ANUAL'!L23 -> 27078977.88 | L23: ='FLUXO ANUAL'!M23 -> 87868575.32 | M23: ='FLUXO ANUAL'!N23 -> 31476411.11 | N23: ='FLUXO ANUAL'!O23 -> 104621295.2 | O23: ='FLUXO ANUAL'!P23 -> 23529889.76 | P23: ='FLUXO ANUAL'!Q23 -> 81909899.23 | Q23: ='FLUXO ANUAL'!R23 -> 11678707.91 | R23: ='FLUXO ANUAL'!S23 -> 43643331.45 | S23: ='FLUXO ANUAL'!T23 -> 7107161.575 | T23: ='FLUXO ANUAL'!U23 -> 27403793.6 | U23: ='FLUXO ANUAL'!V23 -> 2569379.193 | V23: ='FLUXO ANUAL'!W23 -> 9647761.93 | W23: ='FLUXO ANUAL'!X23 -> 5183578.507 | X23: ='FLUXO ANUAL'!Y23 -> 21435652.2 | Y23: ='FLUXO ANUAL'!Z23 -> 3401010.16 | Z23: ='FLUXO ANUAL'!AA23 -> 13617304.58 | AA23: ='FLUXO ANUAL'!AB23 -> 16845223.27 | AB23: ='FLUXO ANUAL'!AC23 -> 62625486.56 | AC23: ='FLUXO ANUAL'!AD23 -> 0 | AD23: ='FLUXO ANUAL'!AE23 -> 79024080.24 | AE23: ='FLUXO ANUAL'!AF23 -> 15832776.58 | AF23: ='FLUXO ANUAL'!AG23 -> 61348842.7
B24: 07 (+) Rendimento Aplic. Financ.do Aporte de Garantias Liq.CCEE | C24: ='FLUXO ANUAL'!D24 -> 0 | D24: ='FLUXO ANUAL'!E24 -> 0 | E24: ='FLUXO ANUAL'!F24 -> 0 | F24: ='FLUXO ANUAL'!G24 -> 0 | G24: ='FLUXO ANUAL'!H24 -> 0 | H24: ='FLUXO ANUAL'!I24 -> 0 | I24: ='FLUXO ANUAL'!J24 -> 0 | J24: ='FLUXO ANUAL'!K24 -> 0 | K24: ='FLUXO ANUAL'!L24 -> 0 | L24: ='FLUXO ANUAL'!M24 -> 0 | M24: ='FLUXO ANUAL'!N24 -> 0 | N24: ='FLUXO ANUAL'!O24 -> 0 | O24: ='FLUXO ANUAL'!P24 -> 0 | P24: ='FLUXO ANUAL'!Q24 -> 0 | Q24: ='FLUXO ANUAL'!R24 -> 0 | R24: ='FLUXO ANUAL'!S24 -> 0 | S24: ='FLUXO ANUAL'!T24 -> 0 | T24: ='FLUXO ANUAL'!U24 -> 0 | U24: ='FLUXO ANUAL'!V24 -> 0 | V24: ='FLUXO ANUAL'!W24 -> 0 | W24: ='FLUXO ANUAL'!X24 -> 0 | X24: ='FLUXO ANUAL'!Y24 -> 0 | Y24: ='FLUXO ANUAL'!Z24 -> 0 | Z24: ='FLUXO ANUAL'!AA24 -> 0 | AA24: ='FLUXO ANUAL'!AB24 -> 0 | AB24: ='FLUXO ANUAL'!AC24 -> 0 | AC24: ='FLUXO ANUAL'!AD24 -> 0 | AD24: ='FLUXO ANUAL'!AE24 -> 0 | AE24: ='FLUXO ANUAL'!AF24 -> 0 | AF24: ='FLUXO ANUAL'!AG24 -> 0
B25: 08 (+) Liq. CCEE - Recuperação Inadimplência do Mês Anterior | C25: ='FLUXO ANUAL'!D25 -> 556200121.9 | D25: ='FLUXO ANUAL'!E25 -> 1984734726 | E25: ='FLUXO ANUAL'!F25 -> 113621953 | F25: ='FLUXO ANUAL'!G25 -> 450703267.8 | G25: ='FLUXO ANUAL'!H25 -> 669822074.8 | H25: ='FLUXO ANUAL'!I25 -> 2435437994 | I25: ='FLUXO ANUAL'!J25 -> 6815511.023 | J25: ='FLUXO ANUAL'!K25 -> 21553372.06 | K25: ='FLUXO ANUAL'!L25 -> 37548332.73 | L25: ='FLUXO ANUAL'!M25 -> 121840584.9 | M25: ='FLUXO ANUAL'!N25 -> 60084268.32 | N25: ='FLUXO ANUAL'!O25 -> 199708091 | O25: ='FLUXO ANUAL'!P25 -> 82050330.63 | P25: ='FLUXO ANUAL'!Q25 -> 272718889 | Q25: ='FLUXO ANUAL'!R25 -> 96891164.81 | R25: ='FLUXO ANUAL'!S25 -> 337287833.8 | S25: ='FLUXO ANUAL'!T25 -> 95081938.61 | T25: ='FLUXO ANUAL'!U25 -> 355321204.6 | U25: ='FLUXO ANUAL'!V25 -> 88718744.2 | V25: ='FLUXO ANUAL'!W25 -> 342081733.9 | W25: ='FLUXO ANUAL'!X25 -> 89009831.55 | X25: ='FLUXO ANUAL'!Y25 -> 334223016.5 | Y25: ='FLUXO ANUAL'!Z25 -> 81494523.56 | Z25: ='FLUXO ANUAL'!AA25 -> 326295922.9 | AA25: ='FLUXO ANUAL'!AB25 -> 0 | AB25: ='FLUXO ANUAL'!AC25 -> 0 | AC25: ='FLUXO ANUAL'!AD25 -> 6958131.209 | AD25: ='FLUXO ANUAL'!AE25 -> 26881348.3 | AE25: ='FLUXO ANUAL'!AF25 -> 25169298.18 | AF25: ='FLUXO ANUAL'!AG25 -> 97525996.59
B26: 09 (-) Liq. CCEE - Inadimplência do Mês | C26: ='FLUXO ANUAL'!D26 -> -630730135.8 | D26: ='FLUXO ANUAL'!E26 -> -2289477277 | E26: ='FLUXO ANUAL'!F26 -> -70079752.91 | F26: ='FLUXO ANUAL'!G26 -> -270118784.6 | G26: ='FLUXO ANUAL'!H26 -> -700809888.7 | H26: ='FLUXO ANUAL'!I26 -> -2559596061 | I26: ='FLUXO ANUAL'!J26 -> -38527885.43 | J26: ='FLUXO ANUAL'!K26 -> -121840584.9 | K26: ='FLUXO ANUAL'!L26 -> -61545222.05 | L26: ='FLUXO ANUAL'!M26 -> -199708091 | M26: ='FLUXO ANUAL'!N26 -> -82050330.63 | N26: ='FLUXO ANUAL'!O26 -> -272718889 | O26: ='FLUXO ANUAL'!P26 -> -96891164.81 | P26: ='FLUXO ANUAL'!Q26 -> -337287833.8 | Q26: ='FLUXO ANUAL'!R26 -> -95081938.61 | R26: ='FLUXO ANUAL'!S26 -> -355321204.6 | S26: ='FLUXO ANUAL'!T26 -> -88718744.2 | T26: ='FLUXO ANUAL'!U26 -> -342081733.9 | U26: ='FLUXO ANUAL'!V26 -> -89009831.55 | V26: ='FLUXO ANUAL'!W26 -> -334223016.5 | W26: ='FLUXO ANUAL'!X26 -> -78905018.47 | X26: ='FLUXO ANUAL'!Y26 -> -326295922.9 | Y26: ='FLUXO ANUAL'!Z26 -> 0 | Z26: ='FLUXO ANUAL'!AA26 -> 0 | AA26: ='FLUXO ANUAL'!AB26 -> -7230639.455 | AB26: ='FLUXO ANUAL'!AC26 -> -26881348.3 | AC26: ='FLUXO ANUAL'!AD26 -> -25244220.38 | AD26: ='FLUXO ANUAL'!AE26 -> -97525996.59 | AE26: ='FLUXO ANUAL'!AF26 -> -37604893.08 | AF26: ='FLUXO ANUAL'!AG26 -> -145711439.7
B27: 10 (-) Liquidação CCEE - Compra de Energia | C27: ='FLUXO ANUAL'!D27 -> 0 | D27: ='FLUXO ANUAL'!E27 -> 0 | E27: ='FLUXO ANUAL'!F27 -> 0 | F27: ='FLUXO ANUAL'!G27 -> 0 | G27: ='FLUXO ANUAL'!H27 -> 0 | H27: ='FLUXO ANUAL'!I27 -> 0 | I27: ='FLUXO ANUAL'!J27 -> 0 | J27: ='FLUXO ANUAL'!K27 -> 0 | K27: ='FLUXO ANUAL'!L27 -> 0 | L27: ='FLUXO ANUAL'!M27 -> 0 | M27: ='FLUXO ANUAL'!N27 -> 0 | N27: ='FLUXO ANUAL'!O27 -> 0 | O27: ='FLUXO ANUAL'!P27 -> 0 | P27: ='FLUXO ANUAL'!Q27 -> 0 | Q27: ='FLUXO ANUAL'!R27 -> 0 | R27: ='FLUXO ANUAL'!S27 -> 0 | S27: ='FLUXO ANUAL'!T27 -> 0 | T27: ='FLUXO ANUAL'!U27 -> 0 | U27: ='FLUXO ANUAL'!V27 -> 0 | V27: ='FLUXO ANUAL'!W27 -> 0 | W27: ='FLUXO ANUAL'!X27 -> 0 | X27: ='FLUXO ANUAL'!Y27 -> 0 | Y27: ='FLUXO ANUAL'!Z27 -> 0 | Z27: ='FLUXO ANUAL'!AA27 -> 0 | AA27: ='FLUXO ANUAL'!AB27 -> 0 | AB27: ='FLUXO ANUAL'!AC27 -> 0 | AC27: ='FLUXO ANUAL'!AD27 -> 0 | AD27: ='FLUXO ANUAL'!AE27 -> 0 | AE27: ='FLUXO ANUAL'!AF27 -> 0 | AF27: ='FLUXO ANUAL'!AG27 -> 0
B28: 11 (-) Multa de 2% Pelo Não Aporte das Garantias | C28: ='FLUXO ANUAL'!D28 -> 0 | D28: ='FLUXO ANUAL'!E28 -> 0 | E28: ='FLUXO ANUAL'!F28 -> 0 | F28: ='FLUXO ANUAL'!G28 -> 0 | G28: ='FLUXO ANUAL'!H28 -> 0 | H28: ='FLUXO ANUAL'!I28 -> 0 | I28: ='FLUXO ANUAL'!J28 -> 0 | J28: ='FLUXO ANUAL'!K28 -> 0 | K28: ='FLUXO ANUAL'!L28 -> 0 | L28: ='FLUXO ANUAL'!M28 -> 0 | M28: ='FLUXO ANUAL'!N28 -> 0 | N28: ='FLUXO ANUAL'!O28 -> 0 | O28: ='FLUXO ANUAL'!P28 -> 0 | P28: ='FLUXO ANUAL'!Q28 -> 0 | Q28: ='FLUXO ANUAL'!R28 -> 0 | R28: ='FLUXO ANUAL'!S28 -> 0 | S28: ='FLUXO ANUAL'!T28 -> 0 | T28: ='FLUXO ANUAL'!U28 -> 0 | U28: ='FLUXO ANUAL'!V28 -> 0 | V28: ='FLUXO ANUAL'!W28 -> 0 | W28: ='FLUXO ANUAL'!X28 -> 0 | X28: ='FLUXO ANUAL'!Y28 -> 0 | Y28: ='FLUXO ANUAL'!Z28 -> 0 | Z28: ='FLUXO ANUAL'!AA28 -> 0 | AA28: ='FLUXO ANUAL'!AB28 -> 0 | AB28: ='FLUXO ANUAL'!AC28 -> 0 | AC28: ='FLUXO ANUAL'!AD28 -> 0 | AD28: ='FLUXO ANUAL'!AE28 -> 0 | AE28: ='FLUXO ANUAL'!AF28 -> 0 | AF28: ='FLUXO ANUAL'!AG28 -> 0
B29: 12 (-) Potência Contratada | C29: ='FLUXO ANUAL'!D29 -> -1967741094 | D29: ='FLUXO ANUAL'!E29 -> -7159207301 | E29: ='FLUXO ANUAL'!F29 -> -973337997.8 | F29: ='FLUXO ANUAL'!G29 -> -3681642571 | G29: ='FLUXO ANUAL'!H29 -> -2941079092 | H29: ='FLUXO ANUAL'!I29 -> -1.084084987e+10 | I29: ='FLUXO ANUAL'!J29 -> -235188165.6 | J29: ='FLUXO ANUAL'!K29 -> -743759054.9 | K29: ='FLUXO ANUAL'!L29 -> -235373530.8 | L29: ='FLUXO ANUAL'!M29 -> -763763570.1 | M29: ='FLUXO ANUAL'!N29 -> -241497859.6 | N29: ='FLUXO ANUAL'!O29 -> -802690585.7 | O29: ='FLUXO ANUAL'!P29 -> -244334476 | P29: ='FLUXO ANUAL'!Q29 -> -931801287.8 | Q29: ='FLUXO ANUAL'!R29 -> -251158817.2 | R29: ='FLUXO ANUAL'!S29 -> -938580499.9 | S29: ='FLUXO ANUAL'!T29 -> -254238926 | T29: ='FLUXO ANUAL'!U29 -> -983701252.5 | U29: ='FLUXO ANUAL'!V29 -> -253889326.6 | V29: ='FLUXO ANUAL'!W29 -> -952567364.5 | W29: ='FLUXO ANUAL'!X29 -> -252059992.2 | X29: ='FLUXO ANUAL'!Y29 -> -1042343686 | Y29: ='FLUXO ANUAL'!Z29 -> -250687042.2 | Z29: ='FLUXO ANUAL'!AA29 -> -1003725848 | AA29: ='FLUXO ANUAL'!AB29 -> -243005889.8 | AB29: ='FLUXO ANUAL'!AC29 -> -903422996.5 | AC29: ='FLUXO ANUAL'!AD29 -> -242298374.2 | AD29: ='FLUXO ANUAL'!AE29 -> -936071309 | AE29: ='FLUXO ANUAL'!AF29 -> -237346691.6 | AF29: ='FLUXO ANUAL'!AG29 -> -838422417.2
B30: 13 (-) Energia Cedida Fator 15,3 (Pagamento à ITAIPU) | C30: ='FLUXO ANUAL'!D30 -> -100874150.9 | D30: ='FLUXO ANUAL'!E30 -> -357622629.4 | E30: ='FLUXO ANUAL'!F30 -> -50125402.62 | F30: ='FLUXO ANUAL'!G30 -> -192935348.6 | G30: ='FLUXO ANUAL'!H30 -> -150999553.5 | H30: ='FLUXO ANUAL'!I30 -> -550557978.1 | I30: ='FLUXO ANUAL'!J30 -> -15359701.6 | J30: ='FLUXO ANUAL'!K30 -> -48573520.34 | K30: ='FLUXO ANUAL'!L30 -> -13442449.98 | L30: ='FLUXO ANUAL'!M30 -> -43619405.94 | M30: ='FLUXO ANUAL'!N30 -> -16199284 | N30: ='FLUXO ANUAL'!O30 -> -53843180.16 | O30: ='FLUXO ANUAL'!P30 -> -13310010.83 | P30: ='FLUXO ANUAL'!Q30 -> -46333478.7 | Q30: ='FLUXO ANUAL'!R30 -> -11154998.22 | R30: ='FLUXO ANUAL'!S30 -> -41686228.35 | S30: ='FLUXO ANUAL'!T30 -> -10138497.7 | T30: ='FLUXO ANUAL'!U30 -> -39227875.3 | U30: ='FLUXO ANUAL'!V30 -> -9504777.76 | V30: ='FLUXO ANUAL'!W30 -> -35689490.01 | W30: ='FLUXO ANUAL'!X30 -> -11764430.79 | X30: ='FLUXO ANUAL'!Y30 -> -48649450.65 | Y30: ='FLUXO ANUAL'!Z30 -> -9298247.47 | Z30: ='FLUXO ANUAL'!AA30 -> -34847971.87 | AA30: ='FLUXO ANUAL'!AB30 -> -14199657.7 | AB30: ='FLUXO ANUAL'!AC30 -> -55080472.22 | AC30: ='FLUXO ANUAL'!AD30 -> -14723704.44 | AD30: ='FLUXO ANUAL'!AE30 -> -56882087.36 | AE30: ='FLUXO ANUAL'!AF30 -> -11903793.01 | AF30: ='FLUXO ANUAL'!AG30 -> -46124817.16
B31: 14 (-) Royalties Sobre Energia Cedida | C31: ='FLUXO ANUAL'!D31 -> -24255027.14 | D31: ='FLUXO ANUAL'!E31 -> -79885601.95 | E31: ='FLUXO ANUAL'!F31 -> -10981655.03 | F31: ='FLUXO ANUAL'!G31 -> -42156188.85 | G31: ='FLUXO ANUAL'!H31 -> -35236682.17 | H31: ='FLUXO ANUAL'!I31 -> -122041790.8 | I31: ='FLUXO ANUAL'!J31 -> -6728160.92 | J31: ='FLUXO ANUAL'!K31 -> -21277136.09 | K31: ='FLUXO ANUAL'!L31 -> -5767898.96 | L31: ='FLUXO ANUAL'!M31 -> -18716255.34 | M31: ='FLUXO ANUAL'!N31 -> -7297940.54 | N31: ='FLUXO ANUAL'!O31 -> -24256894.77 | O31: ='FLUXO ANUAL'!P31 -> -4062160.18 | P31: ='FLUXO ANUAL'!Q31 -> -14140785.8 | Q31: ='FLUXO ANUAL'!R31 -> -388910.01 | R31: ='FLUXO ANUAL'!S31 -> -1453356.71 | S31: ='FLUXO ANUAL'!T31 -> 0 | T31: ='FLUXO ANUAL'!U31 -> 0 | U31: ='FLUXO ANUAL'!V31 -> 0 | V31: ='FLUXO ANUAL'!W31 -> 0 | W31: ='FLUXO ANUAL'!X31 -> -9956.53 | X31: ='FLUXO ANUAL'!Y31 -> -41173.24 | Y31: ='FLUXO ANUAL'!Z31 -> 0 | Z31: ='FLUXO ANUAL'!AA31 -> 0 | AA31: ='FLUXO ANUAL'!AB31 -> -2071540.15 | AB31: ='FLUXO ANUAL'!AC31 -> -7701364.82 | AC31: ='FLUXO ANUAL'!AD31 -> -6094705.22 | AD31: ='FLUXO ANUAL'!AE31 -> -23545674.68 | AE31: ='FLUXO ANUAL'!AF31 -> -2815409.66 | AF31: ='FLUXO ANUAL'!AG31 -> -10909149.35
B32: 15 (-) Ressarcimento Encargos Supervisão | C32: ='FLUXO ANUAL'!D32 -> -1865771.32 | D32: ='FLUXO ANUAL'!E32 -> -6145046.3 | E32: ='FLUXO ANUAL'!F32 -> -844742.69 | F32: ='FLUXO ANUAL'!G32 -> -3448016.1 | G32: ='FLUXO ANUAL'!H32 -> -2710514.01 | H32: ='FLUXO ANUAL'!I32 -> -9593062.4 | I32: ='FLUXO ANUAL'!J32 -> -517550.84 | J32: ='FLUXO ANUAL'!K32 -> -1636702.78 | K32: ='FLUXO ANUAL'!L32 -> -443684.54 | L32: ='FLUXO ANUAL'!M32 -> -1439711.96 | M32: ='FLUXO ANUAL'!N32 -> -561380.04 | N32: ='FLUXO ANUAL'!O32 -> -1865914.98 | O32: ='FLUXO ANUAL'!P32 -> -312473.86 | P32: ='FLUXO ANUAL'!Q32 -> -1087752.75 | Q32: ='FLUXO ANUAL'!R32 -> -29916.15 | R32: ='FLUXO ANUAL'!S32 -> -111796.65 | S32: ='FLUXO ANUAL'!T32 -> 0 | T32: ='FLUXO ANUAL'!U32 -> 0 | U32: ='FLUXO ANUAL'!V32 -> 0 | V32: ='FLUXO ANUAL'!W32 -> 0 | W32: ='FLUXO ANUAL'!X32 -> -765.89 | X32: ='FLUXO ANUAL'!Y32 -> -3167.18 | Y32: ='FLUXO ANUAL'!Z32 -> 0 | Z32: ='FLUXO ANUAL'!AA32 -> 0 | AA32: ='FLUXO ANUAL'!AB32 -> -159349.24 | AB32: ='FLUXO ANUAL'!AC32 -> -618115.7 | AC32: ='FLUXO ANUAL'!AD32 -> -468823.48 | AD32: ='FLUXO ANUAL'!AE32 -> -1811205.75 | AE32: ='FLUXO ANUAL'!AF32 -> -216569.97 | AF32: ='FLUXO ANUAL'!AG32 -> -1018694.65
B33: 16 (-) Ajuste do dólar Energia Cedida Fator 15,3 (Pagamento à Itaipu) | C33: ='FLUXO ANUAL'!D33 -> -114400492 | D33: ='FLUXO ANUAL'!E33 -> -372234890.8 | E33: ='FLUXO ANUAL'!F33 -> -57200246.08 | F33: ='FLUXO ANUAL'!G33 -> -185855039.6 | G33: ='FLUXO ANUAL'!H33 -> -171600738.1 | H33: ='FLUXO ANUAL'!I33 -> -558089930.4 | I33: ='FLUXO ANUAL'!J33 -> -14300061.5 | J33: ='FLUXO ANUAL'!K33 -> -46988572.08 | K33: ='FLUXO ANUAL'!L33 -> -14300061.5 | L33: ='FLUXO ANUAL'!M33 -> -46463759.82 | M33: ='FLUXO ANUAL'!N33 -> -14300061.5 | N33: ='FLUXO ANUAL'!O33 -> -46463759.82 | O33: ='FLUXO ANUAL'!P33 -> -14300061.5 | P33: ='FLUXO ANUAL'!Q33 -> -46463759.82 | Q33: ='FLUXO ANUAL'!R33 -> -14300061.5 | R33: ='FLUXO ANUAL'!S33 -> -46463759.82 | S33: ='FLUXO ANUAL'!T33 -> -14300061.5 | T33: ='FLUXO ANUAL'!U33 -> -46463759.82 | U33: ='FLUXO ANUAL'!V33 -> -14300061.5 | V33: ='FLUXO ANUAL'!W33 -> -46463759.83 | W33: ='FLUXO ANUAL'!X33 -> -14300061.5 | X33: ='FLUXO ANUAL'!Y33 -> -46463759.82 | Y33: ='FLUXO ANUAL'!Z33 -> -14300061.5 | Z33: ='FLUXO ANUAL'!AA33 -> -46463759.82 | AA33: ='FLUXO ANUAL'!AB33 -> -14300061.5 | AB33: ='FLUXO ANUAL'!AC33 -> -46463759.83 | AC33: ='FLUXO ANUAL'!AD33 -> -14300061.5 | AD33: ='FLUXO ANUAL'!AE33 -> -46463759.83 | AE33: ='FLUXO ANUAL'!AF33 -> -14300061.58 | AF33: ='FLUXO ANUAL'!AG33 -> -46463760.09
B34: 17 (-) Ajuste do dólar - Royalties Sobre Cessão de Energia | C34: ='FLUXO ANUAL'!D34 -> -28161243.76 | D34: ='FLUXO ANUAL'!E34 -> -91630702.91 | E34: ='FLUXO ANUAL'!F34 -> -14080621.94 | F34: ='FLUXO ANUAL'!G34 -> -45750756.8 | G34: ='FLUXO ANUAL'!H34 -> -42241865.7 | H34: ='FLUXO ANUAL'!I34 -> -137381459.7 | I34: ='FLUXO ANUAL'!J34 -> -3520155.47 | J34: ='FLUXO ANUAL'!K34 -> -11566878.86 | K34: ='FLUXO ANUAL'!L34 -> -3520155.47 | L34: ='FLUXO ANUAL'!M34 -> -11437689.15 | M34: ='FLUXO ANUAL'!N34 -> -3520155.47 | N34: ='FLUXO ANUAL'!O34 -> -11437689.15 | O34: ='FLUXO ANUAL'!P34 -> -3520155.47 | P34: ='FLUXO ANUAL'!Q34 -> -11437689.15 | Q34: ='FLUXO ANUAL'!R34 -> -3520155.47 | R34: ='FLUXO ANUAL'!S34 -> -11437689.15 | S34: ='FLUXO ANUAL'!T34 -> -3520155.47 | T34: ='FLUXO ANUAL'!U34 -> -11437689.15 | U34: ='FLUXO ANUAL'!V34 -> -3520155.47 | V34: ='FLUXO ANUAL'!W34 -> -11437689.15 | W34: ='FLUXO ANUAL'!X34 -> -3520155.47 | X34: ='FLUXO ANUAL'!Y34 -> -11437689.15 | Y34: ='FLUXO ANUAL'!Z34 -> -3520155.47 | Z34: ='FLUXO ANUAL'!AA34 -> -11437689.15 | AA34: ='FLUXO ANUAL'!AB34 -> -3520155.47 | AB34: ='FLUXO ANUAL'!AC34 -> -11437689.15 | AC34: ='FLUXO ANUAL'!AD34 -> -3520155.47 | AD34: ='FLUXO ANUAL'!AE34 -> -11437689.15 | AE34: ='FLUXO ANUAL'!AF34 -> -3520155.53 | AF34: ='FLUXO ANUAL'!AG34 -> -11437689.35
B35: 18 (-) Ajuste do dólar - Ressarcimento de Encargos | C35: ='FLUXO ANUAL'!D35 -> -2166249.52 | D35: ='FLUXO ANUAL'!E35 -> -7048515.59 | E35: ='FLUXO ANUAL'!F35 -> -1083124.76 | F35: ='FLUXO ANUAL'!G35 -> -3519288.96 | G35: ='FLUXO ANUAL'!H35 -> -3249374.28 | H35: ='FLUXO ANUAL'!I35 -> -10567804.55 | I35: ='FLUXO ANUAL'!J35 -> -270781.19 | J35: ='FLUXO ANUAL'!K35 -> -889759.91 | K35: ='FLUXO ANUAL'!L35 -> -270781.19 | L35: ='FLUXO ANUAL'!M35 -> -879822.24 | M35: ='FLUXO ANUAL'!N35 -> -270781.19 | N35: ='FLUXO ANUAL'!O35 -> -879822.24 | O35: ='FLUXO ANUAL'!P35 -> -270781.19 | P35: ='FLUXO ANUAL'!Q35 -> -879822.24 | Q35: ='FLUXO ANUAL'!R35 -> -270781.19 | R35: ='FLUXO ANUAL'!S35 -> -879822.24 | S35: ='FLUXO ANUAL'!T35 -> -270781.19 | T35: ='FLUXO ANUAL'!U35 -> -879822.24 | U35: ='FLUXO ANUAL'!V35 -> -270781.19 | V35: ='FLUXO ANUAL'!W35 -> -879822.24 | W35: ='FLUXO ANUAL'!X35 -> -270781.19 | X35: ='FLUXO ANUAL'!Y35 -> -879822.24 | Y35: ='FLUXO ANUAL'!Z35 -> -270781.19 | Z35: ='FLUXO ANUAL'!AA35 -> -879822.24 | AA35: ='FLUXO ANUAL'!AB35 -> -270781.19 | AB35: ='FLUXO ANUAL'!AC35 -> -879822.24 | AC35: ='FLUXO ANUAL'!AD35 -> -270781.19 | AD35: ='FLUXO ANUAL'!AE35 -> -879822.24 | AE35: ='FLUXO ANUAL'!AF35 -> -270781.19 | AF35: ='FLUXO ANUAL'!AG35 -> -879822.24
B36: 19 (-) Juros da Potência , Cessão, Royalties, Ressarcimento e de todos os Ajustes do Dólar | C36: ='FLUXO ANUAL'!D36 -> -3926121.349 | D36: ='FLUXO ANUAL'!E36 -> -12580831.92 | E36: ='FLUXO ANUAL'!F36 -> 0 | F36: ='FLUXO ANUAL'!G36 -> 0 | G36: ='FLUXO ANUAL'!H36 -> -3926121.349 | H36: ='FLUXO ANUAL'!I36 -> -12580831.92 | I36: ='FLUXO ANUAL'!J36 -> -1929692.91 | J36: ='FLUXO ANUAL'!K36 -> -6102460.86 | K36: ='FLUXO ANUAL'!L36 -> -1995884.52 | L36: ='FLUXO ANUAL'!M36 -> -6476445.68 | M36: ='FLUXO ANUAL'!N36 -> -271.3460497 | N36: ='FLUXO ANUAL'!O36 -> -901.9 | O36: ='FLUXO ANUAL'!P36 -> 0 | P36: ='FLUXO ANUAL'!Q36 -> 0 | Q36: ='FLUXO ANUAL'!R36 -> 0 | R36: ='FLUXO ANUAL'!S36 -> 0 | S36: ='FLUXO ANUAL'!T36 -> 0 | T36: ='FLUXO ANUAL'!U36 -> 0 | U36: ='FLUXO ANUAL'!V36 -> -272.5718395 | V36: ='FLUXO ANUAL'!W36 -> -1023.48 | W36: ='FLUXO ANUAL'!X36 -> 0 | X36: ='FLUXO ANUAL'!Y36 -> 0 | Y36: ='FLUXO ANUAL'!Z36 -> 0 | Z36: ='FLUXO ANUAL'!AA36 -> 0 | AA36: ='FLUXO ANUAL'!AB36 -> 0 | AB36: ='FLUXO ANUAL'!AC36 -> 0 | AC36: ='FLUXO ANUAL'!AD36 -> 0 | AD36: ='FLUXO ANUAL'!AE36 -> 0 | AE36: ='FLUXO ANUAL'!AF36 -> 0 | AF36: ='FLUXO ANUAL'!AG36 -> 0
B37: 20 (-) Cessão FM 10.2 + Ajuste do Dólar Cessão FM 10.2 (Pagamento ao Tesouro) | C37: ='FLUXO ANUAL'!D37 -> 0 | D37: ='FLUXO ANUAL'!E37 -> 0 | E37: ='FLUXO ANUAL'!F37 -> 0 | F37: ='FLUXO ANUAL'!G37 -> 0 | G37: ='FLUXO ANUAL'!H37 -> 0 | H37: ='FLUXO ANUAL'!I37 -> 0 | I37: ='FLUXO ANUAL'!J37 -> 0 | J37: ='FLUXO ANUAL'!K37 -> 0 | K37: ='FLUXO ANUAL'!L37 -> 0 | L37: ='FLUXO ANUAL'!M37 -> 0 | M37: ='FLUXO ANUAL'!N37 -> 0 | N37: ='FLUXO ANUAL'!O37 -> 0 | O37: ='FLUXO ANUAL'!P37 -> 0 | P37: ='FLUXO ANUAL'!Q37 -> 0 | Q37: ='FLUXO ANUAL'!R37 -> 0 | R37: ='FLUXO ANUAL'!S37 -> 0 | S37: ='FLUXO ANUAL'!T37 -> 0 | T37: ='FLUXO ANUAL'!U37 -> 0 | U37: ='FLUXO ANUAL'!V37 -> 0 | V37: ='FLUXO ANUAL'!W37 -> 0 | W37: ='FLUXO ANUAL'!X37 -> 0 | X37: ='FLUXO ANUAL'!Y37 -> 0 | Y37: ='FLUXO ANUAL'!Z37 -> 0 | Z37: ='FLUXO ANUAL'!AA37 -> 0 | AA37: ='FLUXO ANUAL'!AB37 -> 0 | AB37: ='FLUXO ANUAL'!AC37 -> 0 | AC37: ='FLUXO ANUAL'!AD37 -> 0 | AD37: ='FLUXO ANUAL'!AE37 -> 0 | AE37: ='FLUXO ANUAL'!AF37 -> 0 | AF37: ='FLUXO ANUAL'!AG37 -> 0
B38: 21 (-) Despesas SELIC da Cessão + Aj. Do Dólar FM 10.2 (Pagamento ao Tesouro) | C38: ='FLUXO ANUAL'!D38 -> 0 | D38: ='FLUXO ANUAL'!E38 -> 0 | E38: ='FLUXO ANUAL'!F38 -> 0 | F38: ='FLUXO ANUAL'!G38 -> 0 | G38: ='FLUXO ANUAL'!H38 -> 0 | H38: ='FLUXO ANUAL'!I38 -> 0 | I38: ='FLUXO ANUAL'!J38 -> 0 | J38: ='FLUXO ANUAL'!K38 -> 0 | K38: ='FLUXO ANUAL'!L38 -> 0 | L38: ='FLUXO ANUAL'!M38 -> 0 | M38: ='FLUXO ANUAL'!N38 -> 0 | N38: ='FLUXO ANUAL'!O38 -> 0 | O38: ='FLUXO ANUAL'!P38 -> 0 | P38: ='FLUXO ANUAL'!Q38 -> 0 | Q38: ='FLUXO ANUAL'!R38 -> 0 | R38: ='FLUXO ANUAL'!S38 -> 0 | S38: ='FLUXO ANUAL'!T38 -> 0 | T38: ='FLUXO ANUAL'!U38 -> 0 | U38: ='FLUXO ANUAL'!V38 -> 0 | V38: ='FLUXO ANUAL'!W38 -> 0 | W38: ='FLUXO ANUAL'!X38 -> 0 | X38: ='FLUXO ANUAL'!Y38 -> 0 | Y38: ='FLUXO ANUAL'!Z38 -> 0 | Z38: ='FLUXO ANUAL'!AA38 -> 0 | AA38: ='FLUXO ANUAL'!AB38 -> 0 | AB38: ='FLUXO ANUAL'!AC38 -> 0 | AC38: ='FLUXO ANUAL'!AD38 -> 0 | AD38: ='FLUXO ANUAL'!AE38 -> 0 | AE38: ='FLUXO ANUAL'!AF38 -> 0 | AF38: ='FLUXO ANUAL'!AG38 -> 0
B39: 22 (+/-) Juros Pagos dos Empréstimos Obtidos por ITAIPU Junto à ELETROBRAS e juros por atraso de transferência da CCEE | C39: ='FLUXO ANUAL'!D39 -> -1455174.838 | D39: ='FLUXO ANUAL'!E39 -> -5131584.95 | E39: ='FLUXO ANUAL'!F39 -> -286503.3766 | F39: ='FLUXO ANUAL'!G39 -> -1139586.43 | G39: ='FLUXO ANUAL'!H39 -> -1741678.215 | H39: ='FLUXO ANUAL'!I39 -> -6271171.38 | I39: ='FLUXO ANUAL'!J39 -> -13305.59701 | J39: ='FLUXO ANUAL'!K39 -> -42077.62 | K39: ='FLUXO ANUAL'!L39 -> -632825.6711 | L39: ='FLUXO ANUAL'!M39 -> -2053456.02 | M39: ='FLUXO ANUAL'!N39 -> -8968.836873 | N39: ='FLUXO ANUAL'!O39 -> -29810.62 | O39: ='FLUXO ANUAL'!P39 -> 0 | P39: ='FLUXO ANUAL'!Q39 -> 0 | Q39: ='FLUXO ANUAL'!R39 -> -403188.9323 | R39: ='FLUXO ANUAL'!S39 -> -1506717.04 | S39: ='FLUXO ANUAL'!T39 -> -51441.4674 | T39: ='FLUXO ANUAL'!U39 -> -198348.01 | U39: ='FLUXO ANUAL'!V39 -> -334753.7112 | V39: ='FLUXO ANUAL'!W39 -> -1256966.71 | W39: ='FLUXO ANUAL'!X39 -> -10690.6222 | X39: ='FLUXO ANUAL'!Y39 -> -44208.93 | Y39: ='FLUXO ANUAL'!Z39 -> -260142.6509 | Z39: ='FLUXO ANUAL'!AA39 -> -1041585.16 | AA39: ='FLUXO ANUAL'!AB39 -> -26360.72572 | AB39: ='FLUXO ANUAL'!AC39 -> -98001.27 | AC39: ='FLUXO ANUAL'!AD39 -> 0 | AD39: ='FLUXO ANUAL'!AE39 -> 0 | AE39: ='FLUXO ANUAL'!AF39 -> 0 | AF39: ='FLUXO ANUAL'!AG39 -> 0
B40: 23 (-) Ativo Regulatório - Tesouro | C40: ='FLUXO ANUAL'!D40 -> -134136064.1 | D40: ='FLUXO ANUAL'!E40 -> -480298193.1 | E40: ='FLUXO ANUAL'!F40 -> -72403948.92 | F40: ='FLUXO ANUAL'!G40 -> -279840659.2 | G40: ='FLUXO ANUAL'!H40 -> -206540013 | H40: ='FLUXO ANUAL'!I40 -> -760138852.3 | I40: ='FLUXO ANUAL'!J40 -> -12765070.35 | J40: ='FLUXO ANUAL'!K40 -> -40907369.95 | K40: ='FLUXO ANUAL'!L40 -> -12765070.4 | L40: ='FLUXO ANUAL'!M40 -> -41453289.62 | M40: ='FLUXO ANUAL'!N40 -> -12067324.82 | N40: ='FLUXO ANUAL'!O40 -> -39464375.73 | O40: ='FLUXO ANUAL'!P40 -> -18100987.23 | P40: ='FLUXO ANUAL'!Q40 -> -61011187.56 | Q40: ='FLUXO ANUAL'!R40 -> -24134649.64 | R40: ='FLUXO ANUAL'!S40 -> -87817542.91 | S40: ='FLUXO ANUAL'!T40 -> -18100987.23 | T40: ='FLUXO ANUAL'!U40 -> -68773494.25 | U40: ='FLUXO ANUAL'!V40 -> -18100987.23 | V40: ='FLUXO ANUAL'!W40 -> -69207917.94 | W40: ='FLUXO ANUAL'!X40 -> -18100987.23 | X40: ='FLUXO ANUAL'!Y40 -> -71663015.18 | Y40: ='FLUXO ANUAL'!Z40 -> -18100987.23 | Z40: ='FLUXO ANUAL'!AA40 -> -74123542.71 | AA40: ='FLUXO ANUAL'!AB40 -> -18100987.23 | AB40: ='FLUXO ANUAL'!AC40 -> -66875907.42 | AC40: ='FLUXO ANUAL'!AD40 -> -18100987.23 | AD40: ='FLUXO ANUAL'!AE40 -> -68558695.87 | AE40: ='FLUXO ANUAL'!AF40 -> -18100987.23 | AF40: ='FLUXO ANUAL'!AG40 -> -70282513.22
B41: 24 (-) Ativo Regulatório - Eletrobrás | C41: ='FLUXO ANUAL'!D41 -> -80081261.7 | D41: ='FLUXO ANUAL'!E41 -> -286654048.1 | E41: ='FLUXO ANUAL'!F41 -> -43220836.56 | F41: ='FLUXO ANUAL'!G41 -> -167110483.2 | G41: ='FLUXO ANUAL'!H41 -> -123302098.3 | H41: ='FLUXO ANUAL'!I41 -> -453764531.2 | I41: ='FLUXO ANUAL'!J41 -> -7625003.43 | J41: ='FLUXO ANUAL'!K41 -> -24435340.16 | K41: ='FLUXO ANUAL'!L41 -> -7625003.43 | L41: ='FLUXO ANUAL'!M41 -> -24673748.6 | M41: ='FLUXO ANUAL'!N41 -> -7203472.76 | N41: ='FLUXO ANUAL'!O41 -> -23557877.14 | O41: ='FLUXO ANUAL'!P41 -> -10805209.14 | P41: ='FLUXO ANUAL'!Q41 -> -36420037.93 | Q41: ='FLUXO ANUAL'!R41 -> -14406945.52 | R41: ='FLUXO ANUAL'!S41 -> -52421832.32 | S41: ='FLUXO ANUAL'!T41 -> -10805209.14 | T41: ='FLUXO ANUAL'!U41 -> -41053671.78 | U41: ='FLUXO ANUAL'!V41 -> -10805209.14 | V41: ='FLUXO ANUAL'!W41 -> -41312996.8 | W41: ='FLUXO ANUAL'!X41 -> -10805209.14 | X41: ='FLUXO ANUAL'!Y41 -> -42778543.33 | Y41: ='FLUXO ANUAL'!Z41 -> -10805209.14 | Z41: ='FLUXO ANUAL'!AA41 -> -44247331.42 | AA41: ='FLUXO ANUAL'!AB41 -> -10805209.14 | AB41: ='FLUXO ANUAL'!AC41 -> -39920925.69 | AC41: ='FLUXO ANUAL'!AD41 -> -10805209.14 | AD41: ='FLUXO ANUAL'!AE41 -> -40939136.57 | AE41: ='FLUXO ANUAL'!AF41 -> -10805209.14 | AF41: ='FLUXO ANUAL'!AG41 -> -42003089.49
B42: NATUREZA DAS CONTAS | C42: =C14 -> VALORES REALIZADOS DE JANEIRO A AGOSTO/2018 EM US$ | D42: VALORES REALIZADOS DE JANEIRO A AGOSTO/2018 EM R$ | E42: VALORES PREVISTOS DE SETEMBRO A DEZEMBRO/2018 EM US$ | F42: VALORES REALIZADOS DE SETEMBRO A DEZEMBRO/2018 EM R$ | G42: TOTAIS DE JANEIRO A DEZEMBRO/2018 EM US$ | H42: TOTAIS DE JANEIRO A DEZEMBRO/2018 EM R$ | I42: JANEIRO/2018 EM US$ | J42: ='FLUXO ANUAL'!K42 -> JANEIRO/2018 EM R$ | K42: ='FLUXO ANUAL'!L42 -> FEVEREIRO/2018 EM US$ | L42: ='FLUXO ANUAL'!M42 -> FEVEREIRO/2018 EM R$ | M42: ='FLUXO ANUAL'!N42 -> MARÇO/2018 EM US$ | N42: ='FLUXO ANUAL'!O42 -> MARÇO/2018 EM R$ | O42: ='FLUXO ANUAL'!P42 -> ABRIL/2018 EM US$ | P42: ='FLUXO ANUAL'!Q42 -> ABRIL/2018 EM R$ | Q42: ='FLUXO ANUAL'!R42 -> MAIO/2018 EM US$ | R42: ='FLUXO ANUAL'!S42 -> MAIO/2018 EM R$ | S42: ='FLUXO ANUAL'!T42 -> JUNHO/2018 EM US$ | T42: ='FLUXO ANUAL'!U42 -> JUNHO/2018 EM R$ | U42: ='FLUXO ANUAL'!V42 -> JULHO/2018 EM US$ | V42: ='FLUXO ANUAL'!W42 -> JULHO/2018 EM R$ | W42: ='FLUXO ANUAL'!X42 -> AGOSTO/2018 EM US$ | X42: ='FLUXO ANUAL'!Y42 -> AGOSTO/2018 EM R$ | Y42: ='FLUXO ANUAL'!Z42 -> SETEMBRO/2018 EM US$ | Z42: ='FLUXO ANUAL'!AA42 -> SETEMBRO/2018 EM R$ | AA42: ='FLUXO ANUAL'!AB42 -> OUTUBRO/2018 EM US$ | AB42: ='FLUXO ANUAL'!AC42 -> OUTUBRO/2018 EM R$ | AC42: ='FLUXO ANUAL'!AD42 -> NOVEMBRO/2018 EM US$ | AD42: ='FLUXO ANUAL'!AE42 -> NOVEMBRO/2018 EM R$ | AE42: ='FLUXO ANUAL'!AF42 -> DEZEMBRO/2018 EM US$ | AF42: ='FLUXO ANUAL'!AG42 -> DEZEMBRO/2018 EM R$
I43: =+J43/J$9 -> 0 | J43: ='FLUXO ANUAL'!K43 -> 0 | K43: ='FLUXO ANUAL'!L43 -> 0 | L43: ='FLUXO ANUAL'!M43 -> 0 | M43: ='FLUXO ANUAL'!N43 -> 0 | N43: ='FLUXO ANUAL'!O43 -> 0 | O43: ='FLUXO ANUAL'!P43 -> 0 | P43: ='FLUXO ANUAL'!Q43 -> 0 | Q43: ='FLUXO ANUAL'!R43 -> 0 | R43: ='FLUXO ANUAL'!S43 -> 0 | S43: ='FLUXO ANUAL'!T43 -> 0 | T43: ='FLUXO ANUAL'!U43 -> 0 | U43: ='FLUXO ANUAL'!V43 -> 0 | V43: ='FLUXO ANUAL'!W43 -> 0 | W43: ='FLUXO ANUAL'!X43 -> 0 | X43: ='FLUXO ANUAL'!Y43 -> 0 | Y43: ='FLUXO ANUAL'!Z43 -> 0 | Z43: ='FLUXO ANUAL'!AA43 -> 0 | AA43: ='FLUXO ANUAL'!AB43 -> 0 | AB43: ='FLUXO ANUAL'!AC43 -> 0 | AC43: ='FLUXO ANUAL'!AD43 -> 0 | AD43: ='FLUXO ANUAL'!AE43 -> 0 | AE43: ='FLUXO ANUAL'!AF43 -> 0 | AF43: ='FLUXO ANUAL'!AG43 -> 0
I44: 0 | J44: ='FLUXO ANUAL'!K44 -> 0 | K44: ='FLUXO ANUAL'!L44 -> 0 | L44: ='FLUXO ANUAL'!M44 -> 0 | M44: ='FLUXO ANUAL'!N44 -> 0 | N44: ='FLUXO ANUAL'!O44 -> 0 | O44: ='FLUXO ANUAL'!P44 -> 0 | P44: ='FLUXO ANUAL'!Q44 -> 0 | Q44: ='FLUXO ANUAL'!R44 -> 0 | R44: ='FLUXO ANUAL'!S44 -> 0 | S44: ='FLUXO ANUAL'!T44 -> 0 | T44: ='FLUXO ANUAL'!U44 -> 0 | U44: ='FLUXO ANUAL'!V44 -> 0 | V44: ='FLUXO ANUAL'!W44 -> 0 | W44: ='FLUXO ANUAL'!X44 -> 0 | X44: ='FLUXO ANUAL'!Y44 -> 0 | Y44: ='FLUXO ANUAL'!Z44 -> 0 | Z44: ='FLUXO ANUAL'!AA44 -> 0 | AA44: ='FLUXO ANUAL'!AB44 -> 0 | AB44: ='FLUXO ANUAL'!AC44 -> 0 | AC44: ='FLUXO ANUAL'!AD44 -> 0 | AD44: ='FLUXO ANUAL'!AE44 -> 0 | AE44: ='FLUXO ANUAL'!AF44 -> 0 | AF44: ='FLUXO ANUAL'!AG44 -> 0
I45: 0 | J45: ='FLUXO ANUAL'!K45 -> 0 | K45: ='FLUXO ANUAL'!L45 -> 0 | L45: ='FLUXO ANUAL'!M45 -> 0 | M45: ='FLUXO ANUAL'!N45 -> 0 | N45: ='FLUXO ANUAL'!O45 -> 0 | O45: ='FLUXO ANUAL'!P45 -> 0 | P45: ='FLUXO ANUAL'!Q45 -> 0 | Q45: ='FLUXO ANUAL'!R45 -> 0 | R45: ='FLUXO ANUAL'!S45 -> 0 | S45: ='FLUXO ANUAL'!T45 -> 0 | T45: ='FLUXO ANUAL'!U45 -> 0 | U45: ='FLUXO ANUAL'!V45 -> 0 | V45: ='FLUXO ANUAL'!W45 -> 0 | W45: ='FLUXO ANUAL'!X45 -> 0 | X45: ='FLUXO ANUAL'!Y45 -> 0 | Y45: ='FLUXO ANUAL'!Z45 -> 0 | Z45: ='FLUXO ANUAL'!AA45 -> 0 | AA45: ='FLUXO ANUAL'!AB45 -> 0 | AB45: ='FLUXO ANUAL'!AC45 -> 0 | AC45: ='FLUXO ANUAL'!AD45 -> 0 | AD45: ='FLUXO ANUAL'!AE45 -> 0 | AE45: ='FLUXO ANUAL'!AF45 -> 0 | AF45: ='FLUXO ANUAL'!AG45 -> 0
B46: 25 (-) Custos Administrativos | C46: ='FLUXO ANUAL'!D46 -> -545058.1108 | D46: ='FLUXO ANUAL'!E46 -> -1940053.44 | E46: ='FLUXO ANUAL'!F46 -> -251155.4138 | F46: ='FLUXO ANUAL'!G46 -> -970026.72 | G46: ='FLUXO ANUAL'!H46 -> -796213.5246 | H46: ='FLUXO ANUAL'!I46 -> -2910080.16 | I46: ='FLUXO ANUAL'!J46 -> -76684.37895 | J46: ='FLUXO ANUAL'!K46 -> -242506.68 | K46: ='FLUXO ANUAL'!L46 -> -74734.71602 | L46: ='FLUXO ANUAL'!M46 -> -242506.68 | M46: ='FLUXO ANUAL'!N46 -> -72960.67152 | N46: ='FLUXO ANUAL'!O46 -> -242506.68 | O46: ='FLUXO ANUAL'!P46 -> -69663.80742 | P46: ='FLUXO ANUAL'!Q46 -> -242506.68 | Q46: ='FLUXO ANUAL'!R46 -> -64893.41183 | R46: ='FLUXO ANUAL'!S46 -> -242506.68 | S46: ='FLUXO ANUAL'!T46 -> -62893.99865 | T46: ='FLUXO ANUAL'!U46 -> -242506.68 | U46: ='FLUXO ANUAL'!V46 -> -64584.05816 | V46: ='FLUXO ANUAL'!W46 -> -242506.68 | W46: ='FLUXO ANUAL'!X46 -> -58643.06822 | X46: ='FLUXO ANUAL'!Y46 -> -242506.68 | Y46: ='FLUXO ANUAL'!Z46 -> -60567.61657 | Z46: ='FLUXO ANUAL'!AA46 -> -242506.68 | AA46: ='FLUXO ANUAL'!AB46 -> -65230.2983 | AB46: ='FLUXO ANUAL'!AC46 -> -242506.68 | AC46: ='FLUXO ANUAL'!AD46 -> -62771.89967 | AD46: ='FLUXO ANUAL'!AE46 -> -242506.68 | AE46: ='FLUXO ANUAL'!AF46 -> -62585.59926 | AF46: ='FLUXO ANUAL'!AG46 -> -242506.68
B47: 26 (-) Contribuição Anual a CCEE | C47: ='FLUXO ANUAL'!D47 -> -1082557.119 | D47: ='FLUXO ANUAL'!E47 -> -3836923.09 | E47: ='FLUXO ANUAL'!F47 -> -285847.723 | F47: ='FLUXO ANUAL'!G47 -> -1110951.81 | G47: ='FLUXO ANUAL'!H47 -> -1368404.842 | H47: ='FLUXO ANUAL'!I47 -> -4947874.9 | I47: ='FLUXO ANUAL'!J47 -> -160794.4978 | J47: ='FLUXO ANUAL'!K47 -> -508496.52 | K47: ='FLUXO ANUAL'!L47 -> -154975.4045 | L47: ='FLUXO ANUAL'!M47 -> -502879.69 | M47: ='FLUXO ANUAL'!N47 -> -150666.078 | N47: ='FLUXO ANUAL'!O47 -> -500783.91 | O47: ='FLUXO ANUAL'!P47 -> -141099.4054 | P47: ='FLUXO ANUAL'!Q47 -> -491181.14 | Q47: ='FLUXO ANUAL'!R47 -> -129851.5387 | R47: ='FLUXO ANUAL'!S47 -> -485255.2 | S47: ='FLUXO ANUAL'!T47 -> -124366.8396 | T47: ='FLUXO ANUAL'!U47 -> -479533.66 | U47: ='FLUXO ANUAL'!V47 -> -116443.599 | V47: ='FLUXO ANUAL'!W47 -> -437234.07 | W47: ='FLUXO ANUAL'!X47 -> -104359.7562 | X47: ='FLUXO ANUAL'!Y47 -> -431558.9 | Y47: ='FLUXO ANUAL'!Z47 -> -106759.2997 | Z47: ='FLUXO ANUAL'!AA47 -> -427453.56 | AA47: ='FLUXO ANUAL'!AB47 -> -62090.12831 | AB47: ='FLUXO ANUAL'!AC47 -> -230832.47 | AC47: ='FLUXO ANUAL'!AD47 -> -59062.06093 | AD47: ='FLUXO ANUAL'!AE47 -> -228174.46 | AE47: ='FLUXO ANUAL'!AF47 -> -57936.23413 | AF47: ='FLUXO ANUAL'!AG47 -> -224491.32
B48: 27 (-) Contribuição ao O N S | C48: ='FLUXO ANUAL'!D48 -> -104484.2431 | D48: ='FLUXO ANUAL'!E48 -> -374836.94 | E48: ='FLUXO ANUAL'!F48 -> -61741.39334 | F48: ='FLUXO ANUAL'!G48 -> -238461.12 | G48: ='FLUXO ANUAL'!H48 -> -166225.6364 | H48: ='FLUXO ANUAL'!I48 -> -613298.06 | I48: ='FLUXO ANUAL'!J48 -> -13879.33215 | J48: ='FLUXO ANUAL'!K48 -> -43892 | K48: ='FLUXO ANUAL'!L48 -> -13526.4569 | L48: ='FLUXO ANUAL'!M48 -> -43892 | M48: ='FLUXO ANUAL'!N48 -> -12631.2233 | N48: ='FLUXO ANUAL'!O48 -> -41983.66 | O48: ='FLUXO ANUAL'!P48 -> -12060.4579 | P48: ='FLUXO ANUAL'!Q48 -> -41983.66 | Q48: ='FLUXO ANUAL'!R48 -> -11234.58924 | R48: ='FLUXO ANUAL'!S48 -> -41983.66 | S48: ='FLUXO ANUAL'!T48 -> -10859.3288 | T48: ='FLUXO ANUAL'!U48 -> -41871.4 | U48: ='FLUXO ANUAL'!V48 -> -15876.66249 | V48: ='FLUXO ANUAL'!W48 -> -59615.28 | W48: ='FLUXO ANUAL'!X48 -> -14416.1923 | X48: ='FLUXO ANUAL'!Y48 -> -59615.28 | Y48: ='FLUXO ANUAL'!Z48 -> -14889.30293 | Z48: ='FLUXO ANUAL'!AA48 -> -59615.28 | AA48: ='FLUXO ANUAL'!AB48 -> -16035.52734 | AB48: ='FLUXO ANUAL'!AC48 -> -59615.28 | AC48: ='FLUXO ANUAL'!AD48 -> -15431.1806 | AD48: ='FLUXO ANUAL'!AE48 -> -59615.28 | AE48: ='FLUXO ANUAL'!AF48 -> -15385.38247 | AF48: ='FLUXO ANUAL'!AG48 -> -59615.28
B49: 28 (-) Despesas Bancárias | C49: ='FLUXO ANUAL'!D49 -> -1569.137425 | D49: ='FLUXO ANUAL'!E49 -> -4966.52 | E49: ='FLUXO ANUAL'!F49 -> -70.76494271 | F49: ='FLUXO ANUAL'!G49 -> -274.2 | G49: ='FLUXO ANUAL'!H49 -> -1639.902368 | H49: ='FLUXO ANUAL'!I49 -> -5240.72 | I49: ='FLUXO ANUAL'!J49 -> -1532.421579 | J49: ='FLUXO ANUAL'!K49 -> -4846.13 | K49: ='FLUXO ANUAL'!L49 -> -20.86350889 | L49: ='FLUXO ANUAL'!M49 -> -67.7 | M49: ='FLUXO ANUAL'!N49 -> -15.85233769 | N49: ='FLUXO ANUAL'!O49 -> -52.69 | O49: ='FLUXO ANUAL'!P49 -> 0 | P49: ='FLUXO ANUAL'!Q49 -> 0 | Q49: ='FLUXO ANUAL'!R49 -> 0 | R49: ='FLUXO ANUAL'!S49 -> 0 | S49: ='FLUXO ANUAL'!T49 -> 0 | T49: ='FLUXO ANUAL'!U49 -> 0 | U49: ='FLUXO ANUAL'!V49 -> 0 | V49: ='FLUXO ANUAL'!W49 -> 0 | W49: ='FLUXO ANUAL'!X49 -> 0 | X49: ='FLUXO ANUAL'!Y49 -> 0 | Y49: ='FLUXO ANUAL'!Z49 -> 0 | Z49: ='FLUXO ANUAL'!AA49 -> 0 | AA49: ='FLUXO ANUAL'!AB49 -> 0 | AB49: ='FLUXO ANUAL'!AC49 -> 0 | AC49: ='FLUXO ANUAL'!AD49 -> 0 | AD49: ='FLUXO ANUAL'!AE49 -> 0 | AE49: ='FLUXO ANUAL'!AF49 -> -70.76494271 | AF49: ='FLUXO ANUAL'!AG49 -> -274.2
B50: 29 (-) Custeio com Imposto de Renda BB | C50: ='FLUXO ANUAL'!D50 -> -30197.95051 | D50: ='FLUXO ANUAL'!E50 -> -106765.79 | E50: ='FLUXO ANUAL'!F50 -> -80962.17436 | F50: ='FLUXO ANUAL'!G50 -> -310921.24 | G50: ='FLUXO ANUAL'!H50 -> -111160.1249 | H50: ='FLUXO ANUAL'!I50 -> -417687.03 | I50: ='FLUXO ANUAL'!J50 -> -3182.725145 | J50: ='FLUXO ANUAL'!K50 -> -10065.05 | K50: ='FLUXO ANUAL'!L50 -> -1544.602299 | L50: ='FLUXO ANUAL'!M50 -> -5012.08 | M50: ='FLUXO ANUAL'!N50 -> -8136.208556 | N50: ='FLUXO ANUAL'!O50 -> -27043.13 | O50: ='FLUXO ANUAL'!P50 -> -4723.170837 | P50: ='FLUXO ANUAL'!Q50 -> -16441.83 | Q50: ='FLUXO ANUAL'!R50 -> -2172.047097 | R50: ='FLUXO ANUAL'!S50 -> -8116.94 | S50: ='FLUXO ANUAL'!T50 -> 0 | T50: ='FLUXO ANUAL'!U50 -> 0 | U50: ='FLUXO ANUAL'!V50 -> -8103.179845 | V50: ='FLUXO ANUAL'!W50 -> -30426.63 | W50: ='FLUXO ANUAL'!X50 -> -2336.016734 | X50: ='FLUXO ANUAL'!Y50 -> -9660.13 | Y50: ='FLUXO ANUAL'!Z50 -> -4366.13302 | Z50: ='FLUXO ANUAL'!AA50 -> -17481.56 | AA50: ='FLUXO ANUAL'!AB50 -> -19796.70495 | AB50: ='FLUXO ANUAL'!AC50 -> -73598.21 | AC50: ='FLUXO ANUAL'!AD50 -> -21269.44581 | AD50: ='FLUXO ANUAL'!AE50 -> -82170.25 | AE50: ='FLUXO ANUAL'!AF50 -> -35529.89057 | AF50: ='FLUXO ANUAL'!AG50 -> -137671.22
B51: 30] (-) Custeio com Imposto de Renda Bradesco | C51: ='FLUXO ANUAL'!D51 -> -92.52782697 | D51: ='FLUXO ANUAL'!E51 -> -292.61 | E51: ='FLUXO ANUAL'!F51 -> 92.53 | F51: ='FLUXO ANUAL'!G51 -> 292.61 | G51: ='FLUXO ANUAL'!H51 -> 0.002173033139 | H51: ='FLUXO ANUAL'!I51 -> 0 | I51: ='FLUXO ANUAL'!J51 -> -92.52782697 | J51: ='FLUXO ANUAL'!K51 -> -292.61 | K51: ='FLUXO ANUAL'!L51 -> 0 | L51: ='FLUXO ANUAL'!M51 -> 0 | M51: ='FLUXO ANUAL'!N51 -> 0 | N51: ='FLUXO ANUAL'!O51 -> 0 | O51: ='FLUXO ANUAL'!P51 -> 0 | P51: ='FLUXO ANUAL'!Q51 -> 0 | Q51: ='FLUXO ANUAL'!R51 -> 0 | R51: ='FLUXO ANUAL'!S51 -> 0 | S51: ='FLUXO ANUAL'!T51 -> 0 | T51: ='FLUXO ANUAL'!U51 -> 0 | U51: ='FLUXO ANUAL'!V51 -> 0 | V51: ='FLUXO ANUAL'!W51 -> 0 | W51: ='FLUXO ANUAL'!X51 -> 0 | X51: ='FLUXO ANUAL'!Y51 -> 0 | Y51: ='FLUXO ANUAL'!Z51 -> 92.53 | Z51: ='FLUXO ANUAL'!AA51 -> 292.61 | AA51: ='FLUXO ANUAL'!AB51 -> 0 | AB51: ='FLUXO ANUAL'!AC51 -> 0 | AC51: ='FLUXO ANUAL'!AD51 -> 0 | AD51: ='FLUXO ANUAL'!AE51 -> 0 | AE51: ='FLUXO ANUAL'!AF51 -> 0 | AF51: ='FLUXO ANUAL'!AG51 -> 0
B52: 31 (-) Custeio com IOF BB | C52: ='FLUXO ANUAL'!D52 -> -327592.4379 | D52: ='FLUXO ANUAL'!E52 -> -1154251.67 | E52: ='FLUXO ANUAL'!F52 -> -226793.2137 | F52: ='FLUXO ANUAL'!G52 -> -867307.46 | G52: ='FLUXO ANUAL'!H52 -> -554385.6516 | H52: ='FLUXO ANUAL'!I52 -> -2021559.13 | I52: ='FLUXO ANUAL'!J52 -> -57723.5043 | J52: ='FLUXO ANUAL'!K52 -> -182544.81 | K52: ='FLUXO ANUAL'!L52 -> -31667.67543 | L52: ='FLUXO ANUAL'!M52 -> -102758.44 | M52: ='FLUXO ANUAL'!N52 -> -58839.72261 | N52: ='FLUXO ANUAL'!O52 -> -195571.47 | O52: ='FLUXO ANUAL'!P52 -> -39342.02695 | P52: ='FLUXO ANUAL'!Q52 -> -136953.53 | Q52: ='FLUXO ANUAL'!R52 -> -17446.71394 | R52: ='FLUXO ANUAL'!S52 -> -65198.37 | S52: ='FLUXO ANUAL'!T52 -> -9907.738991 | T52: ='FLUXO ANUAL'!U52 -> -38202.26 | U52: ='FLUXO ANUAL'!V52 -> -86437.99835 | V52: ='FLUXO ANUAL'!W52 -> -324566.04 | W52: ='FLUXO ANUAL'!X52 -> -26227.05729 | X52: ='FLUXO ANUAL'!Y52 -> -108456.75 | Y52: ='FLUXO ANUAL'!Z52 -> -25521.58895 | Z52: ='FLUXO ANUAL'!AA52 -> -102185.89 | AA52: ='FLUXO ANUAL'!AB52 -> -89005.33125 | AB52: ='FLUXO ANUAL'!AC52 -> -330895.12 | AC52: ='FLUXO ANUAL'!AD52 -> -68085.5771 | AD52: ='FLUXO ANUAL'!AE52 -> -263035.01 | AE52: ='FLUXO ANUAL'!AF52 -> -44180.71642 | AF52: ='FLUXO ANUAL'!AG52 -> -171191.44
B53: 32 (-) Custeio com IOF Bradesco | C53: ='FLUXO ANUAL'!D53 -> 0 | D53: ='FLUXO ANUAL'!E53 -> 0 | E53: ='FLUXO ANUAL'!F53 -> 0 | F53: ='FLUXO ANUAL'!G53 -> 0 | G53: ='FLUXO ANUAL'!H53 -> 0 | H53: ='FLUXO ANUAL'!I53 -> 0 | I53: ='FLUXO ANUAL'!J53 -> 0 | J53: ='FLUXO ANUAL'!K53 -> 0 | K53: ='FLUXO ANUAL'!L53 -> 0 | L53: ='FLUXO ANUAL'!M53 -> 0 | M53: ='FLUXO ANUAL'!N53 -> 0 | N53: ='FLUXO ANUAL'!O53 -> 0 | O53: ='FLUXO ANUAL'!P53 -> 0 | P53: ='FLUXO ANUAL'!Q53 -> 0 | Q53: ='FLUXO ANUAL'!R53 -> 0 | R53: ='FLUXO ANUAL'!S53 -> 0 | S53: ='FLUXO ANUAL'!T53 -> 0 | T53: ='FLUXO ANUAL'!U53 -> 0 | U53: ='FLUXO ANUAL'!V53 -> 0 | V53: ='FLUXO ANUAL'!W53 -> 0 | W53: ='FLUXO ANUAL'!X53 -> 0 | X53: ='FLUXO ANUAL'!Y53 -> 0 | Y53: ='FLUXO ANUAL'!Z53 -> 0 | Z53: ='FLUXO ANUAL'!AA53 -> 0 | AA53: ='FLUXO ANUAL'!AB53 -> 0 | AB53: ='FLUXO ANUAL'!AC53 -> 0 | AC53: ='FLUXO ANUAL'!AD53 -> 0 | AD53: ='FLUXO ANUAL'!AE53 -> 0 | AE53: ='FLUXO ANUAL'!AF53 -> 0 | AF53: ='FLUXO ANUAL'!AG53 -> 0
B54: 33 (-) Pagamento de bônus de ITAIPU | C54: ='FLUXO ANUAL'!D54 -> 0 | D54: ='FLUXO ANUAL'!E54 -> 0 | E54: ='FLUXO ANUAL'!F54 -> 0 | F54: ='FLUXO ANUAL'!G54 -> 0 | G54: ='FLUXO ANUAL'!H54 -> 0 | H54: ='FLUXO ANUAL'!I54 -> 0 | I54: ='FLUXO ANUAL'!J54 -> 0 | J54: ='FLUXO ANUAL'!K54 -> 0 | K54: ='FLUXO ANUAL'!L54 -> 0 | L54: ='FLUXO ANUAL'!M54 -> 0 | M54: ='FLUXO ANUAL'!N54 -> 0 | N54: ='FLUXO ANUAL'!O54 -> 0 | O54: ='FLUXO ANUAL'!P54 -> 0 | P54: ='FLUXO ANUAL'!Q54 -> 0 | Q54: ='FLUXO ANUAL'!R54 -> 0 | R54: ='FLUXO ANUAL'!S54 -> 0 | S54: ='FLUXO ANUAL'!T54 -> 0 | T54: ='FLUXO ANUAL'!U54 -> 0 | U54: ='FLUXO ANUAL'!V54 -> 0 | V54: ='FLUXO ANUAL'!W54 -> 0 | W54: ='FLUXO ANUAL'!X54 -> 0 | X54: ='FLUXO ANUAL'!Y54 -> 0 | Y54: ='FLUXO ANUAL'!Z54 -> 0 | Z54: ='FLUXO ANUAL'!AA54 -> 0 | AA54: ='FLUXO ANUAL'!AB54 -> 0 | AB54: ='FLUXO ANUAL'!AC54 -> 0 | AC54: ='FLUXO ANUAL'!AD54 -> 0 | AD54: ='FLUXO ANUAL'!AE54 -> 0 | AE54: ='FLUXO ANUAL'!AF54 -> 0 | AF54: ='FLUXO ANUAL'!AG54 -> 0
B55: 34 (+) Variação Cambial (Ativa) | C55: ='FLUXO ANUAL'!D55 -> 0 | D55: ='FLUXO ANUAL'!E55 -> 827053713.1 | E55: ='FLUXO ANUAL'!F55 -> 0 | F55: ='FLUXO ANUAL'!G55 -> 293613354.9 | G55: ='FLUXO ANUAL'!H55 -> 0 | H55: ='FLUXO ANUAL'!I55 -> 1120667068 | I55: ='FLUXO ANUAL'!J55 -> 0 | J55: ='FLUXO ANUAL'!K55 -> 82156309.94 | K55: ='FLUXO ANUAL'!L55 -> 0 | L55: ='FLUXO ANUAL'!M55 -> 29359231.06 | M55: ='FLUXO ANUAL'!N55 -> 0 | N55: ='FLUXO ANUAL'!O55 -> 510444.78 | O55: ='FLUXO ANUAL'!P55 -> 0 | P55: ='FLUXO ANUAL'!Q55 -> 114531130.2 | Q55: ='FLUXO ANUAL'!R55 -> 0 | R55: ='FLUXO ANUAL'!S55 -> 248152963.4 | S55: ='FLUXO ANUAL'!T55 -> 0 | T55: ='FLUXO ANUAL'!U55 -> 86995242.71 | U55: ='FLUXO ANUAL'!V55 -> 0 | V55: ='FLUXO ANUAL'!W55 -> 85741585.68 | W55: ='FLUXO ANUAL'!X55 -> 0 | X55: ='FLUXO ANUAL'!Y55 -> 179606805.4 | Y55: ='FLUXO ANUAL'!Z55 -> 0 | Z55: ='FLUXO ANUAL'!AA55 -> -872544.73 | AA55: ='FLUXO ANUAL'!AB55 -> 0 | AB55: ='FLUXO ANUAL'!AC55 -> 112859898.8 | AC55: ='FLUXO ANUAL'!AD55 -> 0 | AD55: ='FLUXO ANUAL'!AE55 -> 123074165.1 | AE55: ='FLUXO ANUAL'!AF55 -> 0 | AF55: ='FLUXO ANUAL'!AG55 -> 58551835.75
B56: 35 (-) Variação Cambial (Passiva) | C56: ='FLUXO ANUAL'!D56 -> 0 | D56: ='FLUXO ANUAL'!E56 -> -969958042.3 | E56: ='FLUXO ANUAL'!F56 -> 0 | F56: ='FLUXO ANUAL'!G56 -> -313967330.6 | G56: ='FLUXO ANUAL'!H56 -> 0 | H56: ='FLUXO ANUAL'!I56 -> -1283925373 | I56: ='FLUXO ANUAL'!J56 -> 0 | J56: ='FLUXO ANUAL'!K56 -> -114407344.6 | K56: ='FLUXO ANUAL'!L56 -> 0 | L56: ='FLUXO ANUAL'!M56 -> -9446842.26 | M56: ='FLUXO ANUAL'!N56 -> 0 | N56: ='FLUXO ANUAL'!O56 -> 9451768.5 | O56: ='FLUXO ANUAL'!P56 -> 0 | P56: ='FLUXO ANUAL'!Q56 -> -69677893.99 | Q56: ='FLUXO ANUAL'!R56 -> 0 | R56: ='FLUXO ANUAL'!S56 -> -379097059.3 | S56: ='FLUXO ANUAL'!T56 -> 0 | T56: ='FLUXO ANUAL'!U56 -> -169334175.3 | U56: ='FLUXO ANUAL'!V56 -> 0 | V56: ='FLUXO ANUAL'!W56 -> -76034857.05 | W56: ='FLUXO ANUAL'!X56 -> 0 | X56: ='FLUXO ANUAL'!Y56 -> -161411638.3 | Y56: ='FLUXO ANUAL'!Z56 -> 0 | Z56: ='FLUXO ANUAL'!AA56 -> -15375796.8 | AA56: ='FLUXO ANUAL'!AB56 -> 0 | AB56: ='FLUXO ANUAL'!AC56 -> -150530612.1 | AC56: ='FLUXO ANUAL'!AD56 -> 0 | AD56: ='FLUXO ANUAL'!AE56 -> -103932295.1 | AE56: ='FLUXO ANUAL'!AF56 -> 0 | AF56: ='FLUXO ANUAL'!AG56 -> -44128626.52
B57: 36 (+ / -) Receitas / Despesas com COFINS | C57: ='FLUXO ANUAL'!D57 -> -19222600.25 | D57: ='FLUXO ANUAL'!E57 -> -65478581.01 | E57: ='FLUXO ANUAL'!F57 -> -35732277.88 | F57: ='FLUXO ANUAL'!G57 -> -141485896.3 | G57: ='FLUXO ANUAL'!H57 -> -54954878.12 | H57: ='FLUXO ANUAL'!I57 -> -206964477.3 | I57: ='FLUXO ANUAL'!J57 -> 0 | J57: ='FLUXO ANUAL'!K57 -> 0 | K57: ='FLUXO ANUAL'!L57 -> 0 | L57: ='FLUXO ANUAL'!M57 -> 0 | M57: ='FLUXO ANUAL'!N57 -> -6757561.746 | N57: ='FLUXO ANUAL'!O57 -> -22460783.73 | O57: ='FLUXO ANUAL'!P57 -> -24054659.51 | P57: ='FLUXO ANUAL'!Q57 -> -83736675.22 | Q57: ='FLUXO ANUAL'!R57 -> 8486638.59 | R57: ='FLUXO ANUAL'!S57 -> 31714568.41 | S57: ='FLUXO ANUAL'!T57 -> -6107263.634 | T57: ='FLUXO ANUAL'!U57 -> -23548387.12 | U57: ='FLUXO ANUAL'!V57 -> 14548984.91 | V57: ='FLUXO ANUAL'!W57 -> 54629983.43 | W57: ='FLUXO ANUAL'!X57 -> -5338738.853 | X57: ='FLUXO ANUAL'!Y57 -> -22077286.78 | Y57: ='FLUXO ANUAL'!Z57 -> -23794429.04 | Z57: ='FLUXO ANUAL'!AA57 -> -95270514.45 | AA57: ='FLUXO ANUAL'!AB57 -> -141679.1672 | AB57: ='FLUXO ANUAL'!AC57 -> -526720.64 | AC57: ='FLUXO ANUAL'!AD57 -> -1664086.853 | AD57: ='FLUXO ANUAL'!AE57 -> -6428866.74 | AE57: ='FLUXO ANUAL'!AF57 -> -10132082.81 | AF57: ='FLUXO ANUAL'!AG57 -> -39259794.48
B58: 37 (+ / -) Receitas / Despesas com PASEP | C58: ='FLUXO ANUAL'!D58 -> -3576644.408 | D58: ='FLUXO ANUAL'!E58 -> -12062369.29 | E58: ='FLUXO ANUAL'!F58 -> -7209626.778 | F58: ='FLUXO ANUAL'!G58 -> -28589991.92 | G58: ='FLUXO ANUAL'!H58 -> -10786271.19 | H58: ='FLUXO ANUAL'!I58 -> -40652361.21 | I58: ='FLUXO ANUAL'!J58 -> 0 | J58: ='FLUXO ANUAL'!K58 -> 0 | K58: ='FLUXO ANUAL'!L58 -> 0 | L58: ='FLUXO ANUAL'!M58 -> 0 | M58: ='FLUXO ANUAL'!N58 -> -1232487.749 | N58: ='FLUXO ANUAL'!O58 -> -4096542.78 | O58: ='FLUXO ANUAL'!P58 -> -5151059.194 | P58: ='FLUXO ANUAL'!Q58 -> -17931352.16 | Q58: ='FLUXO ANUAL'!R58 -> 1915389.676 | R58: ='FLUXO ANUAL'!S58 -> 7157811.22 | S58: ='FLUXO ANUAL'!T58 -> -1253016.173 | T58: ='FLUXO ANUAL'!U58 -> -4831379.76 | U58: ='FLUXO ANUAL'!V58 -> 3231274.228 | V58: ='FLUXO ANUAL'!W58 -> 12133111.6 | W58: ='FLUXO ANUAL'!X58 -> -1086745.196 | X58: ='FLUXO ANUAL'!Y58 -> -4494017.41 | Y58: ='FLUXO ANUAL'!Z58 -> -5041141.622 | Z58: ='FLUXO ANUAL'!AA58 -> -20184226.94 | AA58: ='FLUXO ANUAL'!AB58 -> 42382.2444 | AB58: ='FLUXO ANUAL'!AC58 -> 157564.47 | AC58: ='FLUXO ANUAL'!AD58 -> -290395.8662 | AD58: ='FLUXO ANUAL'!AE58 -> -1121886.35 | AE58: ='FLUXO ANUAL'!AF58 -> -1920471.534 | AF58: ='FLUXO ANUAL'!AG58 -> -7441443.1
B59: SALDO DO PERÍODO ( B ) REALIZADO / PREVISTO / TOTAL | C59: ='FLUXO ANUAL'!D59 -> 44261180.13 | D59: ='FLUXO ANUAL'!E59 -> -54308170.7 | E59: ='FLUXO ANUAL'!F59 -> 33115638.74 | F59: ='FLUXO ANUAL'!G59 -> 305228381.7 | G59: ='FLUXO ANUAL'!H59 -> 77376818.88 | H59: ='FLUXO ANUAL'!I59 -> 250920211 | I59: ='FLUXO ANUAL'!J59 -> 168954.33 | J59: ='FLUXO ANUAL'!K59 -> -33389667.54 | K59: ='FLUXO ANUAL'!L59 -> 890641.88 | L59: ='FLUXO ANUAL'!M59 -> 20836367.44 | M59: ='FLUXO ANUAL'!N59 -> 306461.95 | N59: ='FLUXO ANUAL'!O59 -> 17585387.5 | O59: ='FLUXO ANUAL'!P59 -> -24690102.8 | P59: ='FLUXO ANUAL'!Q59 -> -122196229.5 | Q59: ='FLUXO ANUAL'!R59 -> 17844418.08 | R59: ='FLUXO ANUAL'!S59 -> -78453733.61 | S59: ='FLUXO ANUAL'!T59 -> 11586663.96 | T59: ='FLUXO ANUAL'!U59 -> -41060180.56 | U59: ='FLUXO ANUAL'!V59 -> 25530625.35 | V59: ='FLUXO ANUAL'!W59 -> 110335678.9 | W59: ='FLUXO ANUAL'!X59 -> 12623517.38 | X59: ='FLUXO ANUAL'!Y59 -> 72034206.67 | Y59: ='FLUXO ANUAL'!Z59 -> 61757406.38 | Z59: ='FLUXO ANUAL'!AA59 -> 246082338.1 | AA59: ='FLUXO ANUAL'!AB59 -> 9436030.02 | AB59: ='FLUXO ANUAL'!AC59 -> -690142.24 | AC59: ='FLUXO ANUAL'!AD59 -> -27966120.71 | AD59: ='FLUXO ANUAL'!AE59 -> 1442657.91 | AE59: ='FLUXO ANUAL'!AF59 -> -10111676.95 | AF59: ='FLUXO ANUAL'!AG59 -> 58393527.89
B60: SALDO FINAL ( C ) = ( A + B ) (ANTES DA INADIMPLÊNCIA) | C60: ='FLUXO ANUAL'!D60 -> 65010871.53 | D60: ='FLUXO ANUAL'!E60 -> 1490704047 | E60: ='FLUXO ANUAL'!F60 -> 98126510.27 | F60: ='FLUXO ANUAL'!G60 -> 1795932429 | G60: ='FLUXO ANUAL'!H60 -> 98126510.27 | H60: ='FLUXO ANUAL'!I60 -> 1795932429 | I60: ='FLUXO ANUAL'!J60 -> 20918645.73 | J60: ='FLUXO ANUAL'!K60 -> 1511622550 | K60: ='FLUXO ANUAL'!L60 -> 21809287.61 | L60: ='FLUXO ANUAL'!M60 -> 1532458918 | M60: ='FLUXO ANUAL'!N60 -> 22115749.56 | N60: ='FLUXO ANUAL'!O60 -> 1550044305 | O60: ='FLUXO ANUAL'!P60 -> -2574353.243 | P60: ='FLUXO ANUAL'!Q60 -> 1427848076 | Q60: ='FLUXO ANUAL'!R60 -> 15270064.84 | R60: ='FLUXO ANUAL'!S60 -> 1349394342 | S60: ='FLUXO ANUAL'!T60 -> 26856728.8 | T60: ='FLUXO ANUAL'!U60 -> 1308334161 | U60: ='FLUXO ANUAL'!V60 -> 52387354.15 | V60: ='FLUXO ANUAL'!W60 -> 1418669840 | W60: ='FLUXO ANUAL'!X60 -> 65010871.53 | X60: ='FLUXO ANUAL'!Y60 -> 1490704047 | Y60: ='FLUXO ANUAL'!Z60 -> 126768277.9 | Z60: ='FLUXO ANUAL'!AA60 -> 1736786385 | AA60: ='FLUXO ANUAL'!AB60 -> 136204307.9 | AB60: ='FLUXO ANUAL'!AC60 -> 1736096243 | AC60: ='FLUXO ANUAL'!AD60 -> 108238187.2 | AD60: ='FLUXO ANUAL'!AE60 -> 1737538901 | AE60: ='FLUXO ANUAL'!AF60 -> 98126510.27 | AF60: ='FLUXO ANUAL'!AG60 -> 1795932429
B61: NATUREZA DAS CONTAS | C61: =C42 -> VALORES REALIZADOS DE JANEIRO A AGOSTO/2018 EM US$ | D61: VALORES REALIZADOS DE JANEIRO A AGOSTO/2018 EM R$ | E61: VALORES PREVISTOS DE SETEMBRO A DEZEMBRO/2018 EM US$ | F61: VALORES REALIZADOS DE SETEMBRO A DEZEMBRO/2018 EM R$ | G61: TOTAIS DE JANEIRO A DEZEMBRO/2018 EM US$ | H61: TOTAIS DE JANEIRO A DEZEMBRO/2018 EM R$ | I61: =I14 -> JANEIRO/2018 EM US$ | J61: =J42 -> JANEIRO/2018 EM R$ | K61: =K14 -> FEVEREIRO/2018 EM US$ | L61: =L42 -> FEVEREIRO/2018 EM R$ | M61: =M14 -> MARÇO/2018 EM US$ | N61: =N42 -> MARÇO/2018 EM R$ | O61: =O14 -> ABRIL/2018 EM US$ | P61: =P42 -> ABRIL/2018 EM R$ | Q61: =Q14 -> MAIO/2018 EM US$ | R61: =R42 -> MAIO/2018 EM R$ | S61: =S14 -> JUNHO/2018 EM US$ | T61: =T42 -> JUNHO/2018 EM R$ | U61: =U14 -> JULHO/2018 EM US$ | V61: =V42 -> JULHO/2018 EM R$ | W61: =W14 -> AGOSTO/2018 EM US$ | X61: =X42 -> AGOSTO/2018 EM R$ | Y61: =Y14 -> SETEMBRO/2018 EM US$ | Z61: =Z42 -> SETEMBRO/2018 EM R$ | AA61: =AA14 -> OUTUBRO/2018 EM US$ | AB61: =AB42 -> OUTUBRO/2018 EM R$ | AC61: =AC14 -> NOVEMBRO/2018 EM US$ | AD61: =AD42 -> NOVEMBRO/2018 EM R$ | AE61: =AE14 -> DEZEMBRO/2018 EM US$ | AF61: =AF42 -> DEZEMBRO/2018 EM R$
B65: AMPLA | C65: ='FLUXO ANUAL'!D65 -> 0 | D65: ='FLUXO ANUAL'!E65 -> 0 | E65: ='FLUXO ANUAL'!F65 -> 0 | F65: ='FLUXO ANUAL'!G65 -> 0 | G65: ='FLUXO ANUAL'!H65 -> 0 | H65: ='FLUXO ANUAL'!I65 -> 0 | I65: ='FLUXO ANUAL'!J65 -> 0 | J65: ='FLUXO ANUAL'!K65 -> 0 | K65: ='FLUXO ANUAL'!L65 -> 0 | L65: ='FLUXO ANUAL'!M65 -> 0 | M65: ='FLUXO ANUAL'!N65 -> 0 | N65: ='FLUXO ANUAL'!O65 -> 0 | O65: ='FLUXO ANUAL'!P65 -> 0 | P65: ='FLUXO ANUAL'!Q65 -> 0 | Q65: ='FLUXO ANUAL'!R65 -> 0 | R65: ='FLUXO ANUAL'!S65 -> 0 | S65: ='FLUXO ANUAL'!T65 -> 0 | T65: ='FLUXO ANUAL'!U65 -> 0 | U65: ='FLUXO ANUAL'!V65 -> 0 | V65: ='FLUXO ANUAL'!W65 -> 0 | W65: ='FLUXO ANUAL'!X65 -> 0 | X65: ='FLUXO ANUAL'!Y65 -> 0 | Y65: ='FLUXO ANUAL'!Z65 -> 0 | Z65: ='FLUXO ANUAL'!AA65 -> 0 | AA65: ='FLUXO ANUAL'!AB65 -> 0 | AB65: ='FLUXO ANUAL'!AC65 -> 0 | AC65: ='FLUXO ANUAL'!AD65 -> 0 | AD65: ='FLUXO ANUAL'!AE65 -> 0 | AE65: ='FLUXO ANUAL'!AF65 -> 0 | AF65: ='FLUXO ANUAL'!AG65 -> 0
B66: CELG-D | C66: ='FLUXO ANUAL'!D66 -> 0 | D66: ='FLUXO ANUAL'!E66 -> 0 | E66: ='FLUXO ANUAL'!F66 -> 0 | F66: ='FLUXO ANUAL'!G66 -> 0 | G66: ='FLUXO ANUAL'!H66 -> 0 | H66: ='FLUXO ANUAL'!I66 -> 0 | I66: ='FLUXO ANUAL'!J66 -> 0 | J66: ='FLUXO ANUAL'!K66 -> 0 | K66: ='FLUXO ANUAL'!L66 -> 0 | L66: ='FLUXO ANUAL'!M66 -> 0 | M66: ='FLUXO ANUAL'!N66 -> 0 | N66: ='FLUXO ANUAL'!O66 -> 0 | O66: ='FLUXO ANUAL'!P66 -> 0 | P66: ='FLUXO ANUAL'!Q66 -> 0 | Q66: ='FLUXO ANUAL'!R66 -> 0 | R66: ='FLUXO ANUAL'!S66 -> 0 | S66: ='FLUXO ANUAL'!T66 -> 0 | T66: ='FLUXO ANUAL'!U66 -> 0 | U66: ='FLUXO ANUAL'!V66 -> 0 | V66: ='FLUXO ANUAL'!W66 -> 0 | W66: ='FLUXO ANUAL'!X66 -> 0 | X66: ='FLUXO ANUAL'!Y66 -> 0 | Y66: ='FLUXO ANUAL'!Z66 -> 0 | Z66: ='FLUXO ANUAL'!AA66 -> 0 | AA66: ='FLUXO ANUAL'!AB66 -> 0 | AB66: ='FLUXO ANUAL'!AC66 -> 0 | AC66: ='FLUXO ANUAL'!AD66 -> 0 | AD66: ='FLUXO ANUAL'!AE66 -> 0 | AE66: ='FLUXO ANUAL'!AF66 -> 0 | AF66: ='FLUXO ANUAL'!AG66 -> 0
B67: CEEE-D | C67: ='FLUXO ANUAL'!D67 -> 0 | D67: ='FLUXO ANUAL'!E67 -> 0 | E67: ='FLUXO ANUAL'!F67 -> 0 | F67: ='FLUXO ANUAL'!G67 -> 0 | G67: ='FLUXO ANUAL'!H67 -> 0 | H67: ='FLUXO ANUAL'!I67 -> 0 | I67: ='FLUXO ANUAL'!J67 -> 0 | J67: ='FLUXO ANUAL'!K67 -> 0 | K67: ='FLUXO ANUAL'!L67 -> 0 | L67: ='FLUXO ANUAL'!M67 -> 0 | M67: ='FLUXO ANUAL'!N67 -> 0 | N67: ='FLUXO ANUAL'!O67 -> 0 | O67: ='FLUXO ANUAL'!P67 -> 0 | P67: ='FLUXO ANUAL'!Q67 -> 0 | Q67: ='FLUXO ANUAL'!R67 -> 0 | R67: ='FLUXO ANUAL'!S67 -> 0 | S67: ='FLUXO ANUAL'!T67 -> 0 | T67: ='FLUXO ANUAL'!U67 -> 0 | U67: ='FLUXO ANUAL'!V67 -> 0 | V67: ='FLUXO ANUAL'!W67 -> 0 | W67: ='FLUXO ANUAL'!X67 -> 0 | X67: ='FLUXO ANUAL'!Y67 -> 0 | Y67: ='FLUXO ANUAL'!Z67 -> 0 | Z67: ='FLUXO ANUAL'!AA67 -> 0 | AA67: ='FLUXO ANUAL'!AB67 -> 0 | AB67: ='FLUXO ANUAL'!AC67 -> 0 | AC67: ='FLUXO ANUAL'!AD67 -> 0 | AD67: ='FLUXO ANUAL'!AE67 -> 0 | AE67: ='FLUXO ANUAL'!AF67 -> 0 | AF67: ='FLUXO ANUAL'!AG67 -> 0
B68: ELETROPAULO | C68: ='FLUXO ANUAL'!D68 -> 0 | D68: ='FLUXO ANUAL'!E68 -> 0 | E68: ='FLUXO ANUAL'!F68 -> 0 | F68: ='FLUXO ANUAL'!G68 -> 0 | G68: ='FLUXO ANUAL'!H68 -> 0 | H68: ='FLUXO ANUAL'!I68 -> 0 | I68: ='FLUXO ANUAL'!J68 -> 0 | J68: ='FLUXO ANUAL'!K68 -> 0 | K68: ='FLUXO ANUAL'!L68 -> 0 | L68: ='FLUXO ANUAL'!M68 -> 0 | M68: ='FLUXO ANUAL'!N68 -> 0 | N68: ='FLUXO ANUAL'!O68 -> 0 | O68: ='FLUXO ANUAL'!P68 -> 0 | P68: ='FLUXO ANUAL'!Q68 -> 0 | Q68: ='FLUXO ANUAL'!R68 -> 0 | R68: ='FLUXO ANUAL'!S68 -> 0 | S68: ='FLUXO ANUAL'!T68 -> 0 | T68: ='FLUXO ANUAL'!U68 -> 0 | U68: ='FLUXO ANUAL'!V68 -> 0 | V68: ='FLUXO ANUAL'!W68 -> 0 | W68: ='FLUXO ANUAL'!X68 -> 0 | X68: ='FLUXO ANUAL'!Y68 -> 0 | Y68: ='FLUXO ANUAL'!Z68 -> 0 | Z68: ='FLUXO ANUAL'!AA68 -> 0 | AA68: ='FLUXO ANUAL'!AB68 -> 0 | AB68: ='FLUXO ANUAL'!AC68 -> 0 | AC68: ='FLUXO ANUAL'!AD68 -> 0 | AD68: ='FLUXO ANUAL'!AE68 -> 0 | AE68: ='FLUXO ANUAL'!AF68 -> 0 | AF68: ='FLUXO ANUAL'!AG68 -> 0
B69: NOVA PALMA | C69: ='FLUXO ANUAL'!D69 -> 0 | D69: ='FLUXO ANUAL'!E69 -> 0 | E69: ='FLUXO ANUAL'!F69 -> -26718.04 | F69: ='FLUXO ANUAL'!G69 -> -102712.16 | G69: ='FLUXO ANUAL'!H69 -> -26718.04 | H69: ='FLUXO ANUAL'!I69 -> -102712.16 | I69: ='FLUXO ANUAL'!J69 -> 0 | J69: ='FLUXO ANUAL'!K69 -> 0 | K69: ='FLUXO ANUAL'!L69 -> 0 | L69: ='FLUXO ANUAL'!M69 -> 0 | M69: ='FLUXO ANUAL'!N69 -> 0 | N69: ='FLUXO ANUAL'!O69 -> 0 | O69: ='FLUXO ANUAL'!P69 -> 0 | P69: ='FLUXO ANUAL'!Q69 -> 0 | Q69: ='FLUXO ANUAL'!R69 -> 0 | R69: ='FLUXO ANUAL'!S69 -> 0 | S69: ='FLUXO ANUAL'!T69 -> 0 | T69: ='FLUXO ANUAL'!U69 -> 0 | U69: ='FLUXO ANUAL'!V69 -> 0 | V69: ='FLUXO ANUAL'!W69 -> 0 | W69: ='FLUXO ANUAL'!X69 -> 0 | X69: ='FLUXO ANUAL'!Y69 -> 0 | Y69: ='FLUXO ANUAL'!Z69 -> 0 | Z69: ='FLUXO ANUAL'!AA69 -> 0 | AA69: ='FLUXO ANUAL'!AB69 -> 0 | AB69: ='FLUXO ANUAL'!AC69 -> 0 | AC69: ='FLUXO ANUAL'!AD69 -> 0 | AD69: ='FLUXO ANUAL'!AE69 -> 0 | AE69: ='FLUXO ANUAL'!AF69 -> -26718.04 | AF69: ='FLUXO ANUAL'!AG69 -> -102712.16
B70: 38 (-) RECEITAS NÃO REALIZADAS | C70: ='FLUXO ANUAL'!D70 -> 0 | D70: ='FLUXO ANUAL'!E70 -> 0 | E70: ='FLUXO ANUAL'!F70 -> -26718.04 | F70: ='FLUXO ANUAL'!G70 -> -102712.16 | G70: ='FLUXO ANUAL'!H70 -> -26718.04 | H70: ='FLUXO ANUAL'!I70 -> -102712.16 | I70: ='FLUXO ANUAL'!J70 -> 0 | J70: ='FLUXO ANUAL'!K70 -> 0 | K70: ='FLUXO ANUAL'!L70 -> 0 | L70: ='FLUXO ANUAL'!M70 -> 0 | M70: ='FLUXO ANUAL'!N70 -> 0 | N70: ='FLUXO ANUAL'!O70 -> 0 | O70: ='FLUXO ANUAL'!P70 -> 0 | P70: ='FLUXO ANUAL'!Q70 -> 0 | Q70: ='FLUXO ANUAL'!R70 -> 0 | R70: ='FLUXO ANUAL'!S70 -> 0 | S70: ='FLUXO ANUAL'!T70 -> 0 | T70: ='FLUXO ANUAL'!U70 -> 0 | U70: ='FLUXO ANUAL'!V70 -> 0 | V70: ='FLUXO ANUAL'!W70 -> 0 | W70: ='FLUXO ANUAL'!X70 -> 0 | X70: ='FLUXO ANUAL'!Y70 -> 0 | Y70: ='FLUXO ANUAL'!Z70 -> 0 | Z70: ='FLUXO ANUAL'!AA70 -> 0 | AA70: ='FLUXO ANUAL'!AB70 -> 0 | AB70: ='FLUXO ANUAL'!AC70 -> 0 | AC70: ='FLUXO ANUAL'!AD70 -> 0 | AD70: ='FLUXO ANUAL'!AE70 -> 0 | AE70: ='FLUXO ANUAL'!AF70 -> -26718.04 | AF70: ='FLUXO ANUAL'!AG70 -> -102712.16
B71: 39 (-) VARIAÇÃO CAMBIAL DAS RECEITAS NÃO REALIZADAS | C71: ='FLUXO ANUAL'!D71 -> 0 | D71: ='FLUXO ANUAL'!E71 -> 0 | E71: ='FLUXO ANUAL'!F71 -> 0 | F71: ='FLUXO ANUAL'!G71 -> -814.901392 | G71: ='FLUXO ANUAL'!H71 -> 0 | H71: ='FLUXO ANUAL'!I71 -> -814.901392 | I71: ='FLUXO ANUAL'!J71 -> 0 | J71: ='FLUXO ANUAL'!K71 -> 0 | K71: ='FLUXO ANUAL'!L71 -> 0 | L71: ='FLUXO ANUAL'!M71 -> 0 | M71: ='FLUXO ANUAL'!N71 -> 0 | N71: ='FLUXO ANUAL'!O71 -> 0 | O71: ='FLUXO ANUAL'!P71 -> 0 | P71: ='FLUXO ANUAL'!Q71 -> 0 | Q71: ='FLUXO ANUAL'!R71 -> 0 | R71: ='FLUXO ANUAL'!S71 -> 0 | S71: ='FLUXO ANUAL'!T71 -> 0 | T71: ='FLUXO ANUAL'!U71 -> 0 | U71: ='FLUXO ANUAL'!V71 -> 0 | V71: ='FLUXO ANUAL'!W71 -> 0 | W71: ='FLUXO ANUAL'!X71 -> 0 | X71: ='FLUXO ANUAL'!Y71 -> 0 | Y71: ='FLUXO ANUAL'!Z71 -> 0 | Z71: ='FLUXO ANUAL'!AA71 -> 0 | AA71: ='FLUXO ANUAL'!AB71 -> 0 | AB71: ='FLUXO ANUAL'!AC71 -> 0 | AC71: ='FLUXO ANUAL'!AD71 -> 0 | AD71: ='FLUXO ANUAL'!AE71 -> 0 | AE71: ='FLUXO ANUAL'!AF71 -> 0 | AF71: ='FLUXO ANUAL'!AG71 -> -814.901392
B72: 40 (-) REPACTUAÇÃO CELG - DISTRIBUIÇÃO | C72: ='FLUXO ANUAL'!D72 -> 0 | D72: ='FLUXO ANUAL'!E72 -> 0 | E72: ='FLUXO ANUAL'!F72 -> -224575082.7 | F72: ='FLUXO ANUAL'!G72 -> -870183530.3 | G72: ='FLUXO ANUAL'!H72 -> -224575082.7 | H72: ='FLUXO ANUAL'!I72 -> -870183530.3 | I72: ='FLUXO ANUAL'!J72 -> 0 | J72: ='FLUXO ANUAL'!K72 -> 0 | K72: ='FLUXO ANUAL'!L72 -> 0 | L72: ='FLUXO ANUAL'!M72 -> 0 | M72: ='FLUXO ANUAL'!N72 -> 0 | N72: ='FLUXO ANUAL'!O72 -> 0 | O72: ='FLUXO ANUAL'!P72 -> 0 | P72: ='FLUXO ANUAL'!Q72 -> 0 | Q72: ='FLUXO ANUAL'!R72 -> 0 | R72: ='FLUXO ANUAL'!S72 -> 0 | S72: ='FLUXO ANUAL'!T72 -> 0 | T72: ='FLUXO ANUAL'!U72 -> 0 | U72: ='FLUXO ANUAL'!V72 -> 0 | V72: ='FLUXO ANUAL'!W72 -> 0 | W72: ='FLUXO ANUAL'!X72 -> 0 | X72: ='FLUXO ANUAL'!Y72 -> 0 | Y72: ='FLUXO ANUAL'!Z72 -> 0 | Z72: ='FLUXO ANUAL'!AA72 -> 0 | AA72: ='FLUXO ANUAL'!AB72 -> 0 | AB72: ='FLUXO ANUAL'!AC72 -> 0 | AC72: ='FLUXO ANUAL'!AD72 -> 0 | AD72: ='FLUXO ANUAL'!AE72 -> 0 | AE72: ='FLUXO ANUAL'!AF72 -> -224575082.7 | AF72: ='FLUXO ANUAL'!AG72 -> -870183530.3
B73: 41 (-) REPACTUAÇÃO CEMAT | C73: ='FLUXO ANUAL'!D73 -> 0 | D73: ='FLUXO ANUAL'!E73 -> 0 | E73: ='FLUXO ANUAL'!F73 -> -20138105 | F73: ='FLUXO ANUAL'!G73 -> -78031129.25 | G73: ='FLUXO ANUAL'!H73 -> -20138105 | H73: ='FLUXO ANUAL'!I73 -> -78031129.25 | I73: ='FLUXO ANUAL'!J73 -> 0 | J73: ='FLUXO ANUAL'!K73 -> 0 | K73: ='FLUXO ANUAL'!L73 -> 0 | L73: ='FLUXO ANUAL'!M73 -> 0 | M73: ='FLUXO ANUAL'!N73 -> 0 | N73: ='FLUXO ANUAL'!O73 -> 0 | O73: ='FLUXO ANUAL'!P73 -> 0 | P73: ='FLUXO ANUAL'!Q73 -> 0 | Q73: ='FLUXO ANUAL'!R73 -> 0 | R73: ='FLUXO ANUAL'!S73 -> 0 | S73: ='FLUXO ANUAL'!T73 -> 0 | T73: ='FLUXO ANUAL'!U73 -> 0 | U73: ='FLUXO ANUAL'!V73 -> 0 | V73: ='FLUXO ANUAL'!W73 -> 0 | W73: ='FLUXO ANUAL'!X73 -> 0 | X73: ='FLUXO ANUAL'!Y73 -> 0 | Y73: ='FLUXO ANUAL'!Z73 -> 0 | Z73: ='FLUXO ANUAL'!AA73 -> 0 | AA73: ='FLUXO ANUAL'!AB73 -> 0 | AB73: ='FLUXO ANUAL'!AC73 -> 0 | AC73: ='FLUXO ANUAL'!AD73 -> 0 | AD73: ='FLUXO ANUAL'!AE73 -> 0 | AE73: ='FLUXO ANUAL'!AF73 -> -20138105 | AF73: ='FLUXO ANUAL'!AG73 -> -78031129.25
B74: 42 (-) REPACTUAÇÃO CEEE-D | C74: ='FLUXO ANUAL'!D74 -> 0 | D74: ='FLUXO ANUAL'!E74 -> 0 | E74: ='FLUXO ANUAL'!F74 -> -168545293.2 | F74: ='FLUXO ANUAL'!G74 -> -595454989.3 | G74: ='FLUXO ANUAL'!H74 -> -168545293.2 | H74: ='FLUXO ANUAL'!I74 -> -595454989.3 | I74: ='FLUXO ANUAL'!J74 -> 0 | J74: ='FLUXO ANUAL'!K74 -> 0 | K74: ='FLUXO ANUAL'!L74 -> 0 | L74: ='FLUXO ANUAL'!M74 -> 0 | M74: ='FLUXO ANUAL'!N74 -> 0 | N74: ='FLUXO ANUAL'!O74 -> 0 | O74: ='FLUXO ANUAL'!P74 -> 0 | P74: ='FLUXO ANUAL'!Q74 -> 0 | Q74: ='FLUXO ANUAL'!R74 -> 0 | R74: ='FLUXO ANUAL'!S74 -> 0 | S74: ='FLUXO ANUAL'!T74 -> 0 | T74: ='FLUXO ANUAL'!U74 -> 0 | U74: ='FLUXO ANUAL'!V74 -> 0 | V74: ='FLUXO ANUAL'!W74 -> 0 | W74: ='FLUXO ANUAL'!X74 -> 0 | X74: ='FLUXO ANUAL'!Y74 -> 0 | Y74: ='FLUXO ANUAL'!Z74 -> 0 | Z74: ='FLUXO ANUAL'!AA74 -> 0 | AA74: ='FLUXO ANUAL'!AB74 -> 0 | AB74: ='FLUXO ANUAL'!AC74 -> 0 | AC74: ='FLUXO ANUAL'!AD74 -> 0 | AD74: ='FLUXO ANUAL'!AE74 -> 0 | AE74: ='FLUXO ANUAL'!AF74 -> -168545293.2 | AF74: ='FLUXO ANUAL'!AG74 -> -595454989.3
B75: 43 (-) VARIAÇÃO CAMBIAL DA REPACTUAÇÃO CEEE-D | C75: ='FLUXO ANUAL'!D75 -> 0 | D75: ='FLUXO ANUAL'!E75 -> 0 | E75: ='FLUXO ANUAL'!F75 -> 0 | F75: ='FLUXO ANUAL'!G75 -> -57624312.91 | G75: ='FLUXO ANUAL'!H75 -> 0 | H75: ='FLUXO ANUAL'!I75 -> -57624312.91 | I75: ='FLUXO ANUAL'!J75 -> 0 | J75: ='FLUXO ANUAL'!K75 -> 0 | K75: ='FLUXO ANUAL'!L75 -> 0 | L75: ='FLUXO ANUAL'!M75 -> 0 | M75: ='FLUXO ANUAL'!N75 -> 0 | N75: ='FLUXO ANUAL'!O75 -> 0 | O75: ='FLUXO ANUAL'!P75 -> 0 | P75: ='FLUXO ANUAL'!Q75 -> 0 | Q75: ='FLUXO ANUAL'!R75 -> 0 | R75: ='FLUXO ANUAL'!S75 -> 0 | S75: ='FLUXO ANUAL'!T75 -> 0 | T75: ='FLUXO ANUAL'!U75 -> 0 | U75: ='FLUXO ANUAL'!V75 -> 0 | V75: ='FLUXO ANUAL'!W75 -> 0 | W75: ='FLUXO ANUAL'!X75 -> 0 | X75: ='FLUXO ANUAL'!Y75 -> 0 | Y75: ='FLUXO ANUAL'!Z75 -> 0 | Z75: ='FLUXO ANUAL'!AA75 -> 0 | AA75: ='FLUXO ANUAL'!AB75 -> 0 | AB75: ='FLUXO ANUAL'!AC75 -> 0 | AC75: ='FLUXO ANUAL'!AD75 -> 0 | AD75: ='FLUXO ANUAL'!AE75 -> 0 | AE75: ='FLUXO ANUAL'!AF75 -> 0 | AF75: ='FLUXO ANUAL'!AG75 -> -57624312.91
B76: 44 (-) REPACTUAÇÃO CEB-D | C76: =W76 -> 0 | D76: 0 | E76: =AE76 -> -29678742.8 | F76: -111059339.6 | G76: =E76 -> -29678742.8 | H76: -111059339.6 | J76: ='FLUXO ANUAL'!K76 -> 0 | K76: ='FLUXO ANUAL'!L76 -> 0 | L76: ='FLUXO ANUAL'!M76 -> 0 | M76: ='FLUXO ANUAL'!N76 -> 0 | N76: ='FLUXO ANUAL'!O76 -> 0 | O76: ='FLUXO ANUAL'!P76 -> 0 | P76: ='FLUXO ANUAL'!Q76 -> 0 | Q76: ='FLUXO ANUAL'!R76 -> 0 | R76: ='FLUXO ANUAL'!S76 -> 0 | S76: ='FLUXO ANUAL'!T76 -> 0 | T76: ='FLUXO ANUAL'!U76 -> 0 | U76: ='FLUXO ANUAL'!V76 -> 0 | V76: ='FLUXO ANUAL'!W76 -> 0 | W76: ='FLUXO ANUAL'!X76 -> 0 | X76: ='FLUXO ANUAL'!Y76 -> 0 | Y76: ='FLUXO ANUAL'!Z76 -> 0 | Z76: ='FLUXO ANUAL'!AA76 -> 0 | AA76: ='FLUXO ANUAL'!AB76 -> 0 | AB76: ='FLUXO ANUAL'!AC76 -> 0 | AC76: ='FLUXO ANUAL'!AD76 -> 0 | AD76: ='FLUXO ANUAL'!AE76 -> 0 | AE76: ='FLUXO ANUAL'!AF76 -> -29678742.8 | AF76: ='FLUXO ANUAL'!AG76 -> -111059339.6
B77: 45 (-) VARIAÇÃO CAMBIAL DA REPACTUAÇÃO CEB-D | C77: 0 | D77: 0 | E77: 0 | F77: -3939853.041 | G77: 0 | H77: -3939853.041 | J77: ='FLUXO ANUAL'!K77 -> 0 | K77: ='FLUXO ANUAL'!L77 -> 0 | L77: ='FLUXO ANUAL'!M77 -> 0 | M77: ='FLUXO ANUAL'!N77 -> 0 | N77: ='FLUXO ANUAL'!O77 -> 0 | O77: ='FLUXO ANUAL'!P77 -> 0 | P77: ='FLUXO ANUAL'!Q77 -> 0 | Q77: ='FLUXO ANUAL'!R77 -> 0 | R77: ='FLUXO ANUAL'!S77 -> 0 | S77: ='FLUXO ANUAL'!T77 -> 0 | T77: ='FLUXO ANUAL'!U77 -> 0 | U77: ='FLUXO ANUAL'!V77 -> 0 | V77: ='FLUXO ANUAL'!W77 -> 0 | W77: ='FLUXO ANUAL'!X77 -> 0 | X77: ='FLUXO ANUAL'!Y77 -> 0 | Y77: ='FLUXO ANUAL'!Z77 -> 0 | Z77: ='FLUXO ANUAL'!AA77 -> 0 | AA77: ='FLUXO ANUAL'!AB77 -> 0 | AB77: ='FLUXO ANUAL'!AC77 -> 0 | AC77: ='FLUXO ANUAL'!AD77 -> 0 | AD77: ='FLUXO ANUAL'!AE77 -> 0 | AE77: ='FLUXO ANUAL'!AF77 -> 0 | AF77: ='FLUXO ANUAL'!AG77 -> -3939853.041
B78: SALDO DA INADIMPLÊNCIA NO PERÍODO ( D ) REALIZADO / PREVISTO | C78: ='FLUXO ANUAL'!D78 -> 0 | D78: ='FLUXO ANUAL'!E78 -> 0 | E78: ='FLUXO ANUAL'!F78 -> -442963941.7 | F78: ='FLUXO ANUAL'!G78 -> -1716396681 | G78: ='FLUXO ANUAL'!H78 -> -442963941.7 | H78: ='FLUXO ANUAL'!I78 -> -1716396681 | I78: ='FLUXO ANUAL'!J78 -> 0 | J78: ='FLUXO ANUAL'!K78 -> 0 | K78: ='FLUXO ANUAL'!L78 -> 0 | L78: ='FLUXO ANUAL'!M78 -> 0 | M78: ='FLUXO ANUAL'!N78 -> 0 | N78: ='FLUXO ANUAL'!O78 -> 0 | O78: ='FLUXO ANUAL'!P78 -> 0 | P78: ='FLUXO ANUAL'!Q78 -> 0 | Q78: ='FLUXO ANUAL'!R78 -> 0 | R78: ='FLUXO ANUAL'!S78 -> 0 | S78: ='FLUXO ANUAL'!T78 -> 0 | T78: ='FLUXO ANUAL'!U78 -> 0 | U78: ='FLUXO ANUAL'!V78 -> 0 | V78: ='FLUXO ANUAL'!W78 -> 0 | W78: ='FLUXO ANUAL'!X78 -> 0 | X78: ='FLUXO ANUAL'!Y78 -> 0 | Y78: ='FLUXO ANUAL'!Z78 -> 0 | Z78: ='FLUXO ANUAL'!AA78 -> 0 | AA78: ='FLUXO ANUAL'!AB78 -> 0 | AB78: ='FLUXO ANUAL'!AC78 -> 0 | AC78: ='FLUXO ANUAL'!AD78 -> 0 | AD78: ='FLUXO ANUAL'!AE78 -> 0 | AE78: ='FLUXO ANUAL'!AF78 -> -442963941.7 | AF78: ='FLUXO ANUAL'!AG78 -> -1716396681
B79: SALDO APÓS A INADIMPLÊNCIA ( E ) = ( C + D ) | C79: ='FLUXO ANUAL'!D79 -> 65010871.53 | D79: ='FLUXO ANUAL'!E79 -> 1490704047 | E79: ='FLUXO ANUAL'!F79 -> -344837431.4 | F79: ='FLUXO ANUAL'!G79 -> 79535747.39 | G79: ='FLUXO ANUAL'!H79 -> -344837431.4 | H79: ='FLUXO ANUAL'!I79 -> 79535747.39 | I79: ='FLUXO ANUAL'!J79 -> 20918645.73 | J79: ='FLUXO ANUAL'!K79 -> 1511622550 | K79: ='FLUXO ANUAL'!L79 -> 21809287.61 | L79: ='FLUXO ANUAL'!M79 -> 1532458918 | M79: ='FLUXO ANUAL'!N79 -> 22115749.56 | N79: ='FLUXO ANUAL'!O79 -> 1550044305 | O79: ='FLUXO ANUAL'!P79 -> -2574353.243 | P79: ='FLUXO ANUAL'!Q79 -> 1427848076 | Q79: ='FLUXO ANUAL'!R79 -> 15270064.84 | R79: ='FLUXO ANUAL'!S79 -> 1349394342 | S79: ='FLUXO ANUAL'!T79 -> 26856728.8 | T79: ='FLUXO ANUAL'!U79 -> 1308334161 | U79: ='FLUXO ANUAL'!V79 -> 52387354.15 | V79: ='FLUXO ANUAL'!W79 -> 1418669840 | W79: ='FLUXO ANUAL'!X79 -> 65010871.53 | X79: ='FLUXO ANUAL'!Y79 -> 1490704047 | Y79: ='FLUXO ANUAL'!Z79 -> 126768277.9 | Z79: ='FLUXO ANUAL'!AA79 -> 1736786385 | AA79: ='FLUXO ANUAL'!AB79 -> 136204307.9 | AB79: ='FLUXO ANUAL'!AC79 -> 1736096243 | AC79: ='FLUXO ANUAL'!AD79 -> 108238187.2 | AD79: ='FLUXO ANUAL'!AE79 -> 1737538901 | AE79: ='FLUXO ANUAL'!AF79 -> -344837431.4 | AF79: ='FLUXO ANUAL'!AG79 -> 79535747.39

Sheet ITENS RECEITAS E DESPESAS ATUAL (hidden)
B2: ÍNDICE DOS ITENS DAS RECEITAS / DESPESAS DA CONTA DE COMERCIALIZAÇÃO DE ITAIPU
B3: Regime de Competência: Aquele em que apuração do fato é realizada no mês de lançamento do mesmo.
B4: Regime de Caixa: Aquele em que a apuração do fato é realizada pela movimentação bancária.
B5: DESCRIÇÃO | C5: CRITÉRIO DE APROPRIAÇÃO
B6: 01 (+) Liquidação CCEE - Venda de Energia | C6: Regime de Competência
B7: 01.1 (+) Liq. CCEE - Recuperação Inadimplência do Mês Anterior | C7: Regime de Competência
B8: 01.2 (-) Liq. CCEE - Inadimplência do Mês | C8: Regime de Competência
B9: 02 (+) Faturamento do Repasse da Energia | C9: Regime de Competência
B10: 03 (+) Juros referentes ao Repasse da Energia | C10: Regime de Caixa - O registro desses valores é realizado no momento da regularização dos pagamentos em atraso quer por liquidação financeira ou renegociação das dividas.
B11: 04 (+) Juros contratuais do Repasse de ITAIPU sobre créditos renegociados | C11: Regime de Caixa
B12: 05 (+) Rendimento de aplicação financeira B.B. S/A | C12: Regime de Caixa
B13: 06 (+) Rendimento Aplic. Financ.do Aporte de Garantias Liq.CCEE | C13: Regime de Caixa
B14: 07 (+) Devolução do bônus de ITAIPU | C14: Regime de Caixa
B15: 08 (-) Liquidação CCEE - Compra de Energia | C15: Regime de Competência
B16: 09 (-) Multa de 2% Pelo Não Aporte das Garantias | C16: Regime de Competência
B17: 10 (-) Potência Contratada | C17: Regime de Competência
B18: 11 (-) Energia Cedida Vinculada | C18: Regime de Competência
B19: 12 (-) Ajuste do dólar - Energia Cedida Vinculada | C19: Regime de Competência
B20: 13 (-) Energia Cedida Não Vinculada | C20: Regime de Competência
B21: 14 (-) Royalties Energia Cedida Não Vinculada | C21: Regime de Competência
B22: 15 (-) Ressarcimento Encargos Supervisão Não Vinculado | C22: Regime de Competência
B23: 16 (-) Ajuste do dólar Energia Cedida Não Vinculada | C23: Regime de Competência
B24: 17 (-) Ajuste do dólar - Royalties | C24: Regime de Competência
B25: 18 (-) Ajuste do dólar - Ressarcimento de Encargos | C25: Regime de Competência
B26: 19 (-) Juros da Potência Contratada, Energias Cedidas, Royalties, Ressarcimento e dos Ajustes do Dólar | C26: Regime de caixa
B27: 20 (-) Ativo Regulatório - Tesouro | C27: Regime de caixa
B28: 21 (-) Ativo Regulatório - Eletrobrás | C28: Regime de caixa
B29: 22 (-) Custos Administrativos | C29: Regime de caixa
B30: 23 (-) Contribuição Anual a CCEE | C30: Regime de caixa
B31: 24 (-) Contribuição ao O N S | C31: Regime de caixa
B32: 25 (-) Despesas Bancárias | C32: Regime de caixa
B33: 26 (-) Custeio com Imposto de Renda | C33: Regime de caixa
B34: 27 (-) Custeio com IOF | C34: Regime de caixa
B35: 28 (+/-) Juros Pagos dos Empréstimos Obtidos por ITAIPU Junto à ELETROBRAS e juros por atraso de transferência da CCEE | C35: Regime de Competência
B36: 29 (-) Pagamento de bônus de ITAIPU | C36: Esta despesa está registrada pelo regime de competência tendo como fato gerador a emissão de Despacho da ANEEL
B37: 30 (+) Variação Cambial (Ativa) | C37: Regime de Competência
B38: 31 (-) Variação Cambial (Passiva) | C38: Regime de Competência
B39: 32 (+ / -) Receitas / Despesas com COFINS | C39: Valores apropriados pelo regime de competência, reconhecendo-se créditos tributários quando a operação for deficitária.
B40: 33 (+ / -) Receitas / Despesas com PASEP | C40: Valores apropriados pelo regime de competência, reconhecendo-se créditos tributários quando a operação for deficitária.

Sheet contas contábeis (hidden)
B2: Centrais Elétricas Brasileiras S/A. - ELETROBRÁS
B3: Diretoria Financeira - DF
B4: Departamento de Administração de Capital de Giro - DFG
B7: FLUXO ECONÔMICO DA COMERCIALIZAÇÃO DE ENERGIA DE ITAIPU - DEZEMBRO/2014
E9: data base: | F9: data base: | G9: data base: | H9: data base:
B11: Natureza das Contas | E11: CONTA CONTABIL | F11: CLIENTE | G11: FORNECEDOR | H11: FORNECEDOR
B16: (+) Rendimento de aplicação financeira realizada no Banco do Brasil S/A | E16: 6310540000
B17: (+) Faturamento do Repasse da Energia | E17: ----- | F17: TODOS | H17: IS
B18: (+) Juros referentes ao Repasse da Energia | E18: 6310920101 | F18: TODOS | H18: IS
B19: (+) Rendimento de aplicação financeira referente ao aporte de garantias da Liquidação CCEE
B20: (+/-) Liquidação CCEE | E20: -----
B21: (+/-) Atualização Liquidação CCEE | E21: -----
B22: (+/-) Ajuste Liquidação CCEE - Competência | E22: -----
B23: (+) Devolução do bônus de Itaipu Despacho ANEEL nº | E23: 2119410000 | F23: TODOS
B24: (+) Variação Cambial (Ativa) | E24: 6311100001
B25: (-) Variação Cambial (Passiva)
B26: (-) Potência Contratada | E26: ----- | G26: 10407
B27: (-) Juros referentes à Potência Contratada - Acréscimo Moratório de ITAIPU | E27: 6350900101
B28: (-) Energia Cedida Vinc | E28: ----- | G28: 10407
B29: (-) Juros referentes à Energia Cedida Vinc - Acréscimo Moratório de ITAIPU | E29: 6350900101
B30: (-) Energia Cedida Não-Vinc. | E30: ----- | G30: 10407
B31: (-) Juros referentes à Energia Cedida Não-Vinc. - Acréscimo Moratório de ITAIPU | E31: 6350900101
B32: (-) Royalties Ener. Não-Vinc | E32: ----- | G32: 10407
B33: (-) Juros referentes aos Royalties Ener. Não-Vinc - Acréscimo Moratório de ITAIPU | E33: 6350900101
B34: (-) Ressarc. Enc. Supervisão Não-Vinc. | E34: ----- | G34: 10407
B35: (-) Juros referentes aos Ressarc. Enc. Supervisão Não-Vinc. - Acréscimo Moratório de ITAIPU | E35: 6350900101
B36: (-) Ajuste do dólar - Ress Encargos | E36: ----- | G36: 10407
B37: (-) Juros referentes ao Ajuste do dólar - Ress Encargos - Acréscimo Moratório de ITAIPU | E37: 6350900101
B38: (-) Ajuste do dólar - Royalties | E38: ----- | G38: 10407
B39: (-) Juros referentes ao Ajuste do dólar - Royalties - Acréscimo Moratório de ITAIPU | E39: 6350900101
B40: (-) Ajuste do dólar Ener. Vinc. | E40: ----- | G40: 10407
B41: (-) Juros referentes ao Ajuste do dólar Ener. Vinc. - Acréscimo Moratório de ITAIPU | E41: 6350900101
B42: (-) Ajuste do dólar Ener. Não-Vinc. | E42: ----- | G42: 10407
B43: (-) Juros referentes ao Ajuste do dólar Ener. Não-Vinc. - Acréscimo Moratório de ITAIPU | E43: 6350900101
B44: (-)Custeio com Imposto de Renda
B45: (+) Reposição do Custeio com Imposto de Renda | E45: -----
B46: (+) Atualização Monet.da Repos. do Custeio com Imposto de Renda | E46: -----
B47: (-) Custeio com IOF | E47: 6159310301 | H47: SA
B48: (+ / -) Receitas / Despesas com COFINS | E48: -----
B49: (+ / -) Receitas / Despesas com PASEP | E49: -----
B50: (-) Contribuição Anual a CCEE | E50: 6154140100 | G50: 70075
B51: (-) Contribuição ao O N S | E51: 6154140100 | G51: 14715 | H51: KR
B52: (-) Ativo Regulatório - Tesouro | G52: 70035 | H52: 77
B53: (-) Ativo Regulatório - Eletrobrás | E53: CONTABILIDADE
B54: (-) Custos Administrativos | E54: 6154140302
B55: (-) Pagamento bônus Itaipu - Despacho ANEEL nº | E55: ----- | G55: TODOS | H55: 77 RZE R
B56: (-) Despesas Bancárias | E56: 6154140100 | H56: AB
B57: ( + ) Juros de Mora Incorporados ao Contrato da CELG-D | E57: 6310920101 | F57: 10073 | H57: IS
B58: ( + ) Juros contratuais do Repasse de ITAIPU da CELG-D | E58: ----- | F58: 10073 | H58: IS
B59: ( + ) Juros de Mora Incorporados ao Contrato da CEMAT | E59: 6310920101 | F59: 10038 | H59: IS
B60: ( + ) Juros contratuais do Repasse de ITAIPU da CEMAT | E60: ----- | F60: 10038 | H60: IS
B61: ( + ) Juros de Mora Incorporados ao Contrato da EEB | E61: 6310920101 | F61: 10019 | H61: IS
B62: ( + ) Juros contratuais do Repasse de ITAIPU da EEB. | E62: ----- | F62: 10019 | H62: IS
B63: (-/+) Juros Pagos dos Empréstimos Obtidos por ITAIPU Junto à ELETROBRAS | E63: FORNECIDO PELA DFGT
